Workbook

Sheet Version Information
A12: Version Number | B12: Notes | C12: Date
A13: 1 | B13: Initial version | C13: 2016-10-03
A14: 1.1 | B14: Instructions updated with new NETL Logo | C14: 2017-10-31
A15: 2 | B15: Coal basins map updated | C15: 2018-08-03
A16: 2.1 | B16: Final data submitted | C16: 2018-09-14

Sheet Overview and Explanations
B1: Overview
B2: All results recorded in this template will be made publically available on NETL's database exchange web portal (https://edx.netl.doe.gov/ree). The focus of this task is to characterize the bulk elemental concentration and mineralogy of rare earth elements in coal and coal by-product material during field sampling in order to provide data needed to determine the best path forward. The Attributes tab contains definitions and examples to assist in determining the correct dropdown item/s to select in both of the Results tabs (Dry Mass and Dry Ash Basis tabs). The Instructions tab contains an embedded PDF that gives step by step information on how to fill out each column within the two Results tabs below. In order to maintain the NETL database's integrity, researcher's should do their best to accurately and precisely describe all information about the samples that is publically releasable. Please send all email user questions to NETLREEGROUP@Netl.doe.gov or contact your Federal Project Manager.
B3: Coal Basins | E3: Researcher Analytical Technique Notes
E4: ICP-MS | F4: Inductively Coupled Plasma Mass Spectrometry
E5: ICP-OES | F5: Inductively Coupled Plasma Optical Emission Spectrometry
E6: EPA methods 6010, 6020, and 7000 were followed for analysis of samples by ICP-MS and ICP-OES
E7: BDL = Below Detection limit
E8: NETL Digestion Procedure for Bulk Elemental Analysis of Solids
E9: There are many digestion procedures that can be employed for inductively coupled plasma mass spectrometry (ICP-MS) or inductively coupled plasma optical emission spectrometry (ICP-OES) analysis (bulk elemental analysis) of solid coal by-products. One method employed by NETL-RIC is described below. Note that it is also critical for the lab to determine the percent recoveries of the rare earths and other elements from certified reference materials. This serves as a check on the digestion procedure, as well as the analytical procedure. Also note that ICP-OES has inferior detection limits for the rare earths as compared to ICP-MS. In the NETL digestion procedure, solid samples were prepared by mixing pulverized sample with calcined LiBO2 (lithium metaborate) at a ratio of 1:8. Prior to fusion, samples were mixed by stirring with a platinum rod in a 99.95% platinum crucible. The open crucibles were heated to 1100°C for five minutes in a Phoenix microwave muffle furnace (CEM). After 5 minutes, the melt was removed from the oven and allowed to cool to a homogeneous glass. The glass was digested in 5% HNO3 on low heat with stirring. To ensure that the sample glass was completely digested, the platinum crucibles were rinsed 3x with 5% HNO3 and the sample was diluted to a final volume of 100 ml. These samples were further diluted in 2% HNO3 before analysis to determine the optimal balance between internal standard recovery and limit of detection. For solid samples containing significant carbon content, samples were dried and ashed in a Leco Thermogravimetric Analyzer (TGA701) for one hour under nitrogen at 107°C for drying and then for five hours under air at 550°C for ashing. Reference "Analysis of Rare Earth Elements in Geologic Samples using Inductively Coupled Plasma Mass Spectrometry" Tracy Bank, Elliot Roth, Phillip Tinker, Evan Granite, DOE Topical Report, available on the NETL Rare Earth website - http://netl.doe.gov/research/coal/rare-earth-elements/publications

Sheet Attributes
D1: Level 1 Attribute | E1: Level 2 Attribute | F1: Level 3 Attribute
D2: Resource Production | E2: Coal Reserve | F2: Coal
D3: Processing | E3: Coal Mining | F3: Clean Coal
D4: Utilization | E4: Coal Separations | F4: Bottom Ash
E5: Feed Coal | F5: Fly Ash
E6: Energy Conversion Processes | F6: Ash
E7: Other | F7: Refuse
F8: Fine Coal By-Product
F9: Coarse Refuse
F10: Disposed Combustion By-Products
F11: Coal Mine Drainage
F12: Acid Mine Drainage
F13: Acid Mine Drainage - Sludge
F14: Aqueous
F15: N/A
D17: Level 1 Attributes: Based on the preparation point of collection, the three level 1 attributes refer to the point of recovery in the coal value process chain on the highest trichotomy level.
D18: Resource Production
D19: Data in Resource Production reflect characterization of the REEs in resources as they exist in their natural environment, and materials that are produced during mining operations. These data include core samples, road cuts, outcrops, raw coal grab samples, and aqueous by-products.
D20: Processing
D21: These data reflect REE characterization results for “as received” or run-of mine material from a number of coal preparation plants, in-plant streams, product streams (refuse, fine coal, and clean coal), and aqueous by-products.
D22: Utilization
D23: These data reflect REE characterization results of feed coals as they arrive at the power plant, refuse and coal by-products (fly ash and bottom ash), and aqueous by-products generated at the plant. These materials include grab samples taken at several by-product storage/disposal sites. Samples can include aqueous effluents from processing facilities, material found in ash ponds, coal mine drainage, and runoff from storage piles.
A25: Figure 1. Coal Value Chain Opportunities for REE Recovery. | D25: Level 2 Attributes: Based on the preparation point of collection, level 2 attributes refer to more specific points of recovery in the coal value process chain from Resource Production through Processing and Utilization.
D26: Coal Reserve
D27: Underground and surface coal not yet mined within the United States (e.g., Basin A coal)
D28: Coal Mining
D29: Coal that has been extracted from the earth through production processes (e.g., Mine A - run of mine)
D30: Coal Separations
D31: Coal that has undergone washing, dewatering, crushing, and sieving (and or other classifying steps) resulting in clean coal for utilization and by-products such as slurries, refuse, and out-of-spec sized product (e.g., Mine A - midlings refuse)
D32: Feed Coal
D33: Clean Coal that has been approved for utilization and has been pulverized to plant specs (Power plant A - clean coal pulverized rejects)
D34: Energy Conversion Processes
D35: Coal that has been utilized and converted into energy through the power production process (Power Plant A - Fly Ash)
D36: Other
D37: Coal that does not fall into the above categories
D39: Level 3 Attributes
D40: Self Evident

Sheet Instructions
A1: This Instruction booklet will help to guide the user through updating the data in each column of the Results data tabs below. To open, double click on the embedded pdf below.

Sheet Dry Mass Basis
A1: Dry Ash Basis - Sampling Material Identification and Characterization
F4: Researcher Field Sampling Data Inputs | AJ4: Primary Elemental Identification Technique | CU4: Secondary Elemental Identification Technique (If Measured) | DO4: XRD, Phase Identification (If measured) | DS4: SEM-EDX (If measured)
D5: Sample Reference # for Analyses on Sample Source | F5: Origin of the Sample and Description | O5: Location of Sampling Site | V5: Proximate Analysis (Wt%) | AA5: Ultimate Analysis (%) | AF5: CHNS Analysis (%) | AJ5: Analysis Description/Method | AM5: Elements (ppm) | BY5: Lanthanides (ppm) | CM5: Other Metals (ppm) | CP5: Actinides (ppm) | CR5: Total REE (ppm) | CS5: Total REE+Y (ppm) | CU5: Analysis Description Method | CX5: Results (ppm)
A6: Sample Reference # (# required to enable calculations) | B6: Sample Type | C6: Description | D6: Furthest Upstream Sample Ref # | E6: Previous Upstream Sample Ref # | F6: Level 1 Attribute | G6: Level 2 Attribute | H6: Level 3 Attribute | I6: Coal Basin | J6: Geological Group | K6: Associated Coal Bed/Zone/Seam | L6: State | M6: County | N6: Site | O6: State2 | P6: County2 | Q6: Site2 | R6: Location2 | S6: Size Fraction Analyzed (µm) | T6: % Moisture, As-Received | U6: %Ash, Dry | V6: Sulfur | W6: Moisture | X6: Volatile Matter | Y6: Ash | Z6: Fixed Carbon | AA6: Carbon | AB6: Hydrogen | AC6: Sulfur | AD6: Oxygen | AE6: Nitrogen | AF6: Carbon2 | AG6: H | AH6: N | AI6: S | AJ6: Digestion Method | AK6: Analytical Technique | AL6: Dry Ash Basis | AM6: Be 4 | AN6: Na 11 | AO6: Mg 12 | AP6: Al 13 | AQ6: Si 14 | AR6: P 15 | AS6: K 19 | AT6: Ca 20 | AU6: Sc 21 | AV6: Ti 22 | AW6: V 23 | AX6: Cr 24 | AY6: Mn 25 | AZ6: Fe 26 | BA6: Co 27 | BB6: Ni 28 | BC6: Cu 29 | BD6: Zn 30 | BE6: Ga 31 | BF6: Ge 32 | BG6: As 33 | BH6: Se 34 | BI6: Rb 37 | BJ6: Y 39 | BK6: Zr 40 | BL6: Nb 41 | BM6: Mo 42 | BN6: Ag 47 | BO6: Cd 48 | BP6: Sn 50 | BQ6: Sb 51 | BR6: Cs 55 | BS6: Ba 56 | BT6: Other | BU6: Other2 | BV6: Other3 | BW6: Other4 | BX6: Other5 | BY6: La 57 | BZ6: Ce 58 | CA6: Pr 59 | CB6: Nd 60 | CC6: Sm 62 | CD6: Eu 63 | CE6: Gd 64 | CF6: Tb 65 | CG6: Dy 66 | CH6: Ho 67 | CI6: Er 68 | CJ6: Tm 69 | CK6: Yb 70 | CL6: Lu 71 | CM6: Hf 72 | CN6: Tl 81 | CO6: Pb 82 | CP6: Th 90 | CQ6: U 92 | CR6: Lanthanides | CS6: Lanthanides+Y | CT6: Notes | CU6: Secondary Analytical Technique | CV6: Secondary Digestion Method | CW6: Dry Ash Basis2 | CX6: Al3 13 | CY6: Ca4 20 | CZ6: Fe5 26 | DA6: K6 19 | DB6: Mg7 12 | DC6: Na8 11 | DD6: P2 15 | DE6: Ti2 22 | DF6: SiO2* | DG6: Zr 402 | DH6: Sn 502 | DI6: Cl | DJ6: SO4 | DK6: Other9 | DL6: Other10 | DM6: Other11 | DN6: Notes3 | DO6: Major Phases | DP6: Minor Phases | DQ6: Trace Phases | DR6: Notes2 | DS6: Mineral/particle/crystal | DT6: Size | DU6: Mineral/particle/crystal2 | DV6: Size3 | DW6: Mineral/particle/crystal3 | DX6: Size4 | DY6: Notes4
A7: 1 | B7: raw AMD | C7: WVDEP OSR Royal Scot Buc Lilly, Lat. 38.012191, Long. -80.604779 | D7: NA | E7: NA | F7: Resource Production | G7: Coal Mining | H7: Acid Mine Drainage | I7: CAPP | J7: Pennsylvanian | K7: =+K8 -> Poca 3-6, BECKLEY,Firecreek,SEWELL,LITLE RALEIGH | L7: =+L8 -> WV | M7: =+M8 -> Greenbrier | N7: wri AQ-1 | O7: =+O8 -> WV | P7: =+P8 -> Greenbrier | Q7: wri AQ-1 | R7: 1 | S7: NA | T7: NA | U7: NA | V7: NA | W7: NA | X7: NA | Y7: NA | Z7: NA | AA7: NA | AB7: NA | AC7: NA | AD7: NA | AE7: NA | AF7: NA | AG7: NA | AH7: NA | AI7: NA | AJ7: NA | AK7: 6020A | BJ7: 0.12 | BY7: 0.026 | BZ7: 0.08 | CA7: 0.012 | CB7: 0.063 | CC7: 0.02 | CD7: 0.005 | CE7: 0.028 | CF7: 0.005 | CG7: 0.025 | CH7: 0.005 | CI7: 0.012 | CJ7: 0 | CK7: 0.008 | CL7: 0 | CR7: =IF(ISBLANK(FieldSampling1618[[#This Row],[Sample Reference '# ('# required to enable calculations)]]),"",SUM(FieldSampling1618[[#This Row],[La 57]:[Lu 71]])) -> 0.289 | CS7: =IF(ISBLANK(FieldSampling1618[[#This Row],[Sample Reference '# ('# required to enable calculations)]]),"", SUM(FieldSampling1618[Lanthanides]+FieldSampling1618[Y 39])) -> 0.409 | CU7: 200.7 | CV7: NA
A8: 1 | B8: raw AMD | C8: WVDEP OSR Royal Scot Buc Lilly, Lat. 38.012191, Long. -80.604779 | F8: Resource Production | G8: Coal Mining | H8: Acid Mine Drainage | I8: CAPP | J8: Pennsylvanian | K8: Poca 3-6, BECKLEY,Firecreek,SEWELL,LITLE RALEIGH | L8: WV | M8: Greenbrier | N8: wri AQ-1 | O8: WV | P8: Greenbrier | Q8: wri AQ-1 | R8: 1 | S8: NA | T8: NA | U8: NA | V8: NA | W8: NA | X8: NA | Y8: NA | Z8: NA | AA8: NA | AB8: NA | AC8: NA | AD8: NA | AE8: NA | AF8: NA | AG8: NA | AH8: NA | AI8: NA | AJ8: NA | AK8: 6020A | AQ8: 38 | AU8: 0.0054 | BJ8: 0.162 | BY8: 0.0358 | BZ8: 0.109 | CA8: 0.0186 | CB8: 0.0995 | CC8: 0.0344 | CD8: 0.0089 | CE8: 0.0506 | CF8: 0.008 | CG8: 0.0444 | CH8: 0.007 | CI8: 0.0172 | CJ8: 0.0022 | CK8: 0.0123 | CL8: 0.0018 | CR8: =IF(ISBLANK(FieldSampling1618[[#This Row],[Sample Reference '# ('# required to enable calculations)]]),"",SUM(FieldSampling1618[[#This Row],[La 57]:[Lu 71]])) -> 0.4497 | CS8: =IF(ISBLANK(FieldSampling1618[[#This Row],[Sample Reference '# ('# required to enable calculations)]]),"", SUM(FieldSampling1618[Lanthanides]+FieldSampling1618[Y 39])) -> 0.6117 | CU8: 200.7 | CV8: NA | CX8: 47.7 | CY8: 152 | CZ8: 151 | DB8: 115 | DC8: 68.6
A9: 2 | B9: raw AMD | C9: WVDEP OSR Omega, Lat. 39.533042, Long. -79.939871 | F9: Resource Production | G9: Coal Mining | H9: Acid Mine Drainage | I9: NAPP | J9: Pennsylvanian | K9: Upper Freeport | L9: WV | M9: Monongalia | N9: wri AQ-2 | O9: WV | P9: Monongalia | Q9: wri AQ-2 | R9: 2 | S9: NA | T9: NA | U9: NA | V9: NA | W9: NA | X9: NA | Y9: NA | Z9: NA | AA9: NA | AB9: NA | AC9: NA | AD9: NA | AE9: NA | AF9: NA | AG9: NA | AH9: NA | AI9: NA | AJ9: NA | AK9: 6020A | AQ9: 46.8 | AU9: 0.0249 | BJ9: 0.045 | BY9: 0.0099 | BZ9: 0.0376 | CA9: 0.006 | CB9: 0.0297 | CC9: 0.0093 | CD9: 0.0024 | CE9: 0.0135 | CF9: 0.0025 | CG9: 0.0153 | CH9: 0.0027 | CI9: 0.0069 | CJ9: 0.00098 | CK9: 0.0056 | CL9: 0.00082 | CR9: =IF(ISBLANK(FieldSampling1618[[#This Row],[Sample Reference '# ('# required to enable calculations)]]),"",SUM(FieldSampling1618[[#This Row],[La 57]:[Lu 71]])) -> 0.1432 | CS9: =IF(ISBLANK(FieldSampling1618[[#This Row],[Sample Reference '# ('# required to enable calculations)]]),"", SUM(FieldSampling1618[Lanthanides]+FieldSampling1618[Y 39])) -> 0.1882 | CU9: 200.7 | CV9: NA | CX9: 47.7 | CY9: 80.4 | CZ9: 140 | DB9: 22.8 | DC9: 13.6
A10: 2 | B10: raw AMD | C10: WVDEP OSR Omega, Lat. 39.533042, Long. -79.939871 | F10: Resource Production | G10: Coal Mining | H10: Acid Mine Drainage | I10: =+I9 -> NAPP | J10: Pennsylvanian | K10: Upper Freeport | L10: =+L9 -> WV | M10: =+M9 -> Monongalia | N10: wri AQ-2 | O10: =+O9 -> WV | P10: =+P9 -> Monongalia | Q10: wri AQ-2 | R10: 2 | S10: NA | T10: NA | U10: NA | V10: NA | W10: NA | X10: NA | Y10: NA | Z10: NA | AA10: NA | AB10: NA | AC10: NA | AD10: NA | AE10: NA | AF10: NA | AG10: NA | AH10: NA | AI10: NA | AJ10: NA | AK10: 6020A | AQ10: 42.763 | AU10: 0.0743 | BJ10: 0.118 | BY10: 0.0192 | BZ10: 0.0798 | CA10: 0.0129 | CB10: 0.0629 | CC10: 0.0204 | CD10: 0.0053 | CE10: 0.0277 | CF10: 0.0054 | CG10: 0.0326 | CH10: 0.0065 | CI10: 0.0053 | CJ10: 0.0025 | CK10: 0.0151 | CL10: 0.0021 | CR10: =IF(ISBLANK(FieldSampling1618[[#This Row],[Sample Reference '# ('# required to enable calculations)]]),"",SUM(FieldSampling1618[[#This Row],[La 57]:[Lu 71]])) -> 0.2977 | CS10: =IF(ISBLANK(FieldSampling1618[[#This Row],[Sample Reference '# ('# required to enable calculations)]]),"", SUM(FieldSampling1618[Lanthanides]+FieldSampling1618[Y 39])) -> 0.4157 | CU10: 200.7 | CV10: NA | CX10: 118.041 | CY10: 134.71 | CZ10: 232.454 | DB10: 48.325 | DC10: 16.446 | DI10: 22.779 | DJ10: 2000
A11: 3 | B11: raw AMD | C11: WVDEP OSR T&T #2, Lat. 39.544341, Long. -79.632630 | F11: Resource Production | G11: Coal Mining | H11: Acid Mine Drainage | I11: NAPP | J11: Pennsylvanian | K11: Upper Freeport | L11: WV | M11: Preston | N11: wri AQ-3 | O11: WV | P11: Preston | Q11: wri AQ-3 | R11: 3 | S11: NA | T11: NA | U11: NA | V11: NA | W11: NA | X11: NA | Y11: NA | Z11: NA | AA11: NA | AB11: NA | AC11: NA | AD11: NA | AE11: NA | AF11: NA | AG11: NA | AH11: NA | AI11: NA | AJ11: NA | AK11: 6020A | AQ11: 53.1 | AU11: 0.0099 | BJ11: 0.0419 | BY11: 0.0128 | BZ11: 0.048 | CA11: 0.0079 | CB11: 0.0392 | CC11: 0.0118 | CD11: 0.0028 | CE11: 0.0139 | CF11: 0.0022 | CG11: 0.013 | CH11: 0.0021 | CI11: 0.0054 | CJ11: 0.00075 | CK11: 0.0044 | CL11: 0.00065 | CR11: =IF(ISBLANK(FieldSampling1618[[#This Row],[Sample Reference '# ('# required to enable calculations)]]),"",SUM(FieldSampling1618[[#This Row],[La 57]:[Lu 71]])) -> 0.1649 | CS11: =IF(ISBLANK(FieldSampling1618[[#This Row],[Sample Reference '# ('# required to enable calculations)]]),"", SUM(FieldSampling1618[Lanthanides]+FieldSampling1618[Y 39])) -> 0.2068 | CU11: 200.7 | CV11: NA | CX11: 43.4 | CY11: 81.6 | CZ11: 68.2 | DB11: 24.1 | DC11: 1.02
A12: 4 | B12: raw AMD | C12: WVDEP OSR VIKING, Lat. 39.564822, Long. -79.643319 | F12: Resource Production | G12: Coal Mining | H12: Acid Mine Drainage | I12: =+I13 -> NAPP | J12: Pennsylvanian | K12: Upper Freeport | L12: =+L13 -> WV | M12: =+M13 -> Preston | N12: wri AQ-4 | O12: =+O13 -> WV | P12: =+P13 -> Preston | Q12: wri AQ-4 | R12: 4 | S12: NA | T12: NA | U12: NA | V12: NA | W12: NA | X12: NA | Y12: NA | Z12: NA | AA12: NA | AB12: NA | AC12: NA | AD12: NA | AE12: NA | AF12: NA | AG12: NA | AH12: NA | AI12: NA | AJ12: NA | AK12: 6020A | AQ12: 27.442 | AU12: 0.0121 | BJ12: 0.085 | BY12: 0.0234 | BZ12: 0.0865 | CA12: 0.0136 | CB12: 0.0679 | CC12: 0.02 | CD12: 0.0052 | CE12: 0.0259 | CF12: 0.004 | CG12: 0.0221 | CH12: 0.0039 | CI12: 0.0102 | CJ12: 0.0014 | CK12: 0.008 | CL12: 0.0011 | CR12: =IF(ISBLANK(FieldSampling1618[[#This Row],[Sample Reference '# ('# required to enable calculations)]]),"",SUM(FieldSampling1618[[#This Row],[La 57]:[Lu 71]])) -> 0.2932 | CS12: =IF(ISBLANK(FieldSampling1618[[#This Row],[Sample Reference '# ('# required to enable calculations)]]),"", SUM(FieldSampling1618[Lanthanides]+FieldSampling1618[Y 39])) -> 0.3782 | CU12: 200.7 | CV12: NA | CX12: 49.798 | CY12: 143.336 | CZ12: 20.1 | DB12: 62.71 | DC12: 4.871 | DI12: 5.585 | DJ12: 1020
A13: 4 | B13: raw AMD | C13: WVDEP OSR VIKING, Lat. 39.564822, Long. -79.643319 | F13: Resource Production | G13: Coal Mining | H13: Acid Mine Drainage | I13: NAPP | J13: Pennsylvanian | K13: Upper Freeport | L13: WV | M13: Preston | N13: wri AQ-4 | O13: WV | P13: Preston | Q13: wri AQ-4 | R13: 4 | S13: NA | T13: NA | U13: NA | V13: NA | W13: NA | X13: NA | Y13: NA | Z13: NA | AA13: NA | AB13: NA | AC13: NA | AD13: NA | AE13: NA | AF13: NA | AG13: NA | AH13: NA | AI13: NA | AJ13: NA | AK13: 6020A | AQ13: 37.8 | AU13: 0.0109 | BJ13: 0.051 | BY13: 0.0179 | BZ13: 0.0678 | CA13: 0.0105 | CB13: 0.0509 | CC13: 0.0159 | CD13: 0.0038 | CE13: 0.0191 | CF13: 0.0029 | CG13: 0.0161 | CH13: 0.0026 | CI13: 0.0068 | CJ13: 0.00092 | CK13: 0.0055 | CL13: 0.00078 | CR13: =IF(ISBLANK(FieldSampling1618[[#This Row],[Sample Reference '# ('# required to enable calculations)]]),"",SUM(FieldSampling1618[[#This Row],[La 57]:[Lu 71]])) -> 0.2215 | CS13: =IF(ISBLANK(FieldSampling1618[[#This Row],[Sample Reference '# ('# required to enable calculations)]]),"", SUM(FieldSampling1618[Lanthanides]+FieldSampling1618[Y 39])) -> 0.2725 | CU13: 200.7 | CV13: NA | CX13: 38.3 | CY13: 78.7 | CZ13: 43.1 | DB13: 37.9 | DC13: 3.32
A14: 5 | B14: raw AMD | C14: WVDEP OSR LOBO CAPITAL, Lat. 39.585699, Long. -79.639462 | F14: Resource Production | G14: Coal Mining | H14: Acid Mine Drainage | I14: NAPP | J14: Pennsylvanian | K14: Upper Freeport | L14: WV | M14: Preston | N14: wri AQ-5 | O14: WV | P14: Preston | Q14: wri AQ-5 | R14: 5 | S14: NA | T14: NA | U14: NA | V14: NA | W14: NA | X14: NA | Y14: NA | Z14: NA | AA14: NA | AB14: NA | AC14: NA | AD14: NA | AE14: NA | AF14: NA | AG14: NA | AH14: NA | AI14: NA | AJ14: NA | AK14: 6020A | AQ14: 22 | AU14: 0.0081 | BJ14: 0.0255 | BY14: 0.0047 | BZ14: 0.0188 | CA14: 0.0032 | CB14: 0.0169 | CC14: 0.0067 | CD14: 0.0018 | CE14: 0.0094 | CF14: 0.0015 | CG14: 0.0083 | CH14: 0.0014 | CI14: 0.0036 | CJ14: 0.00048 | CK14: 0.0029 | CL14: 0.00041 | CR14: =IF(ISBLANK(FieldSampling1618[[#This Row],[Sample Reference '# ('# required to enable calculations)]]),"",SUM(FieldSampling1618[[#This Row],[La 57]:[Lu 71]])) -> 0.08009 | CS14: =IF(ISBLANK(FieldSampling1618[[#This Row],[Sample Reference '# ('# required to enable calculations)]]),"", SUM(FieldSampling1618[Lanthanides]+FieldSampling1618[Y 39])) -> 0.10559 | CU14: 200.7 | CV14: NA | CX14: 16.2 | CY14: 71.8 | CZ14: 36.1 | DB14: 22.2 | DC14: 2.9
A15: 6 | B15: raw AMD | C15: WVDEP OSR FREEPORT MINING, Lat. 39.640666, Long. -79.734928 | F15: Resource Production | G15: Coal Mining | H15: Acid Mine Drainage | I15: =+I16 -> NAPP | J15: Pennsylvanian | K15: Upper Freeport | L15: =+L16 -> WV | M15: =+M16 -> Preston | N15: wri AQ-6 | O15: =+O16 -> WV | P15: =+P16 -> Preston | Q15: wri AQ-6 | R15: 6 | S15: NA | T15: NA | U15: NA | V15: NA | W15: NA | X15: NA | Y15: NA | Z15: NA | AA15: NA | AB15: NA | AC15: NA | AD15: NA | AE15: NA | AF15: NA | AG15: NA | AH15: NA | AI15: NA | AJ15: NA | AK15: 6020A | AQ15: 24.433 | AU15: 0.0077 | BJ15: 0.0405 | BY15: 0.0129 | BZ15: 0.0444 | CA15: 0.0069 | CB15: 0.0355 | CC15: 0.0116 | CD15: 0.0029 | CE15: 0.0135 | CF15: 0.002 | CG15: 0.0107 | CH15: 0.0018 | CI15: 0.0045 | CJ15: 0.00057 | CK15: 0.0034 | CL15: 0.00046 | CR15: =IF(ISBLANK(FieldSampling1618[[#This Row],[Sample Reference '# ('# required to enable calculations)]]),"",SUM(FieldSampling1618[[#This Row],[La 57]:[Lu 71]])) -> 0.15113 | CS15: =IF(ISBLANK(FieldSampling1618[[#This Row],[Sample Reference '# ('# required to enable calculations)]]),"", SUM(FieldSampling1618[Lanthanides]+FieldSampling1618[Y 39])) -> 0.19163 | CU15: 200.7 | CV15: NA | CX15: 24.583 | CY15: 89.204 | CZ15: 22.203 | DB15: 43.767 | DC15: 1.777 | DI15: 2.087 | DJ15: 684
A16: 6 | B16: raw AMD | C16: WVDEP OSR FREEPORT MINING, Lat. 39.640666, Long. -79.734928 | F16: Resource Production | G16: Coal Mining | H16: Acid Mine Drainage | I16: NAPP | J16: Pennsylvanian | K16: Upper Freeport | L16: WV | M16: Preston | N16: wri AQ-6 | O16: WV | P16: Preston | Q16: wri AQ-6 | R16: 6 | S16: NA | T16: NA | U16: NA | V16: NA | W16: NA | X16: NA | Y16: NA | Z16: NA | AA16: NA | AB16: NA | AC16: NA | AD16: NA | AE16: NA | AF16: NA | AG16: NA | AH16: NA | AI16: NA | AJ16: NA | AK16: 6020A | AQ16: 21.174 | AU16: 0.0068 | BJ16: 0.0363 | BY16: 0.0129 | BZ16: 0.0439 | CA16: 0.0069 | CB16: 0.0348 | CC16: 0.0111 | CD16: 0.0027 | CE16: 0.0133 | CF16: 0.0019 | CG16: 0.0103 | CH16: 0.0017 | CI16: 0.0047 | CJ16: 0.00055 | CK16: 0.0035 | CL16: 0.00044 | CR16: =IF(ISBLANK(FieldSampling1618[[#This Row],[Sample Reference '# ('# required to enable calculations)]]),"",SUM(FieldSampling1618[[#This Row],[La 57]:[Lu 71]])) -> 0.14869 | CS16: =IF(ISBLANK(FieldSampling1618[[#This Row],[Sample Reference '# ('# required to enable calculations)]]),"", SUM(FieldSampling1618[Lanthanides]+FieldSampling1618[Y 39])) -> 0.18499 | CU16: 200.7 | CV16: NA | CX16: 26.493 | CY16: 87.511 | CZ16: 24.655 | DB16: 47.533 | DC16: 1.583 | DI16: 1.183 | DJ16: 704
A17: 7 | B17: raw AMD | C17: WVDEP OSR FREEPORT MINING, Lat. 39.640600, Long. -79.734900 | F17: Resource Production | G17: Coal Mining | H17: Acid Mine Drainage | I17: NAPP | J17: Pennsylvanian | K17: Upper Freeport | L17: WV | M17: Preston | N17: wri AQ-7 | O17: WV | P17: Preston | Q17: wri AQ-7 | R17: 7 | S17: NA | T17: NA | U17: NA | V17: NA | W17: NA | X17: NA | Y17: NA | Z17: NA | AA17: NA | AB17: NA | AC17: NA | AD17: NA | AE17: NA | AF17: NA | AG17: NA | AH17: NA | AI17: NA | AJ17: NA | AK17: 6020A | AQ17: 11.492 | AU17: 0.0089 | BJ17: 0.131 | BY17: 0.0255 | BZ17: 0.0848 | CA17: 0.0136 | CB17: 0.0753 | CC17: 0.0244 | CD17: 0.0068 | CE17: 0.0364 | CF17: 0.0055 | CG17: 0.0327 | CH17: 0.0055 | CI17: 0.0152 | CJ17: 0.0018 | CK17: 0.0113 | CL17: 0.0014 | CR17: =IF(ISBLANK(FieldSampling1618[[#This Row],[Sample Reference '# ('# required to enable calculations)]]),"",SUM(FieldSampling1618[[#This Row],[La 57]:[Lu 71]])) -> 0.3402 | CS17: =IF(ISBLANK(FieldSampling1618[[#This Row],[Sample Reference '# ('# required to enable calculations)]]),"", SUM(FieldSampling1618[Lanthanides]+FieldSampling1618[Y 39])) -> 0.4712 | CU17: 200.7 | CV17: NA | CX17: 25.971 | CY17: 153.149 | CZ17: 4.196 | DB17: 85.41 | DC17: 1.41 | DI17: 1.673 | DJ17: 905
A18: 8 | B18: raw AMD | C18: WVDEP OSR EDWARD E THOMPSON S-1041-89, Lat. 39.701441, Long. -79.863569 | F18: Resource Production | G18: Coal Mining | H18: Acid Mine Drainage | I18: =+I19 -> NAPP | J18: Pennsylvanian | K18: Pittsburgh | L18: =+L19 -> WV | M18: =+M19 -> Monongalia | N18: wri AQ-8 | O18: =+O19 -> WV | P18: =+P19 -> Monongalia | Q18: wri AQ-8 | R18: 8 | S18: NA | T18: NA | U18: NA | V18: NA | W18: NA | X18: NA | Y18: NA | Z18: NA | AA18: NA | AB18: NA | AC18: NA | AD18: NA | AE18: NA | AF18: NA | AG18: NA | AH18: NA | AI18: NA | AJ18: NA | AK18: 6020A | AQ18: 30.186 | AU18: 0.0147 | BJ18: 0.902 | BY18: 0.195 | BZ18: 0.649 | CA18: 0.0953 | CB18: 0.47 | CC18: 0.145 | CD18: 0.0419 | CE18: 0.21 | CF18: 0.0334 | CG18: 0.184 | CH18: 0.0323 | CI18: 0.0819 | CJ18: 0.0104 | CK18: 0.0633 | CL18: 0.0089 | CR18: =IF(ISBLANK(FieldSampling1618[[#This Row],[Sample Reference '# ('# required to enable calculations)]]),"",SUM(FieldSampling1618[[#This Row],[La 57]:[Lu 71]])) -> 2.2204 | CS18: =IF(ISBLANK(FieldSampling1618[[#This Row],[Sample Reference '# ('# required to enable calculations)]]),"", SUM(FieldSampling1618[Lanthanides]+FieldSampling1618[Y 39])) -> 3.1224 | CU18: 200.7 | CV18: NA | CX18: 151.182 | CY18: 344.243 | CZ18: 45.417 | DB18: 254.786 | DC18: 11.441 | DI18: 10.994 | DJ18: 4515
A19: 8 | B19: raw AMD | C19: WVDEP OSR EDWARD E THOMPSON S-1041-89, Lat. 39.701441, Long. -79.863569 | F19: Resource Production | G19: Coal Mining | H19: Acid Mine Drainage | I19: NAPP | J19: Pennsylvanian | K19: Pittsburgh | L19: WV | M19: Monongalia | N19: wri AQ-8 | O19: WV | P19: Monongalia | Q19: wri AQ-8 | R19: 8 | S19: NA | T19: NA | U19: NA | V19: NA | W19: NA | X19: NA | Y19: NA | Z19: NA | AA19: NA | AB19: NA | AC19: NA | AD19: NA | AE19: NA | AF19: NA | AG19: NA | AH19: NA | AI19: NA | AJ19: NA | AK19: 6020A | AQ19: 23.673 | AU19: 0.0081 | BJ19: 0.432 | BY19: 0.103 | BZ19: 0.332 | CA19: 0.0466 | CB19: 0.249 | CC19: 0.0658 | CD19: 0.0196 | CE19: 0.101 | CF19: 0.0157 | CG19: 0.0926 | CH19: 0.016 | CI19: 0.0449 | CJ19: 0.0053 | CK19: 0.034 | CL19: 0.0044 | CR19: =IF(ISBLANK(FieldSampling1618[[#This Row],[Sample Reference '# ('# required to enable calculations)]]),"",SUM(FieldSampling1618[[#This Row],[La 57]:[Lu 71]])) -> 1.1299 | CS19: =IF(ISBLANK(FieldSampling1618[[#This Row],[Sample Reference '# ('# required to enable calculations)]]),"", SUM(FieldSampling1618[Lanthanides]+FieldSampling1618[Y 39])) -> 1.5619 | CU19: 200.7 | CV19: NA | CX19: 87.143 | CY19: 311.572 | CZ19: 54.908 | DB19: 199.164 | DC19: 7.595 | DI19: 4.895 | DJ19: 2260
A20: 9 | B20: raw AMD | C20: WVDEP OSR FARKAS COAL, Lat. 39.719638, Long. -79.874829 | F20: Resource Production | G20: Coal Mining | H20: Acid Mine Drainage | I20: =+I21 -> NAPP | J20: Pennsylvanian | K20: Upper Freeport | L20: =+L21 -> WV | M20: =+M21 -> Monongalia | N20: wri AQ-9 | O20: =+O21 -> WV | P20: =+P21 -> Monongalia | Q20: wri AQ-9 | R20: 9 | S20: NA | T20: NA | U20: NA | V20: NA | W20: NA | X20: NA | Y20: NA | Z20: NA | AA20: NA | AB20: NA | AC20: NA | AD20: NA | AE20: NA | AF20: NA | AG20: NA | AH20: NA | AI20: NA | AJ20: NA | AK20: 6020A | AQ20: 33.803 | AU20: 0.0107 | BJ20: 0.661 | BY20: 0.175 | BZ20: 0.497 | CA20: 0.0741 | CB20: 0.35 | CC20: 0.0898 | CD20: 0.0251 | CE20: 0.128 | CF20: 0.0208 | CG20: 0.12 | CH20: 0.0231 | CI20: 0.0604 | CJ20: 0.008 | CK20: 0.0469 | CL20: 0.0069 | CR20: =IF(ISBLANK(FieldSampling1618[[#This Row],[Sample Reference '# ('# required to enable calculations)]]),"",SUM(FieldSampling1618[[#This Row],[La 57]:[Lu 71]])) -> 1.6251 | CS20: =IF(ISBLANK(FieldSampling1618[[#This Row],[Sample Reference '# ('# required to enable calculations)]]),"", SUM(FieldSampling1618[Lanthanides]+FieldSampling1618[Y 39])) -> 2.2861 | CU20: 200.7 | CV20: NA | CX20: 118.204 | CY20: 171.055 | CZ20: 284.872 | DB20: 94.667 | DC20: 3.2 | DI20: 4.052 | DJ20: 3590
A21: 9 | B21: raw AMD | C21: WVDEP OSR FARKAS COAL, Lat. 39.719638, Long. -79.874829 | F21: Resource Production | G21: Coal Mining | H21: Acid Mine Drainage | I21: NAPP | J21: Pennsylvanian | K21: Upper Freeport | L21: WV | M21: Monongalia | N21: wri AQ-9 | O21: WV | P21: Monongalia | Q21: wri AQ-9 | R21: 9 | S21: NA | T21: NA | U21: NA | V21: NA | W21: NA | X21: NA | Y21: NA | Z21: NA | AA21: NA | AB21: NA | AC21: NA | AD21: NA | AE21: NA | AF21: NA | AG21: NA | AH21: NA | AI21: NA | AJ21: NA | AK21: 6020A | AQ21: 38.329 | AU21: 0.024 | BJ21: 0.516 | BY21: 0.16 | BZ21: 0.492 | CA21: 0.0608 | CB21: 0.369 | CC21: 0.0849 | CD21: 0.0242 | CE21: 0.119 | CF21: 0.0189 | CG21: 0.115 | CH21: 0.0202 | CI21: 0.0588 | CJ21: 0.0072 | CK21: 0.0468 | CL21: 0.006 | CR21: =IF(ISBLANK(FieldSampling1618[[#This Row],[Sample Reference '# ('# required to enable calculations)]]),"",SUM(FieldSampling1618[[#This Row],[La 57]:[Lu 71]])) -> 1.5828 | CS21: =IF(ISBLANK(FieldSampling1618[[#This Row],[Sample Reference '# ('# required to enable calculations)]]),"", SUM(FieldSampling1618[Lanthanides]+FieldSampling1618[Y 39])) -> 2.0988 | CU21: 200.7 | CV21: NA | CX21: 120.009 | CY21: 146.387 | CZ21: 203.257 | DB21: 88.575 | DC21: 2.071 | DI21: 1.759 | DJ21: 1914
A22: 10 | B22: raw AMD | C22: WVDEP OSR ED E DEVELOPMENT, Lat. 39.484679, Long. -79.899918 | F22: Resource Production | G22: Coal Mining | H22: Acid Mine Drainage | I22: =+I23 -> NAPP | J22: Pennsylvanian | K22: M,L Kittanning | L22: WV | M22: Monongalia | N22: wri AQ-10 | O22: =+O23 -> WV | P22: Monongalia | Q22: wri AQ-10 | R22: 10 | S22: NA | T22: NA | U22: NA | V22: NA | W22: NA | X22: NA | Y22: NA | Z22: NA | AA22: NA | AB22: NA | AC22: NA | AD22: NA | AE22: NA | AF22: NA | AG22: NA | AH22: NA | AI22: NA | AJ22: NA | AK22: 6020A | AQ22: 22.982 | AU22: 0.034 | BJ22: 0.124 | BY22: 0.0372 | BZ22: 0.124 | CA22: 0.0169 | CB22: 0.0803 | CC22: 0.0256 | CD22: 0.0065 | CE22: 0.0338 | CF22: 0.0056 | CG22: 0.0315 | CH22: 0.0056 | CI22: 0.0149 | CJ22: 0.0021 | CK22: 0.0124 | CL22: 0.0017 | CR22: =IF(ISBLANK(FieldSampling1618[[#This Row],[Sample Reference '# ('# required to enable calculations)]]),"",SUM(FieldSampling1618[[#This Row],[La 57]:[Lu 71]])) -> 0.3981 | CS22: =IF(ISBLANK(FieldSampling1618[[#This Row],[Sample Reference '# ('# required to enable calculations)]]),"", SUM(FieldSampling1618[Lanthanides]+FieldSampling1618[Y 39])) -> 0.5221 | CU22: 200.7 | CV22: NA | CX22: 63.268 | CY22: 97.599 | CZ22: 31.665 | DB22: 70.706 | DC22: 3.111 | DI22: 3.07 | DJ22: 1170
A23: 10 | B23: raw AMD | C23: WVDEP OSR ED E DEVELOPMENT, Lat. 39.484679, Long. -79.899918 | F23: Resource Production | G23: Coal Mining | H23: Acid Mine Drainage | I23: NAPP | J23: Pennsylvanian | K23: M,L Kittanning | L23: WV | M23: Monongalia | N23: wri AQ-10 | O23: WV | P23: Monongalia | Q23: wri AQ-10 | R23: 10 | S23: NA | T23: NA | U23: NA | V23: NA | W23: NA | X23: NA | Y23: NA | Z23: NA | AA23: NA | AB23: NA | AC23: NA | AD23: NA | AE23: NA | AF23: NA | AG23: NA | AH23: NA | AI23: NA | AJ23: NA | AK23: 6020A | AQ23: 23.073 | AU23: 0.0346 | BJ23: 0.118 | BY23: 0.0352 | BZ23: 0.118 | CA23: 0.016 | CB23: 0.0749 | CC23: 0.0246 | CD23: 0.0063 | CE23: 0.0322 | CF23: 0.0053 | CG23: 0.0299 | CH23: 0.0052 | CI23: 0.014 | CJ23: 0.0019 | CK23: 0.0117 | CL23: 0.0016 | CR23: =IF(ISBLANK(FieldSampling1618[[#This Row],[Sample Reference '# ('# required to enable calculations)]]),"",SUM(FieldSampling1618[[#This Row],[La 57]:[Lu 71]])) -> 0.3768 | CS23: =IF(ISBLANK(FieldSampling1618[[#This Row],[Sample Reference '# ('# required to enable calculations)]]),"", SUM(FieldSampling1618[Lanthanides]+FieldSampling1618[Y 39])) -> 0.4948 | CU23: 200.7 | CV23: NA | CX23: 63.252 | CY23: 95.978 | CZ23: 32.289 | DB23: 70.16 | DC23: 3.092 | DI23: 3.361 | DJ23: 1140
A24: 10 | B24: raw AMD | C24: WVDEP OSR ED E DEVELOPMENT, Lat. 39.484679, Long. -79.899918 | F24: Resource Production | G24: Coal Mining | H24: Acid Mine Drainage | I24: NAPP | J24: Pennsylvanian | K24: M,L Kittanning | L24: WV | M24: Monongalia | N24: wri AQ-10 | O24: WV | P24: Monongalia | Q24: wri AQ-10 | R24: 10 | S24: NA | T24: NA | U24: NA | V24: NA | W24: NA | X24: NA | Y24: NA | Z24: NA | AA24: NA | AB24: NA | AC24: NA | AD24: NA | AE24: NA | AF24: NA | AG24: NA | AH24: NA | AI24: NA | AJ24: NA | AK24: 6020A | AQ24: 17.781 | AU24: 0.0196 | BJ24: 0.0846 | BY24: 0.0263 | BZ24: 0.0841 | CA24: 0.0118 | CB24: 0.0602 | CC24: 0.0174 | CD24: 0.0045 | CE24: 0.0249 | CF24: 0.0039 | CG24: 0.0236 | CH24: 0.004 | CI24: 0.0116 | CJ24: 0.0014 | CK24: 0.0092 | CL24: 0.0012 | CR24: =IF(ISBLANK(FieldSampling1618[[#This Row],[Sample Reference '# ('# required to enable calculations)]]),"",SUM(FieldSampling1618[[#This Row],[La 57]:[Lu 71]])) -> 0.2841 | CS24: =IF(ISBLANK(FieldSampling1618[[#This Row],[Sample Reference '# ('# required to enable calculations)]]),"", SUM(FieldSampling1618[Lanthanides]+FieldSampling1618[Y 39])) -> 0.3687 | CU24: 200.7 | CV24: NA | CX24: 45.965 | CY24: 69.03 | CZ24: 13.132 | DB24: 54.608 | DC24: 1.911 | DI24: 1.326 | DJ24: 807
A25: 11 | B25: raw AMD | C25: WVDEP OSR S. KELLY INDUSTRIES, Lat. 39.515335, Long. -79.949859 | F25: Resource Production | G25: Coal Mining | H25: Acid Mine Drainage | I25: NAPP | J25: Pennsylvanian | K25: Upper Freeport | L25: WV | M25: Monongalia | N25: wri AQ-11 | O25: WV | P25: Monongalia | Q25: wri AQ-11 | R25: 11 | S25: NA | T25: NA | U25: NA | V25: NA | W25: NA | X25: NA | Y25: NA | Z25: NA | AA25: NA | AB25: NA | AC25: NA | AD25: NA | AE25: NA | AF25: NA | AG25: NA | AH25: NA | AI25: NA | AJ25: NA | AK25: 6020A | AQ25: 18.787 | AU25: 0.0029 | BJ25: 0.0545 | BY25: 0.0185 | BZ25: 0.0618 | CA25: 0.0091 | CB25: 0.046 | CC25: 0.0139 | CD25: 0.0039 | CE25: 0.0184 | CF25: 0.0028 | CG25: 0.0154 | CH25: 0.0024 | CI25: 0.0067 | CJ25: 0.0008 | CK25: 0.0052 | CL25: 0.00068 | CR25: =IF(ISBLANK(FieldSampling1618[[#This Row],[Sample Reference '# ('# required to enable calculations)]]),"",SUM(FieldSampling1618[[#This Row],[La 57]:[Lu 71]])) -> 0.20558 | CS25: =IF(ISBLANK(FieldSampling1618[[#This Row],[Sample Reference '# ('# required to enable calculations)]]),"", SUM(FieldSampling1618[Lanthanides]+FieldSampling1618[Y 39])) -> 0.26008 | CU25: 200.7 | CV25: NA | CX25: 26.654 | CY25: 113.706 | CZ25: 3.852 | DB25: 42.324 | DC25: 1.189 | DI25: 1.181 | DJ25: 627
A26: 11 | B26: raw AMD | C26: WVDEP OSR S. KELLY INDUSTRIES, Lat. 39.515335, Long. -79.949859 | F26: Resource Production | G26: Coal Mining | H26: Acid Mine Drainage | I26: =+I25 -> NAPP | J26: Pennsylvanian | K26: Upper Freeport | L26: =+L25 -> WV | M26: =+M25 -> Monongalia | N26: wri AQ-11 | O26: =+O25 -> WV | P26: =+P25 -> Monongalia | Q26: wri AQ-11 | R26: 11 | S26: NA | T26: NA | U26: NA | V26: NA | W26: NA | X26: NA | Y26: NA | Z26: NA | AA26: NA | AB26: NA | AC26: NA | AD26: NA | AE26: NA | AF26: NA | AG26: NA | AH26: NA | AI26: NA | AJ26: NA | AK26: 6020A | AQ26: 17.558 | AU26: 0.0032 | BJ26: 0.0516 | BY26: 0.0152 | BZ26: 0.0539 | CA26: 0.0074 | CB26: 0.0356 | CC26: 0.0116 | CD26: 0.0032 | CE26: 0.0149 | CF26: 0.0022 | CG26: 0.0117 | CH26: 0.0021 | CI26: 0.0056 | CJ26: 0.00071 | CK26: 0.0042 | CL26: 0.00059 | CR26: =IF(ISBLANK(FieldSampling1618[[#This Row],[Sample Reference '# ('# required to enable calculations)]]),"",SUM(FieldSampling1618[[#This Row],[La 57]:[Lu 71]])) -> 0.1689 | CS26: =IF(ISBLANK(FieldSampling1618[[#This Row],[Sample Reference '# ('# required to enable calculations)]]),"", SUM(FieldSampling1618[Lanthanides]+FieldSampling1618[Y 39])) -> 0.2205 | CU26: 200.7 | CV26: NA | CX26: 19.671 | CY26: 106.485 | CZ26: 5.651 | DB26: 38.602 | DC26: 1.104 | DI26: 1.129 | DJ26: 495
A27: 12 | B27: raw AMD | C27: WVDEP OSR Z & F DEVELOPMENT, Lat. 39.555629, Long. -80.031582 | F27: Resource Production | G27: Coal Mining | H27: Acid Mine Drainage | I27: NAPP | J27: Pennsylvanian | K27: Upper Freeport | L27: WV | M27: Monongalia | N27: wri AQ-12 | O27: WV | P27: Monongalia | Q27: wri AQ-12 | R27: 12 | S27: NA | T27: NA | U27: NA | V27: NA | W27: NA | X27: NA | Y27: NA | Z27: NA | AA27: NA | AB27: NA | AC27: NA | AD27: NA | AE27: NA | AF27: NA | AG27: NA | AH27: NA | AI27: NA | AJ27: NA | AK27: 6020A | AQ27: 18.877 | AU27: 0.0045 | BJ27: 0.0423 | BY27: 0.0323 | BZ27: 0.0929 | CA27: 0.0126 | CB27: 0.0573 | CC27: 0.0134 | CD27: 0.0033 | CE27: 0.0148 | CF27: 0.0021 | CG27: 0.0112 | CH27: 0.0017 | CI27: 0.0048 | CJ27: 0.00056 | CK27: 0.0036 | CL27: 0.00046 | CR27: =IF(ISBLANK(FieldSampling1618[[#This Row],[Sample Reference '# ('# required to enable calculations)]]),"",SUM(FieldSampling1618[[#This Row],[La 57]:[Lu 71]])) -> 0.25102 | CS27: =IF(ISBLANK(FieldSampling1618[[#This Row],[Sample Reference '# ('# required to enable calculations)]]),"", SUM(FieldSampling1618[Lanthanides]+FieldSampling1618[Y 39])) -> 0.29332 | CU27: 200.7 | CV27: NA | CX27: 31.08 | CY27: 64.53 | CZ27: 33.651 | DB27: 19.389 | DC27: 1.376 | DI27: 1.082 | DJ27: 652
A28: 12 | B28: raw AMD | C28: WVDEP OSR Z & F DEVELOPMENT, Lat. 39.555629, Long. -80.031582 | F28: Resource Production | G28: Coal Mining | H28: Acid Mine Drainage | I28: =+I29 -> CAPP | J28: Pennsylvanian | K28: #2 Gas | L28: =+L29 -> WV | M28: =+M29 -> Kanawha | N28: wri AQ-12 | O28: =+O29 -> WV | P28: =+P29 -> Kanawha | Q28: wri AQ-12 | R28: 12 | S28: NA | T28: NA | U28: NA | V28: NA | W28: NA | X28: NA | Y28: NA | Z28: NA | AA28: NA | AB28: NA | AC28: NA | AD28: NA | AE28: NA | AF28: NA | AG28: NA | AH28: NA | AI28: NA | AJ28: NA | AK28: 6020A | AQ28: 40.978 | AU28: 0.0058 | BJ28: 0.0614 | BY28: 0.0352 | BZ28: 0.106 | CA28: 0.0135 | CB28: 0.059 | CC28: 0.0155 | CD28: 0.0038 | CE28: 0.0171 | CF28: 0.0024 | CG28: 0.0127 | CH28: 0.0023 | CI28: 0.006 | CJ28: 0.00073 | CK28: 0.0043 | CL28: 0.00059 | CR28: =IF(ISBLANK(FieldSampling1618[[#This Row],[Sample Reference '# ('# required to enable calculations)]]),"",SUM(FieldSampling1618[[#This Row],[La 57]:[Lu 71]])) -> 0.27912 | CS28: =IF(ISBLANK(FieldSampling1618[[#This Row],[Sample Reference '# ('# required to enable calculations)]]),"", SUM(FieldSampling1618[Lanthanides]+FieldSampling1618[Y 39])) -> 0.34052 | CU28: 200.7 | CV28: NA | CX28: 37.437 | CY28: 119.53 | CZ28: 14.988 | DB28: 29.665 | DC28: 2.576 | DI28: 1.909 | DJ28: 769
A29: 13 | B29: raw AMD | C29: Restricted under terms of access NDA | F29: Resource Production | G29: Coal Mining | H29: Acid Mine Drainage | I29: CAPP | J29: Pennsylvanian | K29: #2 Gas | L29: WV | M29: Kanawha | N29: wri AQ-13 | O29: WV | P29: Kanawha | Q29: wri AQ-13 | R29: 13 | S29: NA | T29: NA | U29: NA | V29: NA | W29: NA | X29: NA | Y29: NA | Z29: NA | AA29: NA | AB29: NA | AC29: NA | AD29: NA | AE29: NA | AF29: NA | AG29: NA | AH29: NA | AI29: NA | AJ29: NA | AK29: 6020A | AQ29: 20.301 | AU29: 0.0033 | BJ29: 0.0329 | BY29: 0.0105 | BZ29: 0.0326 | CA29: 0.0051 | CB29: 0.029 | CC29: 0.0092 | CD29: 0.0023 | CE29: 0.0122 | CF29: 0.0017 | CG29: 0.0097 | CH29: 0.0016 | CI29: 0.0043 | CJ29: 0.00054 | CK29: 0.0032 | CL29: 0.00045 | CR29: =IF(ISBLANK(FieldSampling1618[[#This Row],[Sample Reference '# ('# required to enable calculations)]]),"",SUM(FieldSampling1618[[#This Row],[La 57]:[Lu 71]])) -> 0.12239 | CS29: =IF(ISBLANK(FieldSampling1618[[#This Row],[Sample Reference '# ('# required to enable calculations)]]),"", SUM(FieldSampling1618[Lanthanides]+FieldSampling1618[Y 39])) -> 0.15529 | CU29: 200.7 | CV29: NA | CX29: 25.423 | CY29: 119.735 | CZ29: 2.582 | DB29: 110.429 | DC29: 38.443 | DI29: 1.142 | DJ29: 1100
A30: 14 | B30: raw AMD | C30: Restricted under terms of access NDA | F30: Resource Production | G30: Coal Mining | H30: Acid Mine Drainage | I30: CAPP | J30: Pennsylvanian | K30: Unknown | L30: WV | M30: Kanawha | N30: wri AQ-14 | O30: WV | P30: Kanawha | Q30: wri AQ-14 | R30: 14 | S30: NA | T30: NA | U30: NA | V30: NA | W30: NA | X30: NA | Y30: NA | Z30: NA | AA30: NA | AB30: NA | AC30: NA | AD30: NA | AE30: NA | AF30: NA | AG30: NA | AH30: NA | AI30: NA | AJ30: NA | AK30: 6020A | AQ30: 28.982 | AU30: 0.0018 | BJ30: 0.0225 | BY30: 0.0107 | BZ30: 0.0286 | CA30: 0.0043 | CB30: 0.0233 | CC30: 0.0062 | CD30: 0.0015 | CE30: 0.0075 | CF30: 0.00099 | CG30: 0.0058 | CH30: 0.00094 | CI30: 0.0026 | CJ30: 0.00033 | CK30: 0.0019 | CL30: 0.00029 | CR30: =IF(ISBLANK(FieldSampling1618[[#This Row],[Sample Reference '# ('# required to enable calculations)]]),"",SUM(FieldSampling1618[[#This Row],[La 57]:[Lu 71]])) -> 0.09495 | CS30: =IF(ISBLANK(FieldSampling1618[[#This Row],[Sample Reference '# ('# required to enable calculations)]]),"", SUM(FieldSampling1618[Lanthanides]+FieldSampling1618[Y 39])) -> 0.11745 | CU30: 200.7 | CV30: NA | CX30: 13.403 | CY30: 99.044 | CZ30: 150.52 | DB30: 74.699 | DC30: 21.501 | DI30: 1.124 | DJ30: 1100
A31: 15 | B31: raw AMD | C31: Restricted under terms of access NDA | F31: Resource Production | G31: Coal Mining | H31: Acid Mine Drainage | I31: CAPP | J31: Pennsylvanian | K31: Powellton | L31: WV | M31: Kanawha | N31: wri AQ-15 | O31: WV | P31: Kanawha | Q31: wri AQ-15 | R31: 15 | S31: NA | T31: NA | U31: NA | V31: NA | W31: NA | X31: NA | Y31: NA | Z31: NA | AA31: NA | AB31: NA | AC31: NA | AD31: NA | AE31: NA | AF31: NA | AG31: NA | AH31: NA | AI31: NA | AJ31: NA | AK31: 6020A | AQ31: 19.121 | AU31: 0.0057 | BJ31: 0.046 | BY31: 0.0156 | BZ31: 0.0531 | CA31: 0.0085 | CB31: 0.047 | CC31: 0.0148 | CD31: 0.0037 | CE31: 0.0183 | CF31: 0.0025 | CG31: 0.0144 | CH31: 0.0023 | CI31: 0.0063 | CJ31: 0.00082 | CK31: 0.005 | CL31: 0.0007 | CR31: =IF(ISBLANK(FieldSampling1618[[#This Row],[Sample Reference '# ('# required to enable calculations)]]),"",SUM(FieldSampling1618[[#This Row],[La 57]:[Lu 71]])) -> 0.19302 | CS31: =IF(ISBLANK(FieldSampling1618[[#This Row],[Sample Reference '# ('# required to enable calculations)]]),"", SUM(FieldSampling1618[Lanthanides]+FieldSampling1618[Y 39])) -> 0.23902 | CU31: 200.7 | CV31: NA | CX31: 35.619 | CY31: 114.416 | CZ31: 0.814 | DB31: 92.978 | DC31: 44.431 | DI31: 4.164 | DJ31: 1090
A32: 16 | B32: raw AMD | C32: Restricted under terms of access NDA | F32: Resource Production | G32: Coal Mining | H32: Acid Mine Drainage | I32: CAPP | J32: Pennsylvanian | K32: Eagle | L32: WV | M32: Kanawha | N32: wri AQ-16 | O32: WV | P32: Kanawha | Q32: wri AQ-16 | R32: 16 | S32: NA | T32: NA | U32: NA | V32: NA | W32: NA | X32: NA | Y32: NA | Z32: NA | AA32: NA | AB32: NA | AC32: NA | AD32: NA | AE32: NA | AF32: NA | AG32: NA | AH32: NA | AI32: NA | AJ32: NA | AK32: 6020A | AQ32: 4.986 | AU32: 0.00046 | BJ32: 0.00044 | BY32: 9.8e-05 | BZ32: 0.00018 | CA32: 2.5e-05 | CB32: 0.00013 | CC32: 3.5e-05 | CD32: 0 | CE32: 8.4e-05 | CF32: 0 | CG32: 6.3e-05 | CH32: 0 | CI32: 2.8e-05 | CJ32: 0 | CK32: 0 | CL32: 0 | CR32: =IF(ISBLANK(FieldSampling1618[[#This Row],[Sample Reference '# ('# required to enable calculations)]]),"",SUM(FieldSampling1618[[#This Row],[La 57]:[Lu 71]])) -> 0.000643 | CS32: =IF(ISBLANK(FieldSampling1618[[#This Row],[Sample Reference '# ('# required to enable calculations)]]),"", SUM(FieldSampling1618[Lanthanides]+FieldSampling1618[Y 39])) -> 0.001083 | CU32: 200.7 | CV32: NA | CX32: 0.058 | CY32: 152.009 | CZ32: 5.669 | DB32: 89.671 | DC32: 65.486 | DI32: 4.954 | DJ32: 785
A33: 17 | B33: raw AMD | C33: Restricted under terms of access NDA | F33: Resource Production | G33: Coal Mining | H33: Acid Mine Drainage | I33: CAPP | J33: Pennsylvanian | K33: 5 Block | L33: WV | M33: Kanawha | N33: wri AQ-17 | O33: WV | P33: Kanawha | Q33: wri AQ-17 | R33: 17 | S33: NA | T33: NA | U33: NA | V33: NA | W33: NA | X33: NA | Y33: NA | Z33: NA | AA33: NA | AB33: NA | AC33: NA | AD33: NA | AE33: NA | AF33: NA | AG33: NA | AH33: NA | AI33: NA | AJ33: NA | AK33: 6020A | AQ33: 12.633 | AU33: 0.0021 | BJ33: 0.0602 | BY33: 0.0438 | BZ33: 0.0929 | CA33: 0.0125 | CB33: 0.0553 | CC33: 0.012 | CD33: 0.0029 | CE33: 0.0152 | CF33: 0.0021 | CG33: 0.0129 | CH33: 0.0021 | CI33: 0.0058 | CJ33: 0.00074 | CK33: 0.0046 | CL33: 0.00063 | CR33: =IF(ISBLANK(FieldSampling1618[[#This Row],[Sample Reference '# ('# required to enable calculations)]]),"",SUM(FieldSampling1618[[#This Row],[La 57]:[Lu 71]])) -> 0.26347 | CS33: =IF(ISBLANK(FieldSampling1618[[#This Row],[Sample Reference '# ('# required to enable calculations)]]),"", SUM(FieldSampling1618[Lanthanides]+FieldSampling1618[Y 39])) -> 0.32367 | CU33: 200.7 | CV33: NA | CX33: 16.4 | CY33: 68.688 | CZ33: 0.232 | DB33: 86.426 | DC33: 2.462 | DI33: 1.053 | DJ33: 672
A34: 18 | B34: raw AMD | C34: Restricted under terms of access NDA | F34: Resource Production | G34: Coal Mining | H34: Acid Mine Drainage | I34: =+I35 -> CAPP | J34: Pennsylvanian | K34: Coalburg | L34: =+L35 -> WV | M34: =+M35 -> Kanawha | N34: wri AQ-18 | O34: =+O35 -> WV | P34: =+P35 -> Kanawha | Q34: wri AQ-18 | R34: 18 | S34: NA | T34: NA | U34: NA | V34: NA | W34: NA | X34: NA | Y34: NA | Z34: NA | AA34: NA | AB34: NA | AC34: NA | AD34: NA | AE34: NA | AF34: NA | AG34: NA | AH34: NA | AI34: NA | AJ34: NA | AK34: 6020A | AU34: 0 | BJ34: 0.015 | BY34: 0.003 | BZ34: 0.011 | CA34: 0 | CB34: 0.011 | CC34: 0 | CD34: 0 | CE34: 0.004 | CF34: 0 | CG34: 0 | CH34: 0 | CI34: 0 | CJ34: 0 | CK34: 0 | CL34: 0 | CR34: =IF(ISBLANK(FieldSampling1618[[#This Row],[Sample Reference '# ('# required to enable calculations)]]),"",SUM(FieldSampling1618[[#This Row],[La 57]:[Lu 71]])) -> 0.029 | CS34: =IF(ISBLANK(FieldSampling1618[[#This Row],[Sample Reference '# ('# required to enable calculations)]]),"", SUM(FieldSampling1618[Lanthanides]+FieldSampling1618[Y 39])) -> 0.044 | CU34: 200.7 | CV34: NA
A35: 18 | B35: raw AMD | C35: Restricted under terms of access NDA | F35: Resource Production | G35: Coal Mining | H35: Acid Mine Drainage | I35: CAPP | J35: Pennsylvanian | K35: Coalburg | L35: WV | M35: Kanawha | N35: wri AQ-18 | O35: WV | P35: Kanawha | Q35: wri AQ-18 | R35: 18 | S35: NA | T35: NA | U35: NA | V35: NA | W35: NA | X35: NA | Y35: NA | Z35: NA | AA35: NA | AB35: NA | AC35: NA | AD35: NA | AE35: NA | AF35: NA | AG35: NA | AH35: NA | AI35: NA | AJ35: NA | AK35: 6020A | AQ35: 7.198 | AU35: 0.0022 | BJ35: 0.0227 | BY35: 0.0046 | BZ35: 0.0176 | CA35: 0.003 | CB35: 0.0186 | CC35: 0.006 | CD35: 0.0016 | CE35: 0.0083 | CF35: 0.0011 | CG35: 0.0062 | CH35: 0.00098 | CI35: 0.0027 | CJ35: 0.00033 | CK35: 0.0019 | CL35: 0.00028 | CR35: =IF(ISBLANK(FieldSampling1618[[#This Row],[Sample Reference '# ('# required to enable calculations)]]),"",SUM(FieldSampling1618[[#This Row],[La 57]:[Lu 71]])) -> 0.07319 | CS35: =IF(ISBLANK(FieldSampling1618[[#This Row],[Sample Reference '# ('# required to enable calculations)]]),"", SUM(FieldSampling1618[Lanthanides]+FieldSampling1618[Y 39])) -> 0.09589 | CU35: 200.7 | CV35: NA | CX35: 9.964 | CY35: 141.477 | CZ35: 3.585 | DB35: 84.975 | DC35: 41.502 | DI35: 41.49 | DJ35: 775
A36: 19 | B36: raw AMD | C36: Restricted under terms of access NDA | F36: Resource Production | G36: Coal Mining | H36: Acid Mine Drainage | I36: CAPP | J36: Pennsylvanian | K36: Coalburg | L36: WV | M36: Kanawha | N36: wri AQ-19 | O36: WV | P36: Kanawha | Q36: wri AQ-19 | R36: 19 | S36: NA | T36: NA | U36: NA | V36: NA | W36: NA | X36: NA | Y36: NA | Z36: NA | AA36: NA | AB36: NA | AC36: NA | AD36: NA | AE36: NA | AF36: NA | AG36: NA | AH36: NA | AI36: NA | AJ36: NA | AK36: 6020A | AQ36: 3.135 | AU36: 0.00032 | BJ36: 0.001 | BY36: 0.00029 | BZ36: 0.00042 | CA36: 8.6e-05 | CB36: 0.00047 | CC36: 0.00014 | CD36: 3.3e-05 | CE36: 0.00023 | CF36: 2.9e-05 | CG36: 0.00015 | CH36: 3.5e-05 | CI36: 0.00011 | CJ36: 0 | CK36: 0.00012 | CL36: 2.9e-05 | CR36: =IF(ISBLANK(FieldSampling1618[[#This Row],[Sample Reference '# ('# required to enable calculations)]]),"",SUM(FieldSampling1618[[#This Row],[La 57]:[Lu 71]])) -> 0.002142 | CS36: =IF(ISBLANK(FieldSampling1618[[#This Row],[Sample Reference '# ('# required to enable calculations)]]),"", SUM(FieldSampling1618[Lanthanides]+FieldSampling1618[Y 39])) -> 0.003142 | CU36: 200.7 | CV36: NA | CX36: 0.096 | CY36: 121.485 | CZ36: 5.977 | DB36: 57.115 | DC36: 123.001 | DI36: 6.62 | DJ36: 497
A37: 20 | B37: raw AMD | C37: Restricted under terms of access NDA | F37: Resource Production | G37: Coal Mining | H37: Acid Mine Drainage | I37: NAPP | J37: Pennsylvanian | K37: Freeport | L37: PA | M37: Cambria | N37: wri AQ-20 | O37: PA | P37: Cambria | Q37: wri AQ-20 | R37: 20 | S37: NA | T37: NA | U37: NA | V37: NA | W37: NA | X37: NA | Y37: NA | Z37: NA | AA37: NA | AB37: NA | AC37: NA | AD37: NA | AE37: NA | AF37: NA | AG37: NA | AH37: NA | AI37: NA | AJ37: NA | AK37: 6020A | AQ37: 7.318 | AU37: 0.00055 | BJ37: 0.00074 | BY37: 5.4e-05 | BZ37: 0.00017 | CA37: 2.6e-05 | CB37: 0.00018 | CC37: 4.5e-05 | CD37: 0 | CE37: 0.00013 | CF37: 2e-05 | CG37: 0.00013 | CH37: 0 | CI37: 6.8e-05 | CJ37: 0 | CK37: 4.7e-05 | CL37: 0 | CR37: =IF(ISBLANK(FieldSampling1618[[#This Row],[Sample Reference '# ('# required to enable calculations)]]),"",SUM(FieldSampling1618[[#This Row],[La 57]:[Lu 71]])) -> 0.00087 | CS37: =IF(ISBLANK(FieldSampling1618[[#This Row],[Sample Reference '# ('# required to enable calculations)]]),"", SUM(FieldSampling1618[Lanthanides]+FieldSampling1618[Y 39])) -> 0.00161 | CU37: 200.7 | CV37: NA | CX37: 0.0245 | CY37: 81.486 | CZ37: 47.796 | DB37: 25.899 | DC37: 36.862 | DI37: 0.859 | DJ37: 336
A38: 21 | B38: raw AMD | C38: PADEP - Lancashire #15 or Barnes & Tucker MineOperated by Denny Lloyd, Lat. 40.628946, Long. -78.770555 | F38: Resource Production | G38: Coal Mining | H38: Acid Mine Drainage | I38: =+I39 -> NAPP | J38: Pennsylvanian | K38: Kittanning B | L38: =+L39 -> PA | M38: =+M39 -> Cambria | N38: wri AQ-21 | O38: =+O39 -> PA | P38: =+P39 -> Cambria | Q38: wri AQ-21 | R38: 21 | S38: NA | T38: NA | U38: NA | V38: NA | W38: NA | X38: NA | Y38: NA | Z38: NA | AA38: NA | AB38: NA | AC38: NA | AD38: NA | AE38: NA | AF38: NA | AG38: NA | AH38: NA | AI38: NA | AJ38: NA | AK38: 6020A | AQ38: 9.14 | AU38: 0.0011 | BJ38: 0.0022 | BY38: 0.00046 | BZ38: 0.0017 | CA38: 0.0002 | CB38: 0.00091 | CC38: 0.0002 | CD38: 6.9e-05 | CE38: 0.00037 | CF38: 7.6e-05 | CG38: 0.00036 | CH38: 7e-05 | CI38: 0.00017 | CJ38: 2.7e-05 | CK38: 0.00017 | CL38: 2.4e-05 | CR38: =IF(ISBLANK(FieldSampling1618[[#This Row],[Sample Reference '# ('# required to enable calculations)]]),"",SUM(FieldSampling1618[[#This Row],[La 57]:[Lu 71]])) -> 0.004806 | CS38: =IF(ISBLANK(FieldSampling1618[[#This Row],[Sample Reference '# ('# required to enable calculations)]]),"", SUM(FieldSampling1618[Lanthanides]+FieldSampling1618[Y 39])) -> 0.007006 | CU38: 200.7 | CV38: NA | CX38: 0.39 | CY38: 35.269 | CZ38: 27.433 | DB38: 11.886 | DC38: 166.901 | DI38: 9.302 | DJ38: 313
A39: 21 | B39: raw AMD | C39: PADEP - Lancashire #15 or Barnes & Tucker MineOperated by Denny Lloyd, Lat. 40.628946, Long. -78.770555 | F39: Resource Production | G39: Coal Mining | H39: Acid Mine Drainage | I39: NAPP | J39: Pennsylvanian | K39: Kittanning B | L39: PA | M39: Cambria | N39: wri AQ-21 | O39: PA | P39: Cambria | Q39: wri AQ-21 | R39: 21 | S39: NA | T39: NA | U39: NA | V39: NA | W39: NA | X39: NA | Y39: NA | Z39: NA | AA39: NA | AB39: NA | AC39: NA | AD39: NA | AE39: NA | AF39: NA | AG39: NA | AH39: NA | AI39: NA | AJ39: NA | AK39: 6020A | AQ39: 9.623 | AU39: 0.00078 | BJ39: 0.0026 | BY39: 0.00057 | BZ39: 0.0016 | CA39: 0.00019 | CB39: 0.00095 | CC39: 0.00029 | CD39: 7.7e-05 | CE39: 0.00046 | CF39: 7.1e-05 | CG39: 0.00048 | CH39: 8.1e-05 | CI39: 0.00023 | CJ39: 2.8e-05 | CK39: 0.00016 | CL39: 2.2e-05 | CR39: =IF(ISBLANK(FieldSampling1618[[#This Row],[Sample Reference '# ('# required to enable calculations)]]),"",SUM(FieldSampling1618[[#This Row],[La 57]:[Lu 71]])) -> 0.005209 | CS39: =IF(ISBLANK(FieldSampling1618[[#This Row],[Sample Reference '# ('# required to enable calculations)]]),"", SUM(FieldSampling1618[Lanthanides]+FieldSampling1618[Y 39])) -> 0.007809 | CU39: 200.7 | CV39: NA | CX39: 0.339 | CY39: 77.317 | CZ39: 51.363 | DB39: 28.778 | DC39: 224.85 | DI39: 8.746 | DJ39: 327
A40: 22 | B40: raw AMD | C40: Restricted under terms of access NDA | F40: Resource Production | G40: Coal Mining | H40: Acid Mine Drainage | I40: NAPP | J40: Pennsylvanian | K40: Kittanning B | L40: PA | M40: Indianna | N40: wri AQ-22 | O40: PA | P40: Indianna | Q40: wri AQ-22 | R40: 22 | S40: NA | T40: NA | U40: NA | V40: NA | W40: NA | X40: NA | Y40: NA | Z40: NA | AA40: NA | AB40: NA | AC40: NA | AD40: NA | AE40: NA | AF40: NA | AG40: NA | AH40: NA | AI40: NA | AJ40: NA | AK40: 6020A | AQ40: 4.974 | AU40: 0.0004 | BJ40: 0.00038 | BY40: 0 | BZ40: 7.3e-05 | CA40: 0 | CB40: 7e-05 | CC40: 0 | CD40: 0 | CE40: 5.3e-05 | CF40: 0 | CG40: 6.1e-05 | CH40: 0 | CI40: 4.1e-05 | CJ40: 0 | CK40: 3e-05 | CL40: 0 | CR40: =IF(ISBLANK(FieldSampling1618[[#This Row],[Sample Reference '# ('# required to enable calculations)]]),"",SUM(FieldSampling1618[[#This Row],[La 57]:[Lu 71]])) -> 0.000328 | CS40: =IF(ISBLANK(FieldSampling1618[[#This Row],[Sample Reference '# ('# required to enable calculations)]]),"", SUM(FieldSampling1618[Lanthanides]+FieldSampling1618[Y 39])) -> 0.000708 | CU40: 200.7 | CV40: NA | CX40: 0.0245 | CY40: 86.098 | CZ40: 21.249 | DB40: 21.14 | DC40: 114.359 | DI40: 4.277 | DJ40: 191
A41: 23 | B41: raw AMD | C41: Restricted under terms of access NDA | F41: Resource Production | G41: Coal Mining | H41: Acid Mine Drainage | I41: NAPP | J41: Pennsylvanian | K41: Freeport | L41: PA | M41: Westmoreland | N41: wri AQ-23 | O41: PA | P41: Westmoreland | Q41: wri AQ-23 | R41: 23 | S41: NA | T41: NA | U41: NA | V41: NA | W41: NA | X41: NA | Y41: NA | Z41: NA | AA41: NA | AB41: NA | AC41: NA | AD41: NA | AE41: NA | AF41: NA | AG41: NA | AH41: NA | AI41: NA | AJ41: NA | AK41: 6020A | AQ41: 43.175 | AU41: 0.0121 | BJ41: 0.0951 | BY41: 0.0259 | BZ41: 0.0864 | CA41: 0.0154 | CB41: 0.0854 | CC41: 0.0249 | CD41: 0.0066 | CE41: 0.0316 | CF41: 0.0044 | CG41: 0.0252 | CH41: 0.0038 | CI41: 0.0102 | CJ41: 0.0012 | CK41: 0.0077 | CL41: 0.001 | CR41: =IF(ISBLANK(FieldSampling1618[[#This Row],[Sample Reference '# ('# required to enable calculations)]]),"",SUM(FieldSampling1618[[#This Row],[La 57]:[Lu 71]])) -> 0.3297 | CS41: =IF(ISBLANK(FieldSampling1618[[#This Row],[Sample Reference '# ('# required to enable calculations)]]),"", SUM(FieldSampling1618[Lanthanides]+FieldSampling1618[Y 39])) -> 0.4248 | CU41: 200.7 | CV41: NA | CX41: 103.46 | CY41: 197.12 | CZ41: 85.463 | DB41: 40.286 | DC41: 6.069 | DI41: 3.679 | DJ41: 1550
A42: 24 | B42: raw AMD | C42: Restricted under terms of access NDA | F42: Resource Production | G42: Coal Mining | H42: Acid Mine Drainage | I42: NAPP | J42: Pennsylvanian | K42: Pittsburgh | L42: PA | M42: Greene | N42: wri AQ-24 | O42: PA | P42: Greene | Q42: wri AQ-24 | R42: 24 | S42: NA | T42: NA | U42: NA | V42: NA | W42: NA | X42: NA | Y42: NA | Z42: NA | AA42: NA | AB42: NA | AC42: NA | AD42: NA | AE42: NA | AF42: NA | AG42: NA | AH42: NA | AI42: NA | AJ42: NA | AK42: 6020A | AQ42: 8.168 | AU42: 0.00079 | BJ42: 0.006 | BY42: 0.00042 | BZ42: 0.0014 | CA42: 0.00024 | CB42: 0.0014 | CC42: 0.00038 | CD42: 0.00013 | CE42: 0.00092 | CF42: 0.00014 | CG42: 0.00079 | CH42: 0.00017 | CI42: 0.00047 | CJ42: 5.4e-05 | CK42: 0.00029 | CL42: 3.9e-05 | CR42: =IF(ISBLANK(FieldSampling1618[[#This Row],[Sample Reference '# ('# required to enable calculations)]]),"",SUM(FieldSampling1618[[#This Row],[La 57]:[Lu 71]])) -> 0.006843 | CS42: =IF(ISBLANK(FieldSampling1618[[#This Row],[Sample Reference '# ('# required to enable calculations)]]),"", SUM(FieldSampling1618[Lanthanides]+FieldSampling1618[Y 39])) -> 0.012843 | CU42: 200.7 | CV42: NA | CX42: 0.071 | CY42: 276.579 | CZ42: 115.424 | DB42: 106.567 | DC42: 1501.15 | DI42: 914.2 | DJ42: 3600
A43: 25 | B43: raw AMD | C43: Restricted under terms of access NDA | F43: Resource Production | G43: Coal Mining | H43: Acid Mine Drainage | I43: NAPP | J43: Pennsylvanian | K43: Pittsburgh | L43: PA | M43: Greene | N43: wri AQ-25 | O43: PA | P43: Greene | Q43: wri AQ-25 | R43: 25 | S43: NA | T43: NA | U43: NA | V43: NA | W43: NA | X43: NA | Y43: NA | Z43: NA | AA43: NA | AB43: NA | AC43: NA | AD43: NA | AE43: NA | AF43: NA | AG43: NA | AH43: NA | AI43: NA | AJ43: NA | AK43: 6020A | AQ43: 14.203 | AU43: 0.0023 | BJ43: 0.0228 | BY43: 0.0042 | BZ43: 0.0171 | CA43: 0.0031 | CB43: 0.0186 | CC43: 0.0053 | CD43: 0.0014 | CE43: 0.0067 | CF43: 0.00089 | CG43: 0.0053 | CH43: 0.00087 | CI43: 0.0023 | CJ43: 0.00026 | CK43: 0.0014 | CL43: 0.00019 | CR43: =IF(ISBLANK(FieldSampling1618[[#This Row],[Sample Reference '# ('# required to enable calculations)]]),"",SUM(FieldSampling1618[[#This Row],[La 57]:[Lu 71]])) -> 0.06761 | CS43: =IF(ISBLANK(FieldSampling1618[[#This Row],[Sample Reference '# ('# required to enable calculations)]]),"", SUM(FieldSampling1618[Lanthanides]+FieldSampling1618[Y 39])) -> 0.09041 | CU43: 200.7 | CV43: NA | CX43: 8.539 | CY43: 298.32 | CZ43: 43.343 | DB43: 65.692 | DC43: 52.949 | DI43: 12.343 | DJ43: 1370
A44: 26 | B44: raw AMD | C44: Restricted under terms of access NDA | F44: Resource Production | G44: Coal Mining | H44: Acid Mine Drainage | I44: =+I45 -> NAPP | J44: Pennsylvanian | K44: Refractory Clay | L44: =+L45 -> PA | M44: =+M45 -> Fayette | N44: wri AQ-26 | O44: =+O45 -> PA | P44: =+P45 -> Fayette | Q44: wri AQ-26 | R44: 26 | S44: NA | T44: NA | U44: NA | V44: NA | W44: NA | X44: NA | Y44: NA | Z44: NA | AA44: NA | AB44: NA | AC44: NA | AD44: NA | AE44: NA | AF44: NA | AG44: NA | AH44: NA | AI44: NA | AJ44: NA | AK44: 6020A | AU44: 0 | BJ44: 0.043 | BY44: 0.006 | BZ44: 0.02 | CA44: 0.003 | CB44: 0.016 | CC44: 0.006 | CD44: 0 | CE44: 0.009 | CF44: 0 | CG44: 0.008 | CH44: 0 | CI44: 0.004 | CJ44: 0 | CK44: 0.003 | CL44: 0 | CR44: =IF(ISBLANK(FieldSampling1618[[#This Row],[Sample Reference '# ('# required to enable calculations)]]),"",SUM(FieldSampling1618[[#This Row],[La 57]:[Lu 71]])) -> 0.075 | CS44: =IF(ISBLANK(FieldSampling1618[[#This Row],[Sample Reference '# ('# required to enable calculations)]]),"", SUM(FieldSampling1618[Lanthanides]+FieldSampling1618[Y 39])) -> 0.118 | CU44: 200.7 | CV44: NA
A45: 26 | B45: raw AMD | C45: Restricted under terms of access NDA | F45: Resource Production | G45: Coal Mining | H45: Acid Mine Drainage | I45: NAPP | J45: Pennsylvanian | K45: Refractory Clay | L45: PA | M45: Fayette | N45: wri AQ-26 | O45: PA | P45: Fayette | Q45: wri AQ-26 | R45: 26 | S45: NA | T45: NA | U45: NA | V45: NA | W45: NA | X45: NA | Y45: NA | Z45: NA | AA45: NA | AB45: NA | AC45: NA | AD45: NA | AE45: NA | AF45: NA | AG45: NA | AH45: NA | AI45: NA | AJ45: NA | AK45: 6020A | AQ45: 16.064 | AU45: 0.0093 | BJ45: 0.128 | BY45: 0.0102 | BZ45: 0.0419 | CA45: 0.0078 | CB45: 0.0487 | CC45: 0.0184 | CD45: 0.0054 | CE45: 0.0324 | CF45: 0.005 | CG45: 0.0305 | CH45: 0.0049 | CI45: 0.0132 | CJ45: 0.0016 | CK45: 0.0095 | CL45: 0.0013 | CR45: =IF(ISBLANK(FieldSampling1618[[#This Row],[Sample Reference '# ('# required to enable calculations)]]),"",SUM(FieldSampling1618[[#This Row],[La 57]:[Lu 71]])) -> 0.2308 | CS45: =IF(ISBLANK(FieldSampling1618[[#This Row],[Sample Reference '# ('# required to enable calculations)]]),"", SUM(FieldSampling1618[Lanthanides]+FieldSampling1618[Y 39])) -> 0.3588 | CU45: 200.7 | CV45: NA | CX45: 34.589 | CY45: 90.955 | CZ45: 1.23 | DB45: 120.811 | DC45: 1.868 | DI45: 1.136 | DJ45: 1000
A46: 27 | B46: raw AMD | C46: Restricted under terms of access NDA | F46: Resource Production | G46: Coal Mining | H46: Acid Mine Drainage | I46: NAPP | J46: Pennsylvanian | K46: Pittsburgh | L46: PA | M46: Greene | N46: wri AQ-27 | O46: PA | P46: Greene | Q46: wri AQ-27 | R46: 27 | S46: NA | T46: NA | U46: NA | V46: NA | W46: NA | X46: NA | Y46: NA | Z46: NA | AA46: NA | AB46: NA | AC46: NA | AD46: NA | AE46: NA | AF46: NA | AG46: NA | AH46: NA | AI46: NA | AJ46: NA | AK46: 6020A | AQ46: 7.267 | AU46: 0.0011 | BJ46: 0.0077 | BY46: 0.00022 | BZ46: 0.00089 | CA46: 0.0002 | CB46: 0.0015 | CC46: 0.00043 | CD46: 0.00011 | CE46: 0.00093 | CF46: 0.00012 | CG46: 0.00097 | CH46: 0.0002 | CI46: 0.00061 | CJ46: 9.4e-05 | CK46: 0.00044 | CL46: 8.6e-05 | CR46: =IF(ISBLANK(FieldSampling1618[[#This Row],[Sample Reference '# ('# required to enable calculations)]]),"",SUM(FieldSampling1618[[#This Row],[La 57]:[Lu 71]])) -> 0.0068 | CS46: =IF(ISBLANK(FieldSampling1618[[#This Row],[Sample Reference '# ('# required to enable calculations)]]),"", SUM(FieldSampling1618[Lanthanides]+FieldSampling1618[Y 39])) -> 0.0145 | CU46: 200.7 | CV46: NA | CX46: 0.0245 | CY46: 444.229 | CZ46: 352.576 | DB46: 197.303 | DC46: 2373.77 | DI46: 515.4 | DJ46: 5550
A47: 28 | B47: raw AMD | C47: Restricted under terms of access NDA | F47: Resource Production | G47: Coal Mining | H47: Acid Mine Drainage | I47: NAPP | J47: Pennsylvanian | K47: Pittsburgh | L47: WV | M47: Monongalia | N47: wri AQ-28 | O47: WV | P47: Monongalia | Q47: wri AQ-28 | R47: 28 | S47: NA | T47: NA | U47: NA | V47: NA | W47: NA | X47: NA | Y47: NA | Z47: NA | AA47: NA | AB47: NA | AC47: NA | AD47: NA | AE47: NA | AF47: NA | AG47: NA | AH47: NA | AI47: NA | AJ47: NA | AK47: 6020A | AQ47: 25.917 | AU47: 0.0073 | BJ47: 0.0461 | BY47: 0.0174 | BZ47: 0.058 | CA47: 0.0084 | CB47: 0.0449 | CC47: 0.0123 | CD47: 0.0028 | CE47: 0.0139 | CF47: 0.0017 | CG47: 0.0113 | CH47: 0.0017 | CI47: 0.0054 | CJ47: 0.00064 | CK47: 0.0042 | CL47: 0.00052 | CR47: =IF(ISBLANK(FieldSampling1618[[#This Row],[Sample Reference '# ('# required to enable calculations)]]),"",SUM(FieldSampling1618[[#This Row],[La 57]:[Lu 71]])) -> 0.18316 | CS47: =IF(ISBLANK(FieldSampling1618[[#This Row],[Sample Reference '# ('# required to enable calculations)]]),"", SUM(FieldSampling1618[Lanthanides]+FieldSampling1618[Y 39])) -> 0.22926 | CU47: 200.7 | CV47: NA | CX47: 44.984 | CY47: 352.13 | CZ47: 63.113 | DB47: 84.921 | DC47: 4.282 | DI47: 0.981 | DJ47: 1620
A48: 29 | B48: raw AMD | C48: Restricted under terms of access NDA | F48: Resource Production | G48: Coal Mining | H48: Acid Mine Drainage | I48: NAPP | J48: Pennsylvanian | K48: Pittsburgh | L48: WV | M48: Monongalia | N48: wri AQ-29 | O48: WV | P48: Monongalia | Q48: wri AQ-29 | R48: 29 | S48: NA | T48: NA | U48: NA | V48: NA | W48: NA | X48: NA | Y48: NA | Z48: NA | AA48: NA | AB48: NA | AC48: NA | AD48: NA | AE48: NA | AF48: NA | AG48: NA | AH48: NA | AI48: NA | AJ48: NA | AK48: 6020A | AQ48: 26.548 | AU48: 0.0105 | BJ48: 0.0699 | BY48: 0.0219 | BZ48: 0.0793 | CA48: 0.0116 | CB48: 0.0614 | CC48: 0.0168 | CD48: 0.004 | CE48: 0.0194 | CF48: 0.0025 | CG48: 0.016 | CH48: 0.0026 | CI48: 0.008 | CJ48: 0.00096 | CK48: 0.0063 | CL48: 0.00077 | CR48: =IF(ISBLANK(FieldSampling1618[[#This Row],[Sample Reference '# ('# required to enable calculations)]]),"",SUM(FieldSampling1618[[#This Row],[La 57]:[Lu 71]])) -> 0.25153 | CS48: =IF(ISBLANK(FieldSampling1618[[#This Row],[Sample Reference '# ('# required to enable calculations)]]),"", SUM(FieldSampling1618[Lanthanides]+FieldSampling1618[Y 39])) -> 0.32143 | CU48: 200.7 | CV48: NA | CX48: 69.037 | CY48: 335.293 | CZ48: 91.674 | DB48: 87.979 | DC48: 5.668 | DI48: 1.124 | DJ48: 1720
A49: 30 | B49: raw AMD | C49: Restricted under terms of access NDA | F49: Resource Production | G49: Coal Mining | H49: Acid Mine Drainage | I49: NAPP | J49: Pennsylvanian | K49: Pittsburgh | L49: WV | M49: Monongalia | N49: wri AQ-30 | O49: WV | P49: Monongalia | Q49: wri AQ-30 | R49: 30 | S49: NA | T49: NA | U49: NA | V49: NA | W49: NA | X49: NA | Y49: NA | Z49: NA | AA49: NA | AB49: NA | AC49: NA | AD49: NA | AE49: NA | AF49: NA | AG49: NA | AH49: NA | AI49: NA | AJ49: NA | AK49: 6020A | AQ49: 7.101 | AU49: 0.00083 | BJ49: 0.0036 | BY49: 0.00046 | BZ49: 0.0018 | CA49: 0.00031 | CB49: 0.0017 | CC49: 0.00042 | CD49: 6.8e-05 | CE49: 0.00059 | CF49: 5e-05 | CG49: 0.00048 | CH49: 9.2e-05 | CI49: 0.00023 | CJ49: 5.2e-05 | CK49: 0.00017 | CL49: 0 | CR49: =IF(ISBLANK(FieldSampling1618[[#This Row],[Sample Reference '# ('# required to enable calculations)]]),"",SUM(FieldSampling1618[[#This Row],[La 57]:[Lu 71]])) -> 0.006422 | CS49: =IF(ISBLANK(FieldSampling1618[[#This Row],[Sample Reference '# ('# required to enable calculations)]]),"", SUM(FieldSampling1618[Lanthanides]+FieldSampling1618[Y 39])) -> 0.010022 | CU49: 200.7 | CV49: NA | CX49: 0.0245 | CY49: 469.886 | CZ49: 170.163 | DB49: 110.563 | DC49: 227.221 | DI49: 136.78 | DJ49: 1700
A50: 31 | B50: raw AMD | C50: WVDEP OSR BORGMAN, Lat. 39.446413, Long. -79.732635 | F50: Resource Production | G50: Coal Mining | H50: Acid Mine Drainage | I50: =+I51 -> NAPP | J50: Pennsylvanian | K50: 0 | L50: =+L51 -> WV | M50: =+M51 -> Preston | N50: wri AQ-31 | O50: =+O51 -> WV | P50: =+P51 -> Preston | Q50: wri AQ-31 | R50: 31 | S50: NA | T50: NA | U50: NA | V50: NA | W50: NA | X50: NA | Y50: NA | Z50: NA | AA50: NA | AB50: NA | AC50: NA | AD50: NA | AE50: NA | AF50: NA | AG50: NA | AH50: NA | AI50: NA | AJ50: NA | AK50: 6020A | AQ50: 5.907 | AU50: 0.0011 | BJ50: 0.0066 | BY50: 0.0026 | BZ50: 0.0089 | CA50: 0.0014 | CB50: 0.0066 | CC50: 0.0019 | CD50: 0.00038 | CE50: 0.0021 | CF50: 0.0003 | CG50: 0.0016 | CH50: 0.00028 | CI50: 0.00072 | CJ50: 7.8e-05 | CK50: 0.00053 | CL50: 8.2e-05 | CR50: =IF(ISBLANK(FieldSampling1618[[#This Row],[Sample Reference '# ('# required to enable calculations)]]),"",SUM(FieldSampling1618[[#This Row],[La 57]:[Lu 71]])) -> 0.02747 | CS50: =IF(ISBLANK(FieldSampling1618[[#This Row],[Sample Reference '# ('# required to enable calculations)]]),"", SUM(FieldSampling1618[Lanthanides]+FieldSampling1618[Y 39])) -> 0.03407 | CU50: 200.7 | CV50: NA | CX50: 4.621 | CY50: 19.433 | CZ50: 2.995 | DB50: 5.085 | DC50: 2.473 | DI50: 3.329 | DJ50: 121
A51: 31 | B51: raw AMD | C51: WVDEP OSR BORGMAN, Lat. 39.446413, Long. -79.732635 | F51: Resource Production | G51: Coal Mining | H51: Acid Mine Drainage | I51: NAPP | J51: Pennsylvanian | L51: WV | M51: Preston | N51: wri AQ-31 | O51: WV | P51: Preston | Q51: wri AQ-31 | R51: 31 | S51: NA | T51: NA | U51: NA | V51: NA | W51: NA | X51: NA | Y51: NA | Z51: NA | AA51: NA | AB51: NA | AC51: NA | AD51: NA | AE51: NA | AF51: NA | AG51: NA | AH51: NA | AI51: NA | AJ51: NA | AK51: 6020A | AQ51: 12.217 | AU51: 0.0023 | BJ51: 0.0147 | BY51: 0.0065 | BZ51: 0.0225 | CA51: 0.0033 | CB51: 0.0174 | CC51: 0.0048 | CD51: 0.00099 | CE51: 0.0049 | CF51: 0.00061 | CG51: 0.0037 | CH51: 0.00054 | CI51: 0.0017 | CJ51: 0.00022 | CK51: 0.0012 | CL51: 0.00016 | CR51: =IF(ISBLANK(FieldSampling1618[[#This Row],[Sample Reference '# ('# required to enable calculations)]]),"",SUM(FieldSampling1618[[#This Row],[La 57]:[Lu 71]])) -> 0.06852 | CS51: =IF(ISBLANK(FieldSampling1618[[#This Row],[Sample Reference '# ('# required to enable calculations)]]),"", SUM(FieldSampling1618[Lanthanides]+FieldSampling1618[Y 39])) -> 0.08322 | CU51: 200.7 | CV51: NA | CX51: 14.612 | CY51: 32.959 | CZ51: 12.002 | DB51: 13.072 | DC51: 7.099 | DI51: 11.182 | DJ51: 323
A52: 32 | B52: raw AMD | C52: Restricted under terms of access NDA | F52: Resource Production | G52: Coal Mining | H52: Acid Mine Drainage | I52: =+I53 -> NAPP | J52: Pennsylvanian | K52: Coalburg | L52: =+L53 -> WV | M52: =+M53 -> Clay | N52: wri AQ-32 | O52: =+O53 -> WV | P52: =+P53 -> Clay | Q52: wri AQ-32 | R52: 32 | S52: NA | T52: NA | U52: NA | V52: NA | W52: NA | X52: NA | Y52: NA | Z52: NA | AA52: NA | AB52: NA | AC52: NA | AD52: NA | AE52: NA | AF52: NA | AG52: NA | AH52: NA | AI52: NA | AJ52: NA | AK52: 6020A | AQ52: 7.057 | AU52: 0.0013 | BJ52: 0.022 | BY52: 0.0075 | BZ52: 0.017 | CA52: 0.0021 | CB52: 0.0096 | CC52: 0.0027 | CD52: 0.00064 | CE52: 0.0039 | CF52: 0.00056 | CG52: 0.0034 | CH52: 0.00065 | CI52: 0.0017 | CJ52: 0.00022 | CK52: 0.0011 | CL52: 0.00017 | CR52: =IF(ISBLANK(FieldSampling1618[[#This Row],[Sample Reference '# ('# required to enable calculations)]]),"",SUM(FieldSampling1618[[#This Row],[La 57]:[Lu 71]])) -> 0.05124 | CS52: =IF(ISBLANK(FieldSampling1618[[#This Row],[Sample Reference '# ('# required to enable calculations)]]),"", SUM(FieldSampling1618[Lanthanides]+FieldSampling1618[Y 39])) -> 0.07324 | CU52: 200.7 | CV52: NA | CX52: 0.702 | CY52: 271.565 | CZ52: 6.469 | DB52: 144.185 | DC52: 8.508 | DI52: 1.668 | DJ52: 1270
A53: 32 | B53: raw AMD | C53: Restricted under terms of access NDA | F53: Resource Production | G53: Coal Mining | H53: Acid Mine Drainage | I53: NAPP | J53: Pennsylvanian | K53: Coalburg | L53: WV | M53: Clay | N53: wri AQ-32 | O53: WV | P53: Clay | Q53: wri AQ-32 | R53: 32 | S53: NA | T53: NA | U53: NA | V53: NA | W53: NA | X53: NA | Y53: NA | Z53: NA | AA53: NA | AB53: NA | AC53: NA | AD53: NA | AE53: NA | AF53: NA | AG53: NA | AH53: NA | AI53: NA | AJ53: NA | AK53: 6020A | AQ53: 11.731 | AU53: 0.0047 | BJ53: 0.149 | BY53: 0.0617 | BZ53: 0.154 | CA53: 0.0198 | CB53: 0.102 | CC53: 0.025 | CD53: 0.006 | CE53: 0.0316 | CF53: 0.0046 | CG53: 0.0289 | CH53: 0.0051 | CI53: 0.0149 | CJ53: 0.0019 | CK53: 0.0121 | CL53: 0.0017 | CR53: =IF(ISBLANK(FieldSampling1618[[#This Row],[Sample Reference '# ('# required to enable calculations)]]),"",SUM(FieldSampling1618[[#This Row],[La 57]:[Lu 71]])) -> 0.4693 | CS53: =IF(ISBLANK(FieldSampling1618[[#This Row],[Sample Reference '# ('# required to enable calculations)]]),"", SUM(FieldSampling1618[Lanthanides]+FieldSampling1618[Y 39])) -> 0.6183 | CU53: 200.7 | CV53: NA | CX53: 17.704 | CY53: 317.873 | CZ53: 0.353 | DB53: 230.973 | DC53: 10.265 | DI53: 0.0175 | DJ53: 2030
A54: 33 | B54: raw AMD | C54: Restricted under terms of access NDA | F54: Resource Production | G54: Coal Mining | H54: Acid Mine Drainage | I54: =+I55 -> NAPP | J54: Pennsylvanian | K54: Coalburg | L54: =+L55 -> WV | M54: =+M55 -> Clay | N54: wri AQ-33 | O54: =+O55 -> WV | P54: =+P55 -> Clay | Q54: wri AQ-33 | R54: 33 | S54: NA | T54: NA | U54: NA | V54: NA | W54: NA | X54: NA | Y54: NA | Z54: NA | AA54: NA | AB54: NA | AC54: NA | AD54: NA | AE54: NA | AF54: NA | AG54: NA | AH54: NA | AI54: NA | AJ54: NA | AK54: 6020A | AQ54: 3.139 | AU54: 0.00072 | BJ54: 0.002 | BY54: 0.00081 | BZ54: 0.0013 | CA54: 0.00019 | CB54: 0.00097 | CC54: 0.00022 | CD54: 5.6e-05 | CE54: 0.00035 | CF54: 6.7e-05 | CG54: 0.0003 | CH54: 6.1e-05 | CI54: 5.6e-05 | CJ54: 0.0005 | CK54: 0.00012 | CL54: 0.0005 | CR54: =IF(ISBLANK(FieldSampling1618[[#This Row],[Sample Reference '# ('# required to enable calculations)]]),"",SUM(FieldSampling1618[[#This Row],[La 57]:[Lu 71]])) -> 0.0055 | CS54: =IF(ISBLANK(FieldSampling1618[[#This Row],[Sample Reference '# ('# required to enable calculations)]]),"", SUM(FieldSampling1618[Lanthanides]+FieldSampling1618[Y 39])) -> 0.0075 | CU54: 200.7 | CV54: NA | CX54: 0.099 | CY54: 340.564 | CZ54: 8.301 | DB54: 283.724 | DC54: 25.151 | DI54: 6.698 | DJ54: 1998
A55: 33 | B55: raw AMD | C55: Restricted under terms of access NDA | F55: Resource Production | G55: Coal Mining | H55: Acid Mine Drainage | I55: NAPP | J55: Pennsylvanian | K55: Coalburg | L55: WV | M55: Clay | N55: wri AQ-33 | O55: WV | P55: Clay | Q55: wri AQ-33 | R55: 33 | S55: NA | T55: NA | U55: NA | V55: NA | W55: NA | X55: NA | Y55: NA | Z55: NA | AA55: NA | AB55: NA | AC55: NA | AD55: NA | AE55: NA | AF55: NA | AG55: NA | AH55: NA | AI55: NA | AJ55: NA | AK55: 6020A | AQ55: 15.587 | AU55: 0.0108 | BJ55: 0.189 | BY55: 0.0576 | BZ55: 0.178 | CA55: 0.0215 | CB55: 0.121 | CC55: 0.0355 | CD55: 0.0093 | CE55: 0.0482 | CF55: 0.0068 | CG55: 0.0418 | CH55: 0.0071 | CI55: 0.0204 | CJ55: 0.0025 | CK55: 0.0164 | CL55: 0.0022 | CR55: =IF(ISBLANK(FieldSampling1618[[#This Row],[Sample Reference '# ('# required to enable calculations)]]),"",SUM(FieldSampling1618[[#This Row],[La 57]:[Lu 71]])) -> 0.5683 | CS55: =IF(ISBLANK(FieldSampling1618[[#This Row],[Sample Reference '# ('# required to enable calculations)]]),"", SUM(FieldSampling1618[Lanthanides]+FieldSampling1618[Y 39])) -> 0.7573 | CU55: 200.7 | CV55: NA | CX55: 34.958 | CY55: 423.666 | CZ55: 1.493 | DB55: 378.018 | DC55: 15.384 | DI55: 0.0175 | DJ55: 2900
A56: 34 | B56: raw AMD | C56: Restricted under terms of access NDA | F56: Resource Production | G56: Coal Mining | H56: Acid Mine Drainage | I56: NAPP | J56: Pennsylvanian | K56: Coalburg | L56: WV | M56: Clay | N56: wri AQ-34 | O56: WV | P56: Clay | Q56: wri AQ-34 | R56: 34 | S56: NA | T56: NA | U56: NA | V56: NA | W56: NA | X56: NA | Y56: NA | Z56: NA | AA56: NA | AB56: NA | AC56: NA | AD56: NA | AE56: NA | AF56: NA | AG56: NA | AH56: NA | AI56: NA | AJ56: NA | AK56: 6020A | AQ56: 4.97 | AU56: 0.001 | BJ56: 0.0055 | BY56: 0.0047 | BZ56: 0.0049 | CA56: 0.00095 | CB56: 0.0038 | CC56: 0.00073 | CD56: 0.00026 | CE56: 0.00089 | CF56: 0.00023 | CG56: 0.00069 | CH56: 0.00026 | CI56: 0.00046 | CJ56: 0.00016 | CK56: 0.00027 | CL56: 0.00024 | CR56: =IF(ISBLANK(FieldSampling1618[[#This Row],[Sample Reference '# ('# required to enable calculations)]]),"",SUM(FieldSampling1618[[#This Row],[La 57]:[Lu 71]])) -> 0.01854 | CS56: =IF(ISBLANK(FieldSampling1618[[#This Row],[Sample Reference '# ('# required to enable calculations)]]),"", SUM(FieldSampling1618[Lanthanides]+FieldSampling1618[Y 39])) -> 0.02404 | CU56: 200.7 | CV56: NA | CX56: 0.369 | CY56: 179.109 | CZ56: 0.421 | DB56: 169.353 | DC56: 7.59 | DI56: 3.522 | DJ56: 1070
A57: 35 | B57: raw AMD | C57: Restricted under terms of access NDA | F57: Resource Production | G57: Coal Mining | H57: Acid Mine Drainage | I57: =+I58 -> NAPP | J57: Pennsylvanian | K57: Coalburg | L57: =+L58 -> WV | M57: =+M58 -> Nicholas | N57: wri AQ-35 | O57: =+O58 -> WV | P57: =+P58 -> Nicholas | Q57: wri AQ-35 | R57: 35 | S57: NA | T57: NA | U57: NA | V57: NA | W57: NA | X57: NA | Y57: NA | Z57: NA | AA57: NA | AB57: NA | AC57: NA | AD57: NA | AE57: NA | AF57: NA | AG57: NA | AH57: NA | AI57: NA | AJ57: NA | AK57: 6020A | AQ57: 26.403 | AU57: 0.014 | BJ57: 0.329 | BY57: 0.268 | BZ57: 0.482 | CA57: 0.0725 | CB57: 0.298 | CC57: 0.0653 | CD57: 0.0153 | CE57: 0.0783 | CF57: 0.0115 | CG57: 0.0659 | CH57: 0.0118 | CI57: 0.0326 | CJ57: 0.004 | CK57: 0.024 | CL57: 0.0035 | CR57: =IF(ISBLANK(FieldSampling1618[[#This Row],[Sample Reference '# ('# required to enable calculations)]]),"",SUM(FieldSampling1618[[#This Row],[La 57]:[Lu 71]])) -> 1.4327 | CS57: =IF(ISBLANK(FieldSampling1618[[#This Row],[Sample Reference '# ('# required to enable calculations)]]),"", SUM(FieldSampling1618[Lanthanides]+FieldSampling1618[Y 39])) -> 1.7617 | CU57: 200.7 | CV57: NA | CX57: 74.228 | CY57: 223.457 | CZ57: 10.258 | DB57: 186.416 | DC57: 2.496 | DI57: 3.09 | DJ57: 2160
A58: 35 | B58: raw AMD | C58: Restricted under terms of access NDA | F58: Resource Production | G58: Coal Mining | H58: Acid Mine Drainage | I58: NAPP | J58: Pennsylvanian | K58: Coalburg | L58: =+L59 -> WV | M58: Nicholas | N58: wri AQ-35 | O58: =+O59 -> WV | P58: Nicholas | Q58: wri AQ-35 | R58: 35 | S58: NA | T58: NA | U58: NA | V58: NA | W58: NA | X58: NA | Y58: NA | Z58: NA | AA58: NA | AB58: NA | AC58: NA | AD58: NA | AE58: NA | AF58: NA | AG58: NA | AH58: NA | AI58: NA | AJ58: NA | AK58: 6020A | AQ58: 6.558 | AU58: 0.0012 | BJ58: 0.0293 | BY58: 0.0395 | BZ58: 0.0473 | CA58: 0.0072 | CB58: 0.0395 | CC58: 0.0049 | CD58: 0.0012 | CE58: 0.0063 | CF58: 0.00092 | CG58: 0.0046 | CH58: 0.00085 | CI58: 0.0021 | CJ58: 0.00026 | CK58: 0.0014 | CL58: 0.0002 | CR58: =IF(ISBLANK(FieldSampling1618[[#This Row],[Sample Reference '# ('# required to enable calculations)]]),"",SUM(FieldSampling1618[[#This Row],[La 57]:[Lu 71]])) -> 0.15623 | CS58: =IF(ISBLANK(FieldSampling1618[[#This Row],[Sample Reference '# ('# required to enable calculations)]]),"", SUM(FieldSampling1618[Lanthanides]+FieldSampling1618[Y 39])) -> 0.18553 | CU58: 200.7 | CV58: NA | CX58: 2.578 | CY58: 463.776 | CZ58: 0.236 | DB58: 163.947 | DC58: 13.973 | DI58: 2.212 | DJ58: 2060
A59: 35 | B59: raw AMD | C59: Restricted under terms of access NDA | F59: Resource Production | G59: Coal Mining | H59: Acid Mine Drainage | I59: NAPP | J59: Pennsylvanian | K59: Coalburg | L59: WV | M59: Nicholas | N59: wri AQ-35 | O59: WV | P59: Nicholas | Q59: wri AQ-35 | R59: 35 | S59: NA | T59: NA | U59: NA | V59: NA | W59: NA | X59: NA | Y59: NA | Z59: NA | AA59: NA | AB59: NA | AC59: NA | AD59: NA | AE59: NA | AF59: NA | AG59: NA | AH59: NA | AI59: NA | AJ59: NA | AK59: 6020A | AQ59: 22.83 | AU59: 0.0175 | BJ59: 0.32 | BY59: 0.27 | BZ59: 0.497 | CA59: 0.0644 | CB59: 0.298 | CC59: 0.0647 | CD59: 0.0149 | CE59: 0.0762 | CF59: 0.0102 | CG59: 0.0642 | CH59: 0.0107 | CI59: 0.0327 | CJ59: 0.0039 | CK59: 0.0255 | CL59: 0.0032 | CR59: =IF(ISBLANK(FieldSampling1618[[#This Row],[Sample Reference '# ('# required to enable calculations)]]),"",SUM(FieldSampling1618[[#This Row],[La 57]:[Lu 71]])) -> 1.4356 | CS59: =IF(ISBLANK(FieldSampling1618[[#This Row],[Sample Reference '# ('# required to enable calculations)]]),"", SUM(FieldSampling1618[Lanthanides]+FieldSampling1618[Y 39])) -> 1.7556 | CU59: 200.7 | CV59: NA | CX59: 77.916 | CY59: 212.368 | CZ59: 17.382 | DB59: 187.902 | DC59: 2.522 | DI59: 1.58 | DJ59: 1970
A60: 36 | B60: raw AMD | C60: Restricted under terms of access NDA | F60: Resource Production | G60: Coal Mining | H60: Acid Mine Drainage | I60: NAPP | J60: Pennsylvanian | K60: Clarion | L60: WV | M60: Nicholas | N60: wri AQ-36 | O60: WV | P60: Nicholas | Q60: wri AQ-36 | R60: 36 | S60: NA | T60: NA | U60: NA | V60: NA | W60: NA | X60: NA | Y60: NA | Z60: NA | AA60: NA | AB60: NA | AC60: NA | AD60: NA | AE60: NA | AF60: NA | AG60: NA | AH60: NA | AI60: NA | AJ60: NA | AK60: 6020A | AQ60: 2.779 | AU60: 0.001 | BJ60: 0.00093 | BY60: 0.0011 | BZ60: 0.0016 | CA60: 0.00023 | CB60: 0.00047 | CC60: 6.8e-05 | CD60: 9.4e-05 | CE60: 0.001 | CF60: 0.00011 | CG60: 0.001 | CH60: 0.00014 | CI60: 8.8e-05 | CJ60: 0.00012 | CK60: 0.001 | CL60: 0.0002 | CR60: =IF(ISBLANK(FieldSampling1618[[#This Row],[Sample Reference '# ('# required to enable calculations)]]),"",SUM(FieldSampling1618[[#This Row],[La 57]:[Lu 71]])) -> 0.00722 | CS60: =IF(ISBLANK(FieldSampling1618[[#This Row],[Sample Reference '# ('# required to enable calculations)]]),"", SUM(FieldSampling1618[Lanthanides]+FieldSampling1618[Y 39])) -> 0.00815 | CU60: 200.7 | CV60: NA | CX60: 0.019 | CY60: 278.666 | CZ60: 7.359 | DB60: 283.235 | DC60: 6.703 | DI60: 4.327 | DJ60: 1680
A61: 37 | B61: raw AMD | C61: Restricted under terms of access NDA | F61: Resource Production | G61: Coal Mining | H61: Acid Mine Drainage | I61: NAPP | J61: Pennsylvanian | K61: Clarion | L61: WV | M61: Nicholas | N61: wri AQ-37 | O61: WV | P61: Nicholas | Q61: wri AQ-37 | R61: 37 | S61: NA | T61: NA | U61: NA | V61: NA | W61: NA | X61: NA | Y61: NA | Z61: NA | AA61: NA | AB61: NA | AC61: NA | AD61: NA | AE61: NA | AF61: NA | AG61: NA | AH61: NA | AI61: NA | AJ61: NA | AK61: 6020A | AQ61: 3.258 | AU61: 0.001 | BJ61: 0.0013 | BY61: 0.00091 | BZ61: 0.0011 | CA61: 0.0002 | CB61: 0.0005 | CC61: 0.0001 | CD61: 0.0001 | CE61: 0.001 | CF61: 0.0001 | CG61: 0.001 | CH61: 0.00014 | CI61: 0.00011 | CJ61: 0.00012 | CK61: 0.001 | CL61: 0.0002 | CR61: =IF(ISBLANK(FieldSampling1618[[#This Row],[Sample Reference '# ('# required to enable calculations)]]),"",SUM(FieldSampling1618[[#This Row],[La 57]:[Lu 71]])) -> 0.00658 | CS61: =IF(ISBLANK(FieldSampling1618[[#This Row],[Sample Reference '# ('# required to enable calculations)]]),"", SUM(FieldSampling1618[Lanthanides]+FieldSampling1618[Y 39])) -> 0.00788 | CU61: 200.7 | CV61: NA | CX61: 0.019 | CY61: 310.037 | CZ61: 8.921 | DB61: 314.379 | DC61: 7.323 | DI61: 4.401 | DJ61: 2060
A62: 38 | B62: raw AMD | C62: Restricted under terms of access NDA | F62: Resource Production | G62: Coal Mining | H62: Acid Mine Drainage | I62: NAPP | J62: Pennsylvanian | K62: Clarion | L62: WV | M62: Nicholas | N62: wri AQ-38 | O62: WV | P62: Nicholas | Q62: wri AQ-38 | R62: 38 | S62: NA | T62: NA | U62: NA | V62: NA | W62: NA | X62: NA | Y62: NA | Z62: NA | AA62: NA | AB62: NA | AC62: NA | AD62: NA | AE62: NA | AF62: NA | AG62: NA | AH62: NA | AI62: NA | AJ62: NA | AK62: 6020A | AQ62: 2.638 | AU62: 0.001 | BJ62: 0.0028 | BY62: 0.0018 | BZ62: 0.0024 | CA62: 0.00036 | CB62: 0.00099 | CC62: 0.00016 | CD62: 0.00012 | CE62: 0.00014 | CF62: 0.00013 | CG62: 0.00018 | CH62: 0.00016 | CI62: 0.00018 | CJ62: 0.00013 | CK62: 5.6e-05 | CL62: 0.00021 | CR62: =IF(ISBLANK(FieldSampling1618[[#This Row],[Sample Reference '# ('# required to enable calculations)]]),"",SUM(FieldSampling1618[[#This Row],[La 57]:[Lu 71]])) -> 0.007016 | CS62: =IF(ISBLANK(FieldSampling1618[[#This Row],[Sample Reference '# ('# required to enable calculations)]]),"", SUM(FieldSampling1618[Lanthanides]+FieldSampling1618[Y 39])) -> 0.009816 | CU62: 200.7 | CV62: NA | CX62: 0.019 | CY62: 311.626 | CZ62: 6.368 | DB62: 304.321 | DC62: 8.708 | DI62: 3.479 | DJ62: 1910
A63: 39 | B63: raw AMD | C63: Restricted under terms of access NDA | F63: Resource Production | G63: Coal Mining | H63: Acid Mine Drainage | I63: =+I64 -> NAPP | J63: Pennsylvanian | K63: Clarion, 5Block, M Kittanning | L63: =+L64 -> WV | M63: =+M64 -> Nicholas | N63: wri AQ-39 | O63: =+O64 -> WV | P63: =+P64 -> Nicholas | Q63: wri AQ-39 | R63: 39 | S63: NA | T63: NA | U63: NA | V63: NA | W63: NA | X63: NA | Y63: NA | Z63: NA | AA63: NA | AB63: NA | AC63: NA | AD63: NA | AE63: NA | AF63: NA | AG63: NA | AH63: NA | AI63: NA | AJ63: NA | AK63: 6020A | AQ63: 6.949 | AU63: 0.002 | BJ63: 0.113 | BY63: 0.0956 | BZ63: 0.142 | CA63: 0.0221 | CB63: 0.0878 | CC63: 0.0174 | CD63: 0.0043 | CE63: 0.0232 | CF63: 0.0033 | CG63: 0.0181 | CH63: 0.0034 | CI63: 0.0094 | CJ63: 0.0012 | CK63: 0.0066 | CL63: 0.001 | CR63: =IF(ISBLANK(FieldSampling1618[[#This Row],[Sample Reference '# ('# required to enable calculations)]]),"",SUM(FieldSampling1618[[#This Row],[La 57]:[Lu 71]])) -> 0.4354 | CS63: =IF(ISBLANK(FieldSampling1618[[#This Row],[Sample Reference '# ('# required to enable calculations)]]),"", SUM(FieldSampling1618[Lanthanides]+FieldSampling1618[Y 39])) -> 0.5484 | CU63: 200.7 | CV63: NA | CX63: 7.761 | CY63: 201.084 | CZ63: 1.373 | DB63: 314.5116 | DC63: 15.706 | DI63: 2.691 | DJ63: 1920
A64: 39 | B64: raw AMD | C64: Restricted under terms of access NDA | F64: Resource Production | G64: Coal Mining | H64: Acid Mine Drainage | I64: NAPP | J64: Pennsylvanian | K64: Clarion, 5Block, M Kittanning | L64: WV | M64: Nicholas | N64: wri AQ-39 | O64: WV | P64: Nicholas | Q64: wri AQ-39 | R64: 39 | S64: NA | T64: NA | U64: NA | V64: NA | W64: NA | X64: NA | Y64: NA | Z64: NA | AA64: NA | AB64: NA | AC64: NA | AD64: NA | AE64: NA | AF64: NA | AG64: NA | AH64: NA | AI64: NA | AJ64: NA | AK64: 6020A | AQ64: 6.987 | AU64: 0.0017 | BJ64: 0.109 | BY64: 0.0928 | BZ64: 0.0797 | CA64: 0.0193 | CB64: 0.0868 | CC64: 0.0181 | CD64: 0.0043 | CE64: 0.0226 | CF64: 0.003 | CG64: 0.0184 | CH64: 0.0034 | CI64: 0.0096 | CJ64: 0.0013 | CK64: 0.0074 | CL64: 0.0011 | CR64: =IF(ISBLANK(FieldSampling1618[[#This Row],[Sample Reference '# ('# required to enable calculations)]]),"",SUM(FieldSampling1618[[#This Row],[La 57]:[Lu 71]])) -> 0.3678 | CS64: =IF(ISBLANK(FieldSampling1618[[#This Row],[Sample Reference '# ('# required to enable calculations)]]),"", SUM(FieldSampling1618[Lanthanides]+FieldSampling1618[Y 39])) -> 0.4768 | CU64: 200.7 | CV64: NA | CX64: 8.778 | CY64: 190.66 | CZ64: 0.461 | DB64: 296.635 | DC64: 138.763 | DI64: 2.334 | DJ64: 1740
A65: 40 | B65: raw AMD | C65: Restricted under terms of access NDA | F65: Resource Production | G65: Coal Mining | H65: Acid Mine Drainage | I65: =+I66 -> NAPP | J65: Pennsylvanian | K65: Clarion, 5Block, M Kittanning | L65: =+L66 -> WV | M65: =+M66 -> Nicholas | N65: wri AQ-40 | O65: =+O66 -> WV | P65: =+P66 -> Nicholas | Q65: wri AQ-40 | R65: 40 | S65: NA | T65: NA | U65: NA | V65: NA | W65: NA | X65: NA | Y65: NA | Z65: NA | AA65: NA | AB65: NA | AC65: NA | AD65: NA | AE65: NA | AF65: NA | AG65: NA | AH65: NA | AI65: NA | AJ65: NA | AK65: 6020A | AQ65: 10.853 | AU65: 0.0026 | BJ65: 0.126 | BY65: 0.0658 | BZ65: 0.111 | CA65: 0.0178 | CB65: 0.0752 | CC65: 0.018 | CD65: 0.0046 | CE65: 0.0244 | CF65: 0.0038 | CG65: 0.0211 | CH65: 0.0039 | CI65: 0.0107 | CJ65: 0.0014 | CK65: 0.0079 | CL65: 0.0011 | CR65: =IF(ISBLANK(FieldSampling1618[[#This Row],[Sample Reference '# ('# required to enable calculations)]]),"",SUM(FieldSampling1618[[#This Row],[La 57]:[Lu 71]])) -> 0.3667 | CS65: =IF(ISBLANK(FieldSampling1618[[#This Row],[Sample Reference '# ('# required to enable calculations)]]),"", SUM(FieldSampling1618[Lanthanides]+FieldSampling1618[Y 39])) -> 0.4927 | CU65: 200.7 | CV65: NA | CX65: 9.64 | CY65: 235.355 | CZ65: 0.049 | DB65: 273.257 | DC65: 11.797 | DI65: 1.669 | DJ65: 1990
A66: 40 | B66: raw AMD | C66: Restricted under terms of access NDA | F66: Resource Production | G66: Coal Mining | H66: Acid Mine Drainage | I66: NAPP | J66: Pennsylvanian | K66: Clarion, 5Block, M Kittanning | L66: WV | M66: Nicholas | N66: wri AQ-40 | O66: WV | P66: Nicholas | Q66: wri AQ-40 | R66: 40 | S66: NA | T66: NA | U66: NA | V66: NA | W66: NA | X66: NA | Y66: NA | Z66: NA | AA66: NA | AB66: NA | AC66: NA | AD66: NA | AE66: NA | AF66: NA | AG66: NA | AH66: NA | AI66: NA | AJ66: NA | AK66: 6020A | AQ66: 5.355 | AU66: 0.0003 | BJ66: 0.0178 | BY66: 0.016 | BZ66: 0.0187 | CA66: 0.003 | CB66: 0.0126 | CC66: 0.0025 | CD66: 0.00065 | CE66: 0.0032 | CF66: 0.00053 | CG66: 0.0028 | CH66: 0.00059 | CI66: 0.0015 | CJ66: 0.00028 | CK66: 0.001 | CL66: 0.00032 | CR66: =IF(ISBLANK(FieldSampling1618[[#This Row],[Sample Reference '# ('# required to enable calculations)]]),"",SUM(FieldSampling1618[[#This Row],[La 57]:[Lu 71]])) -> 0.06367 | CS66: =IF(ISBLANK(FieldSampling1618[[#This Row],[Sample Reference '# ('# required to enable calculations)]]),"", SUM(FieldSampling1618[Lanthanides]+FieldSampling1618[Y 39])) -> 0.08147 | CU66: 200.7 | CV66: NA | CX66: 2.186 | CY66: 109.314 | CZ66: 0.039 | DB66: 83.941 | DC66: 4.891 | DI66: 0.889 | DJ66: 634
A67: 41 | B67: raw AMD | C67: Restricted under terms of access NDA | F67: Resource Production | G67: Coal Mining | H67: Acid Mine Drainage | I67: NAPP | J67: Pennsylvanian | K67: Clarion, 5Block, M Kittanning | L67: WV | M67: Nicholas | N67: wri AQ-41 | O67: WV | P67: Nicholas | Q67: wri AQ-41 | R67: 41 | S67: NA | T67: NA | U67: NA | V67: NA | W67: NA | X67: NA | Y67: NA | Z67: NA | AA67: NA | AB67: NA | AC67: NA | AD67: NA | AE67: NA | AF67: NA | AG67: NA | AH67: NA | AI67: NA | AJ67: NA | AK67: 6020A | AQ67: 5.228 | AU67: 0.00032 | BJ67: 0.0166 | BY67: 0.0122 | BZ67: 0.0082 | CA67: 0.002 | CB67: 0.0088 | CC67: 0.0016 | CD67: 0.00047 | CE67: 0.0024 | CF67: 0.00042 | CG67: 0.0019 | CH67: 0.0005 | CI67: 0.0012 | CJ67: 0.00023 | CK67: 0.0007 | CL67: 0.00029 | CR67: =IF(ISBLANK(FieldSampling1618[[#This Row],[Sample Reference '# ('# required to enable calculations)]]),"",SUM(FieldSampling1618[[#This Row],[La 57]:[Lu 71]])) -> 0.04091 | CS67: =IF(ISBLANK(FieldSampling1618[[#This Row],[Sample Reference '# ('# required to enable calculations)]]),"", SUM(FieldSampling1618[Lanthanides]+FieldSampling1618[Y 39])) -> 0.05751 | CU67: 200.7 | CV67: NA | CX67: 0.259 | CY67: 189.304 | CZ67: 0.128 | DB67: 204.19 | DC67: 28.083 | DI67: 4.038 | DJ67: 1200
A68: 42 | B68: raw AMD | C68: Restricted under terms of access NDA | F68: Resource Production | G68: Coal Mining | H68: Acid Mine Drainage | I68: NAPP | J68: Pennsylvanian | K68: Clarion, 5Block, M Kittanning | L68: WV | M68: Nicholas | N68: wri AQ-42 | O68: WV | P68: Nicholas | Q68: wri AQ-42 | R68: 42 | S68: NA | T68: NA | U68: NA | V68: NA | W68: NA | X68: NA | Y68: NA | Z68: NA | AA68: NA | AB68: NA | AC68: NA | AD68: NA | AE68: NA | AF68: NA | AG68: NA | AH68: NA | AI68: NA | AJ68: NA | AK68: 6020A | AQ68: 14.563 | AU68: 0.0054 | BJ68: 0.0619 | BY68: 0.0321 | BZ68: 0.0812 | CA68: 0.0097 | CB68: 0.0503 | CC68: 0.0125 | CD68: 0.003 | CE68: 0.0161 | CF68: 0.0024 | CG68: 0.014 | CH68: 0.0025 | CI68: 0.0075 | CJ68: 0.00095 | CK68: 0.0059 | CL68: 0.00093 | CR68: =IF(ISBLANK(FieldSampling1618[[#This Row],[Sample Reference '# ('# required to enable calculations)]]),"",SUM(FieldSampling1618[[#This Row],[La 57]:[Lu 71]])) -> 0.23908 | CS68: =IF(ISBLANK(FieldSampling1618[[#This Row],[Sample Reference '# ('# required to enable calculations)]]),"", SUM(FieldSampling1618[Lanthanides]+FieldSampling1618[Y 39])) -> 0.30098 | CU68: 200.7 | CV68: NA | CX68: 17.171 | CY68: 118.907 | CZ68: 0.942 | DB68: 91.239 | DC68: 4.179 | DI68: 0.793 | DJ68: 767
A69: 43 | B69: raw AMD | C69: Restricted under terms of access NDA | F69: Resource Production | G69: Coal Mining | H69: Acid Mine Drainage | I69: NAPP | J69: Pennsylvanian | K69: Eagle | L69: WV | M69: Nicholas | N69: wri AQ-43 | O69: WV | P69: Nicholas | Q69: wri AQ-43 | R69: 43 | S69: NA | T69: NA | U69: NA | V69: NA | W69: NA | X69: NA | Y69: NA | Z69: NA | AA69: NA | AB69: NA | AC69: NA | AD69: NA | AE69: NA | AF69: NA | AG69: NA | AH69: NA | AI69: NA | AJ69: NA | AK69: 6020A | AQ69: 4.559 | AU69: 0.001 | BJ69: 0.0029 | BY69: 0.00077 | BZ69: 0.0018 | CA69: 0.00037 | CB69: 0.0016 | CC69: 0.00045 | CD69: 0.00018 | CE69: 0.00053 | CF69: 0.00018 | CG69: 0.00048 | CH69: 0.00021 | CI69: 0.00033 | CJ69: 0.00014 | CK69: 0.00019 | CL69: 0.00022 | CR69: =IF(ISBLANK(FieldSampling1618[[#This Row],[Sample Reference '# ('# required to enable calculations)]]),"",SUM(FieldSampling1618[[#This Row],[La 57]:[Lu 71]])) -> 0.00745 | CS69: =IF(ISBLANK(FieldSampling1618[[#This Row],[Sample Reference '# ('# required to enable calculations)]]),"", SUM(FieldSampling1618[Lanthanides]+FieldSampling1618[Y 39])) -> 0.01035 | CU69: 200.7 | CV69: NA | CX69: 0.379 | CY69: 182.048 | CZ69: 16.103 | DB69: 60.481 | DC69: 81.801 | DI69: 14.914 | DJ69: 573
A70: 44 | B70: raw AMD | C70: WVDEP OSR STAR REFUSE, Lat. 37.821227, Long. -81.203864 | F70: Resource Production | G70: Coal Mining | H70: Acid Mine Drainage | I70: CAPP | J70: Pennsylvanian | K70: Refuse | L70: WV | M70: Raleigh | N70: wri AQ-44 | O70: WV | P70: Raleigh | Q70: wri AQ-44 | R70: 44 | S70: NA | T70: NA | U70: NA | V70: NA | W70: NA | X70: NA | Y70: NA | Z70: NA | AA70: NA | AB70: NA | AC70: NA | AD70: NA | AE70: NA | AF70: NA | AG70: NA | AH70: NA | AI70: NA | AJ70: NA | AK70: 6020A | AQ70: 27.884 | AU70: 0.0021 | BJ70: 0.02 | BY70: 0.0084 | BZ70: 0.0208 | CA70: 0.0027 | CB70: 0.0137 | CC70: 0.0037 | CD70: 0.001 | CE70: 0.0051 | CF70: 0.00074 | CG70: 0.0037 | CH70: 0.00074 | CI70: 0.0019 | CJ70: 0.00033 | CK70: 0.0013 | CL70: 0.00038 | CR70: =IF(ISBLANK(FieldSampling1618[[#This Row],[Sample Reference '# ('# required to enable calculations)]]),"",SUM(FieldSampling1618[[#This Row],[La 57]:[Lu 71]])) -> 0.06449 | CS70: =IF(ISBLANK(FieldSampling1618[[#This Row],[Sample Reference '# ('# required to enable calculations)]]),"", SUM(FieldSampling1618[Lanthanides]+FieldSampling1618[Y 39])) -> 0.08449 | CU70: 200.7 | CV70: NA | CX70: 16.422 | CY70: 107.275 | CZ70: 26.971 | DB70: 33.667 | DC70: 36.754 | DI70: 54.575 | DJ70: 581
A71: 45 | B71: raw AMD | C71: WVDEP OSR BRADY CLINE, Lat. 38.417910, Long. -80.799495 | F71: Resource Production | G71: Coal Mining | H71: Acid Mine Drainage | I71: NAPP | J71: Pennsylvanian | K71: Lower Kittanning | L71: WV | M71: Nicholas | N71: wri AQ-45 | O71: WV | P71: Nicholas | Q71: wri AQ-45 | R71: 45 | S71: NA | T71: NA | U71: NA | V71: NA | W71: NA | X71: NA | Y71: NA | Z71: NA | AA71: NA | AB71: NA | AC71: NA | AD71: NA | AE71: NA | AF71: NA | AG71: NA | AH71: NA | AI71: NA | AJ71: NA | AK71: 6020A | AQ71: 7.935 | AU71: 0.00053 | BJ71: 0.0046 | BY71: 0.0016 | BZ71: 0.0051 | CA71: 0.00074 | CB71: 0.0037 | CC71: 0.001 | CD71: 0.00034 | CE71: 0.0012 | CF71: 0.00026 | CG71: 0.001 | CH71: 0.00028 | CI71: 0.00053 | CJ71: 0.00017 | CK71: 0.00034 | CL71: 0.00024 | CR71: =IF(ISBLANK(FieldSampling1618[[#This Row],[Sample Reference '# ('# required to enable calculations)]]),"",SUM(FieldSampling1618[[#This Row],[La 57]:[Lu 71]])) -> 0.0165 | CS71: =IF(ISBLANK(FieldSampling1618[[#This Row],[Sample Reference '# ('# required to enable calculations)]]),"", SUM(FieldSampling1618[Lanthanides]+FieldSampling1618[Y 39])) -> 0.0211 | CU71: 200.7 | CV71: NA | CX71: 2.727 | CY71: 20.355 | CZ71: 0.991 | DB71: 14.222 | DC71: 0.555 | DI71: 0.185 | DJ71: 129
A72: 46 | B72: raw AMD | C72: WVDEP OSR FALCON LAND CO., Lat. 38.170280, Long. -80.599632 | F72: Resource Production | G72: Coal Mining | H72: Acid Mine Drainage | I72: NAPP | J72: Pennsylvanian | K72: Refuse | L72: WV | M72: Nicholas | N72: wri AQ-46 | O72: WV | P72: Nicholas | Q72: wri AQ-46 | R72: 46 | S72: NA | T72: NA | U72: NA | V72: NA | W72: NA | X72: NA | Y72: NA | Z72: NA | AA72: NA | AB72: NA | AC72: NA | AD72: NA | AE72: NA | AF72: NA | AG72: NA | AH72: NA | AI72: NA | AJ72: NA | AK72: 6020A | AQ72: 13 | AU72: 0.0029 | BJ72: 0.0313 | BY72: 0.0102 | BZ72: 0.0308 | CA72: 0.0042 | CB72: 0.0243 | CC72: 0.0078 | CD72: 0.0019 | CE72: 0.0094 | CF72: 0.0014 | CG72: 0.0076 | CH72: 0.0013 | CI72: 0.0034 | CJ72: 0.00048 | CK72: 0.0024 | CL72: 0.00048 | CR72: =IF(ISBLANK(FieldSampling1618[[#This Row],[Sample Reference '# ('# required to enable calculations)]]),"",SUM(FieldSampling1618[[#This Row],[La 57]:[Lu 71]])) -> 0.10566 | CS72: =IF(ISBLANK(FieldSampling1618[[#This Row],[Sample Reference '# ('# required to enable calculations)]]),"", SUM(FieldSampling1618[Lanthanides]+FieldSampling1618[Y 39])) -> 0.13696 | CU72: 200.7 | CV72: NA | CX72: 21.237 | CY72: 105.87 | CZ72: 2.441 | DB72: 31.05 | DC72: 20.062 | DI72: 0.692 | DJ72: 552
A73: 47 | B73: raw AMD | C73: Restricted under terms of access NDA | F73: Resource Production | G73: Coal Mining | H73: Acid Mine Drainage | I73: CAPP | J73: Pennsylvanian | K73: Refuse | L73: WV | M73: Fayette | N73: wri AQ-47 | O73: WV | P73: Fayette | Q73: wri AQ-47 | R73: 47 | S73: NA | T73: NA | U73: NA | V73: NA | W73: NA | X73: NA | Y73: NA | Z73: NA | AA73: NA | AB73: NA | AC73: NA | AD73: NA | AE73: NA | AF73: NA | AG73: NA | AH73: NA | AI73: NA | AJ73: NA | AK73: 6020A | AQ73: 17.835 | AU73: 0.0045 | BJ73: 0.0698 | BY73: 0.0274 | BZ73: 0.0848 | CA73: 0.0104 | CB73: 0.0576 | CC73: 0.016 | CD73: 0.0039 | CE73: 0.0189 | CF73: 0.0025 | CG73: 0.015 | CH73: 0.0025 | CI73: 0.0072 | CJ73: 0.00092 | CK73: 0.0055 | CL73: 0.00085 | CR73: =IF(ISBLANK(FieldSampling1618[[#This Row],[Sample Reference '# ('# required to enable calculations)]]),"",SUM(FieldSampling1618[[#This Row],[La 57]:[Lu 71]])) -> 0.25347 | CS73: =IF(ISBLANK(FieldSampling1618[[#This Row],[Sample Reference '# ('# required to enable calculations)]]),"", SUM(FieldSampling1618[Lanthanides]+FieldSampling1618[Y 39])) -> 0.32327 | CU73: 200.7 | CV73: NA | CX73: 21.667 | CY73: 250.433 | CZ73: 209.709 | DB73: 112.095 | DC73: 34.592 | DI73: 0.0175 | DJ73: 1680
A74: 48 | B74: raw AMD | C74: WVDEP OSR WOCAP, Lat. 39.458535, Long. -79.728208 | F74: Resource Production | G74: Coal Mining | H74: Acid Mine Drainage | I74: =+I75 -> NAPP | J74: Pennsylvanian | K74: Upper Freeport | L74: WV | M74: Preston | N74: wri AQ-48 | O74: =+O75 -> WV | P74: Preston | Q74: wri AQ-48 | R74: 48 | S74: NA | T74: NA | U74: NA | V74: NA | W74: NA | X74: NA | Y74: NA | Z74: NA | AA74: NA | AB74: NA | AC74: NA | AD74: NA | AE74: NA | AF74: NA | AG74: NA | AH74: NA | AI74: NA | AJ74: NA | AK74: 6020A | AQ74: 29.82 | AU74: 0.0063 | BJ74: 0.0377 | BY74: 0.0187 | BZ74: 0.0577 | CA74: 0.0075 | CB74: 0.034 | CC74: 0.0084 | CD74: 0.0019 | CE74: 0.0094 | CF74: 0.0014 | CG74: 0.0078 | CH74: 0.0014 | CI74: 0.0035 | CJ74: 0.00046 | CK74: 0.0028 | CL74: 0.00041 | CR74: =IF(ISBLANK(FieldSampling1618[[#This Row],[Sample Reference '# ('# required to enable calculations)]]),"",SUM(FieldSampling1618[[#This Row],[La 57]:[Lu 71]])) -> 0.15537 | CS74: =IF(ISBLANK(FieldSampling1618[[#This Row],[Sample Reference '# ('# required to enable calculations)]]),"", SUM(FieldSampling1618[Lanthanides]+FieldSampling1618[Y 39])) -> 0.19307 | CU74: 200.7 | CV74: NA | CX74: 32.418 | CY74: 61.113 | CZ74: 42.164 | DB74: 10.69 | DC74: 0.76 | DI74: 1.395 | DJ74: 652
A75: 48 | B75: raw AMD | C75: WVDEP OSR WOCAP, Lat. 39.458535, Long. -79.728208 | F75: Resource Production | G75: Coal Mining | H75: Acid Mine Drainage | I75: NAPP | J75: Pennsylvanian | K75: Upper Freeport | L75: WV | M75: Preston | N75: wri AQ-48 | O75: WV | P75: Preston | Q75: wri AQ-48 | R75: 48 | S75: NA | T75: NA | U75: NA | V75: NA | W75: NA | X75: NA | Y75: NA | Z75: NA | AA75: NA | AB75: NA | AC75: NA | AD75: NA | AE75: NA | AF75: NA | AG75: NA | AH75: NA | AI75: NA | AJ75: NA | AK75: 6020A | AQ75: 26.539 | AU75: 0.0072 | BJ75: 0.0442 | BY75: 0.023 | BZ75: 0.0715 | CA75: 0.0092 | CB75: 0.0417 | CC75: 0.0102 | CD75: 0.0025 | CE75: 0.0117 | CF75: 0.0017 | CG75: 0.0095 | CH75: 0.0017 | CI75: 0.0043 | CJ75: 0.0006 | CK75: 0.0037 | CL75: 0.00049 | CR75: =IF(ISBLANK(FieldSampling1618[[#This Row],[Sample Reference '# ('# required to enable calculations)]]),"",SUM(FieldSampling1618[[#This Row],[La 57]:[Lu 71]])) -> 0.19179 | CS75: =IF(ISBLANK(FieldSampling1618[[#This Row],[Sample Reference '# ('# required to enable calculations)]]),"", SUM(FieldSampling1618[Lanthanides]+FieldSampling1618[Y 39])) -> 0.23599 | CU75: 200.7 | CV75: NA | CX75: 32.815 | CY75: 60.124 | CZ75: 26.86 | DB75: 11.347 | DC75: 1.036 | DI75: 1.301 | DJ75: 620
A76: 48 | B76: raw AMD | C76: WVDEP OSR WOCAP, Lat. 39.458535, Long. -79.728208 | F76: Resource Production | G76: Coal Mining | H76: Acid Mine Drainage | I76: NAPP | J76: Pennsylvanian | K76: Upper Freeport | L76: WV | M76: Preston | N76: wri AQ-48 | O76: WV | P76: Preston | Q76: wri AQ-48 | R76: 48 | S76: NA | T76: NA | U76: NA | V76: NA | W76: NA | X76: NA | Y76: NA | Z76: NA | AA76: NA | AB76: NA | AC76: NA | AD76: NA | AE76: NA | AF76: NA | AG76: NA | AH76: NA | AI76: NA | AJ76: NA | AK76: 6020A | AQ76: 16.183 | AU76: 0.0062 | BJ76: 0.0353 | BY76: 0.0201 | BZ76: 0.0632 | CA76: 0.0078 | CB76: 0.0369 | CC76: 0.0091 | CD76: 0.002 | CE76: 0.0101 | CF76: 0.0014 | CG76: 0.0074 | CH76: 0.0013 | CI76: 0.0038 | CJ76: 0.00044 | CK76: 0.0028 | CL76: 0.00039 | CR76: =IF(ISBLANK(FieldSampling1618[[#This Row],[Sample Reference '# ('# required to enable calculations)]]),"",SUM(FieldSampling1618[[#This Row],[La 57]:[Lu 71]])) -> 0.16673 | CS76: =IF(ISBLANK(FieldSampling1618[[#This Row],[Sample Reference '# ('# required to enable calculations)]]),"", SUM(FieldSampling1618[Lanthanides]+FieldSampling1618[Y 39])) -> 0.20203 | CU76: 200.7 | CV76: NA | CX76: 48.285 | CY76: 151.292 | CZ76: 423.809 | DB76: 96.911 | DC76: 3.446 | DI76: 4.087 | DJ76: 2040
A77: 49 | B77: raw AMD | C77: WVDEP OSR PRESTON ENERGY, Lat. 39.429154, Long. -79.769337 | F77: Resource Production | G77: Coal Mining | H77: Acid Mine Drainage | I77: =+I78 -> NAPP | J77: Pennsylvanian | K77: Upper Freeport | L77: =+L78 -> WV | M77: =+M78 -> Preston | N77: wri AQ-49 | O77: =+O78 -> WV | P77: =+P78 -> Preston | Q77: wri AQ-49 | R77: 49 | S77: NA | T77: NA | U77: NA | V77: NA | W77: NA | X77: NA | Y77: NA | Z77: NA | AA77: NA | AB77: NA | AC77: NA | AD77: NA | AE77: NA | AF77: NA | AG77: NA | AH77: NA | AI77: NA | AJ77: NA | AK77: 6020A | AQ77: 9.082 | AU77: 0.0017 | BJ77: 0.0194 | BY77: 0.0059 | BZ77: 0.0208 | CA77: 0.0027 | CB77: 0.014 | CC77: 0.0042 | CD77: 0.001 | CE77: 0.0051 | CF77: 0.00084 | CG77: 0.0043 | CH77: 0.00074 | CI77: 0.0019 | CJ77: 0.00025 | CK77: 0.0015 | CL77: 0.0002 | CR77: =IF(ISBLANK(FieldSampling1618[[#This Row],[Sample Reference '# ('# required to enable calculations)]]),"",SUM(FieldSampling1618[[#This Row],[La 57]:[Lu 71]])) -> 0.06343 | CS77: =IF(ISBLANK(FieldSampling1618[[#This Row],[Sample Reference '# ('# required to enable calculations)]]),"", SUM(FieldSampling1618[Lanthanides]+FieldSampling1618[Y 39])) -> 0.08283 | CU77: 200.7 | CV77: NA | CX77: 9.351 | CY77: 50.479 | CZ77: 1.388 | DB77: 8.538 | DC77: 1.503 | DI77: 2.279 | DJ77: 257
A78: 49 | B78: raw AMD | C78: WVDEP OSR PRESTON ENERGY, Lat. 39.429154, Long. -79.769337 | F78: Resource Production | G78: Coal Mining | H78: Acid Mine Drainage | I78: NAPP | J78: Pennsylvanian | K78: Upper Freeport | L78: WV | M78: Preston | N78: wri AQ-49 | O78: WV | P78: Preston | Q78: wri AQ-49 | R78: 49 | S78: NA | T78: NA | U78: NA | V78: NA | W78: NA | X78: NA | Y78: NA | Z78: NA | AA78: NA | AB78: NA | AC78: NA | AD78: NA | AE78: NA | AF78: NA | AG78: NA | AH78: NA | AI78: NA | AJ78: NA | AK78: 6020A | AQ78: 22.227 | AU78: 0.0028 | BJ78: 0.028 | BY78: 0.0089 | BZ78: 0.0301 | CA78: 0.0039 | CB78: 0.0203 | CC78: 0.0057 | CD78: 0.0014 | CE78: 0.0071 | CF78: 0.0011 | CG78: 0.0057 | CH78: 0.00097 | CI78: 0.0028 | CJ78: 0.00034 | CK78: 0.0021 | CL78: 0.00027 | CR78: =IF(ISBLANK(FieldSampling1618[[#This Row],[Sample Reference '# ('# required to enable calculations)]]),"",SUM(FieldSampling1618[[#This Row],[La 57]:[Lu 71]])) -> 0.09068 | CS78: =IF(ISBLANK(FieldSampling1618[[#This Row],[Sample Reference '# ('# required to enable calculations)]]),"", SUM(FieldSampling1618[Lanthanides]+FieldSampling1618[Y 39])) -> 0.11868 | CU78: 200.7 | CV78: NA | CX78: 29.602 | CY78: 36.408 | CZ78: 52.691 | DB78: 9.822 | DC78: 1.503 | DI78: 0.23 | DJ78: 629
A79: 50 | B79: raw AMD | C79: WVDEP OSR MANGUS, Lat. 39.370101, Long. -79.855909 | F79: Resource Production | G79: Coal Mining | H79: Acid Mine Drainage | I79: NAPP | J79: Pennsylvanian | K79: Unknown | L79: WV | M79: Preston | N79: wri AQ-50 | O79: WV | P79: Preston | Q79: wri AQ-50 | R79: 50 | S79: NA | T79: NA | U79: NA | V79: NA | W79: NA | X79: NA | Y79: NA | Z79: NA | AA79: NA | AB79: NA | AC79: NA | AD79: NA | AE79: NA | AF79: NA | AG79: NA | AH79: NA | AI79: NA | AJ79: NA | AK79: 6020A | AQ79: 15.194 | AU79: 0.0069 | BJ79: 0.458 | BY79: 0.178 | BZ79: 0.467 | CA79: 0.0495 | CB79: 0.228 | CC79: 0.0529 | CD79: 0.0146 | CE79: 0.0802 | CF79: 0.0129 | CG79: 0.0789 | CH79: 0.0149 | CI79: 0.0439 | CJ79: 0.0055 | CK79: 0.0332 | CL79: 0.0044 | CR79: =IF(ISBLANK(FieldSampling1618[[#This Row],[Sample Reference '# ('# required to enable calculations)]]),"",SUM(FieldSampling1618[[#This Row],[La 57]:[Lu 71]])) -> 1.2639 | CS79: =IF(ISBLANK(FieldSampling1618[[#This Row],[Sample Reference '# ('# required to enable calculations)]]),"", SUM(FieldSampling1618[Lanthanides]+FieldSampling1618[Y 39])) -> 1.7219 | CU79: 200.7 | CV79: NA | CX79: 16.963 | CY79: 60.885 | CZ79: 2.701 | DB79: 10.924 | DC79: 1.908 | DI79: 2.282 | DJ79: 374
A80: 50 | B80: raw AMD | C80: WVDEP OSR MANGUS, Lat. 39.370101, Long. -79.855909 | F80: Resource Production | G80: Coal Mining | H80: Acid Mine Drainage | I80: =+I79 -> NAPP | J80: Pennsylvanian | K80: Unknown | L80: =+L79 -> WV | M80: =+M79 -> Preston | N80: wri AQ-50 | O80: =+O79 -> WV | P80: =+P79 -> Preston | Q80: wri AQ-50 | R80: 50 | S80: NA | T80: NA | U80: NA | V80: NA | W80: NA | X80: NA | Y80: NA | Z80: NA | AA80: NA | AB80: NA | AC80: NA | AD80: NA | AE80: NA | AF80: NA | AG80: NA | AH80: NA | AI80: NA | AJ80: NA | AK80: 6020A | AQ80: 15.798 | AU80: 0.0096 | BJ80: 0.686 | BY80: 0.252 | BZ80: 0.644 | CA80: 0.0767 | CB80: 0.328 | CC80: 0.0733 | CD80: 0.0224 | CE80: 0.115 | CF80: 0.0203 | CG80: 0.119 | CH80: 0.0255 | CI80: 0.0703 | CJ80: 0.009 | CK80: 0.0501 | CL80: 0.0074 | CR80: =IF(ISBLANK(FieldSampling1618[[#This Row],[Sample Reference '# ('# required to enable calculations)]]),"",SUM(FieldSampling1618[[#This Row],[La 57]:[Lu 71]])) -> 1.813 | CS80: =IF(ISBLANK(FieldSampling1618[[#This Row],[Sample Reference '# ('# required to enable calculations)]]),"", SUM(FieldSampling1618[Lanthanides]+FieldSampling1618[Y 39])) -> 2.499 | CU80: 200.7 | CV80: NA | CX80: 59.219 | CY80: 179.85 | CZ80: 550.361 | DB80: 122.883 | DC80: 4.234 | DI80: 6.509 | DJ80: 3380
A81: 51 | B81: raw AMD | C81: WVDEP OSR F&M, Lat. 39.303126, Long. -79.773553 | F81: Resource Production | G81: Coal Mining | H81: Acid Mine Drainage | I81: =+I82 -> NAPP | J81: Pennsylvanian | K81: Lower Kittanning | L81: WV | M81: Preston | N81: wri AQ-51 | O81: =+O82 -> WV | P81: Preston | Q81: wri AQ-51 | R81: 51 | S81: NA | T81: NA | U81: NA | V81: NA | W81: NA | X81: NA | Y81: NA | Z81: NA | AA81: NA | AB81: NA | AC81: NA | AD81: NA | AE81: NA | AF81: NA | AG81: NA | AH81: NA | AI81: NA | AJ81: NA | AK81: 6020A | AQ81: 16.864 | AU81: 0.0081 | BJ81: 0.107 | BY81: 0.0361 | BZ81: 0.0899 | CA81: 0.013 | CB81: 0.0575 | CC81: 0.0141 | CD81: 0.004 | CE81: 0.0203 | CF81: 0.0036 | CG81: 0.0205 | CH81: 0.0041 | CI81: 0.0113 | CJ81: 0.0015 | CK81: 0.0088 | CL81: 0.0013 | CR81: =IF(ISBLANK(FieldSampling1618[[#This Row],[Sample Reference '# ('# required to enable calculations)]]),"",SUM(FieldSampling1618[[#This Row],[La 57]:[Lu 71]])) -> 0.286 | CS81: =IF(ISBLANK(FieldSampling1618[[#This Row],[Sample Reference '# ('# required to enable calculations)]]),"", SUM(FieldSampling1618[Lanthanides]+FieldSampling1618[Y 39])) -> 0.393 | CU81: 200.7 | CV81: NA | CX81: 34.239 | CY81: 55.598 | CZ81: 9.504 | DB81: 45.271 | DC81: 1.031 | DI81: 1.325 | DJ81: 708
A82: 51 | B82: raw AMD | C82: WVDEP OSR F&M, Lat. 39.303126, Long. -79.773553 | F82: Resource Production | G82: Coal Mining | H82: Acid Mine Drainage | I82: NAPP | J82: Pennsylvanian | K82: Lower Kittanning | L82: WV | M82: Preston | N82: wri AQ-51 | O82: WV | P82: Preston | Q82: wri AQ-51 | R82: 51 | S82: NA | T82: NA | U82: NA | V82: NA | W82: NA | X82: NA | Y82: NA | Z82: NA | AA82: NA | AB82: NA | AC82: NA | AD82: NA | AE82: NA | AF82: NA | AG82: NA | AH82: NA | AI82: NA | AJ82: NA | AK82: 6020A | AQ82: 24.288 | AU82: 0.0133 | BJ82: 0.185 | BY82: 0.0622 | BZ82: 0.176 | CA82: 0.0248 | CB82: 0.108 | CC82: 0.0295 | CD82: 0.009 | CE82: 0.0415 | CF82: 0.0069 | CG82: 0.0369 | CH82: 0.0072 | CI82: 0.0192 | CJ82: 0.0025 | CK82: 0.0147 | CL82: 0.0021 | CR82: =IF(ISBLANK(FieldSampling1618[[#This Row],[Sample Reference '# ('# required to enable calculations)]]),"",SUM(FieldSampling1618[[#This Row],[La 57]:[Lu 71]])) -> 0.5405 | CS82: =IF(ISBLANK(FieldSampling1618[[#This Row],[Sample Reference '# ('# required to enable calculations)]]),"", SUM(FieldSampling1618[Lanthanides]+FieldSampling1618[Y 39])) -> 0.7255 | CU82: 200.7 | CV82: NA | CX82: 57.242 | CY82: 84.157 | CZ82: 13.437 | DB82: 74.541 | DC82: 2.059 | DI82: 1.812 | DJ82: 1330
A83: 51 | B83: raw AMD | C83: WVDEP OSR F&M, Lat. 39.303126, Long. -79.773553 | F83: Resource Production | G83: Coal Mining | H83: Acid Mine Drainage | I83: NAPP | J83: Pennsylvanian | K83: Lower Kittanning | L83: WV | M83: Preston | N83: wri AQ-51 | O83: WV | P83: Preston | Q83: wri AQ-51 | R83: 51 | S83: NA | T83: NA | U83: NA | V83: NA | W83: NA | X83: NA | Y83: NA | Z83: NA | AA83: NA | AB83: NA | AC83: NA | AD83: NA | AE83: NA | AF83: NA | AG83: NA | AH83: NA | AI83: NA | AJ83: NA | AK83: 6020A | AQ83: 18.613 | AU83: 0.0086 | BJ83: 0.129 | BY83: 0.0406 | BZ83: 0.119 | CA83: 0.0149 | CB83: 0.0754 | CC83: 0.0213 | CD83: 0.0058 | CE83: 0.03 | CF83: 0.0047 | CG83: 0.026 | CH83: 0.0044 | CI83: 0.0132 | CJ83: 0.0016 | CK83: 0.0104 | CL83: 0.0014 | CR83: =IF(ISBLANK(FieldSampling1618[[#This Row],[Sample Reference '# ('# required to enable calculations)]]),"",SUM(FieldSampling1618[[#This Row],[La 57]:[Lu 71]])) -> 0.3687 | CS83: =IF(ISBLANK(FieldSampling1618[[#This Row],[Sample Reference '# ('# required to enable calculations)]]),"", SUM(FieldSampling1618[Lanthanides]+FieldSampling1618[Y 39])) -> 0.4977 | CU83: 200.7 | CV83: NA | CX83: 40.438 | CY83: 75.794 | CZ83: 42.101 | DB83: 61.93 | DC83: 4.283 | DI83: 0.68 | DJ83: 806
A84: 52 | B84: raw AMD | C84: WVDEP OSR F&M, Lat. 39.316762, Long. -79.766314 | F84: Resource Production | G84: Coal Mining | H84: Acid Mine Drainage | I84: NAPP | J84: Pennsylvanian | K84: Lower Kittanning | L84: WV | M84: Preston | N84: wri AQ-52 | O84: WV | P84: Preston | Q84: wri AQ-52 | R84: 52 | S84: NA | T84: NA | U84: NA | V84: NA | W84: NA | X84: NA | Y84: NA | Z84: NA | AA84: NA | AB84: NA | AC84: NA | AD84: NA | AE84: NA | AF84: NA | AG84: NA | AH84: NA | AI84: NA | AJ84: NA | AK84: 6020A | AQ84: 12.41 | AU84: 0.0055 | BJ84: 0.0733 | BY84: 0.0243 | BZ84: 0.0663 | CA84: 0.0086 | CB84: 0.0419 | CC84: 0.0108 | CD84: 0.0028 | CE84: 0.0147 | CF84: 0.0024 | CG84: 0.0142 | CH84: 0.0025 | CI84: 0.0076 | CJ84: 0.00095 | CK84: 0.006 | CL84: 0.00081 | CR84: =IF(ISBLANK(FieldSampling1618[[#This Row],[Sample Reference '# ('# required to enable calculations)]]),"",SUM(FieldSampling1618[[#This Row],[La 57]:[Lu 71]])) -> 0.20386 | CS84: =IF(ISBLANK(FieldSampling1618[[#This Row],[Sample Reference '# ('# required to enable calculations)]]),"", SUM(FieldSampling1618[Lanthanides]+FieldSampling1618[Y 39])) -> 0.27716 | CU84: 200.7 | CV84: NA | CX84: 23.358 | CY84: 43.841 | CZ84: 8.822 | DB84: 36.123 | DC84: 0.996 | DI84: 0.351 | DJ84: 494
A85: 53 | B85: raw AMD | C85: WVDEP OSR DAUGHERTY, Lat. 39.561261, Long. -79.738453 | F85: Resource Production | G85: Coal Mining | H85: Acid Mine Drainage | I85: =+I86 -> NAPP | J85: Pennsylvanian | K85: Upper Freeport | L85: =+L86 -> WV | M85: =+M86 -> Preston | N85: wri AQ-53 | O85: =+O86 -> WV | P85: =+P86 -> Preston | Q85: wri AQ-53 | R85: 53 | S85: NA | T85: NA | U85: NA | V85: NA | W85: NA | X85: NA | Y85: NA | Z85: NA | AA85: NA | AB85: NA | AC85: NA | AD85: NA | AE85: NA | AF85: NA | AG85: NA | AH85: NA | AI85: NA | AJ85: NA | AK85: 6020A | AQ85: 14.809 | AU85: 0.0041 | BJ85: 0.0665 | BY85: 0.0174 | BZ85: 0.0603 | CA85: 0.0086 | CB85: 0.0441 | CC85: 0.0133 | CD85: 0.0037 | CE85: 0.0186 | CF85: 0.0028 | CG85: 0.0147 | CH85: 0.0026 | CI85: 0.0066 | CJ85: 0.00081 | CK85: 0.005 | CL85: 0.00069 | CR85: =IF(ISBLANK(FieldSampling1618[[#This Row],[Sample Reference '# ('# required to enable calculations)]]),"",SUM(FieldSampling1618[[#This Row],[La 57]:[Lu 71]])) -> 0.1992 | CS85: =IF(ISBLANK(FieldSampling1618[[#This Row],[Sample Reference '# ('# required to enable calculations)]]),"", SUM(FieldSampling1618[Lanthanides]+FieldSampling1618[Y 39])) -> 0.2657 | CU85: 200.7 | CV85: NA | CX85: 16.171 | CY85: 195.282 | CZ85: 12.016 | DB85: 82.278 | DC85: 1.352 | DI85: 1.391 | DJ85: 1010
A86: 53 | B86: raw AMD | C86: WVDEP OSR DAUGHERTY, Lat. 39.561261, Long. -79.738453 | F86: Resource Production | G86: Coal Mining | H86: Acid Mine Drainage | I86: NAPP | J86: Pennsylvanian | K86: Upper Freeport | L86: WV | M86: Preston | N86: wri AQ-53 | O86: WV | P86: Preston | Q86: wri AQ-53 | R86: 53 | S86: NA | T86: NA | U86: NA | V86: NA | W86: NA | X86: NA | Y86: NA | Z86: NA | AA86: NA | AB86: NA | AC86: NA | AD86: NA | AE86: NA | AF86: NA | AG86: NA | AH86: NA | AI86: NA | AJ86: NA | AK86: 6020A | AQ86: 10.655 | AU86: 0.0029 | BJ86: 0.0304 | BY86: 0.0108 | BZ86: 0.0353 | CA86: 0.0046 | CB86: 0.0239 | CC86: 0.007 | CD86: 0.0017 | CE86: 0.0086 | CF86: 0.0012 | CG86: 0.0066 | CH86: 0.0011 | CI86: 0.0031 | CJ86: 0.00038 | CK86: 0.0023 | CL86: 0.00032 | CR86: =IF(ISBLANK(FieldSampling1618[[#This Row],[Sample Reference '# ('# required to enable calculations)]]),"",SUM(FieldSampling1618[[#This Row],[La 57]:[Lu 71]])) -> 0.1069 | CS86: =IF(ISBLANK(FieldSampling1618[[#This Row],[Sample Reference '# ('# required to enable calculations)]]),"", SUM(FieldSampling1618[Lanthanides]+FieldSampling1618[Y 39])) -> 0.1373 | CU86: 200.7 | CV86: NA | CX86: 11.457 | CY86: 127.434 | CZ86: 5.217 | DB86: 61.835 | DC86: 1.114 | DI86: 0.0175 | DJ86: 629
A87: 54 | B87: raw AMD | C87: WVDEP OSR DAUGHERTY, Lat. 39.568147, Long. -79.746906 | F87: Resource Production | G87: Coal Mining | H87: Acid Mine Drainage | I87: =+I88 -> NAPP | J87: Pennsylvanian | K87: Upper Freeport | L87: =+L88 -> WV | M87: =+M88 -> Preston | N87: wri AQ-54 | O87: =+O88 -> WV | P87: =+P88 -> Preston | Q87: wri AQ-54 | R87: 54 | S87: NA | T87: NA | U87: NA | V87: NA | W87: NA | X87: NA | Y87: NA | Z87: NA | AA87: NA | AB87: NA | AC87: NA | AD87: NA | AE87: NA | AF87: NA | AG87: NA | AH87: NA | AI87: NA | AJ87: NA | AK87: 6020A | AQ87: 14.889 | AU87: 0.0018 | BJ87: 0.0287 | BY87: 0.0082 | BZ87: 0.0285 | CA87: 0.0038 | CB87: 0.0198 | CC87: 0.0059 | CD87: 0.0016 | CE87: 0.0081 | CF87: 0.0011 | CG87: 0.0063 | CH87: 0.0011 | CI87: 0.0027 | CJ87: 0.00034 | CK87: 0.0018 | CL87: 0.00028 | CR87: =IF(ISBLANK(FieldSampling1618[[#This Row],[Sample Reference '# ('# required to enable calculations)]]),"",SUM(FieldSampling1618[[#This Row],[La 57]:[Lu 71]])) -> 0.08952 | CS87: =IF(ISBLANK(FieldSampling1618[[#This Row],[Sample Reference '# ('# required to enable calculations)]]),"", SUM(FieldSampling1618[Lanthanides]+FieldSampling1618[Y 39])) -> 0.11822 | CU87: 200.7 | CV87: NA | CX87: 9.047 | CY87: 67.324 | CZ87: 60.401 | DB87: 24.133 | DC87: 0.983 | DI87: 1.416 | DJ87: 534
A88: 54 | B88: raw AMD | C88: WVDEP OSR DAUGHERTY, Lat. 39.568147, Long. -79.746906 | F88: Resource Production | G88: Coal Mining | H88: Acid Mine Drainage | I88: NAPP | J88: Pennsylvanian | K88: Upper Freeport | L88: WV | M88: Preston | N88: wri AQ-54 | O88: WV | P88: Preston | Q88: wri AQ-54 | R88: 54 | S88: NA | T88: NA | U88: NA | V88: NA | W88: NA | X88: NA | Y88: NA | Z88: NA | AA88: NA | AB88: NA | AC88: NA | AD88: NA | AE88: NA | AF88: NA | AG88: NA | AH88: NA | AI88: NA | AJ88: NA | AK88: 6020A | AQ88: 12.961 | AU88: 0.0059 | BJ88: 0.0324 | BY88: 0.014 | BZ88: 0.0425 | CA88: 0.0051 | CB88: 0.0253 | CC88: 0.0071 | CD88: 0.0018 | CE88: 0.0089 | CF88: 0.0013 | CG88: 0.0072 | CH88: 0.0012 | CI88: 0.0035 | CJ88: 0.00041 | CK88: 0.0025 | CL88: 0.00033 | CR88: =IF(ISBLANK(FieldSampling1618[[#This Row],[Sample Reference '# ('# required to enable calculations)]]),"",SUM(FieldSampling1618[[#This Row],[La 57]:[Lu 71]])) -> 0.12114 | CS88: =IF(ISBLANK(FieldSampling1618[[#This Row],[Sample Reference '# ('# required to enable calculations)]]),"", SUM(FieldSampling1618[Lanthanides]+FieldSampling1618[Y 39])) -> 0.15354 | CU88: 200.7 | CV88: NA | CX88: 17.502 | CY88: 70.136 | CZ88: 4.911 | DB88: 25.044 | DC88: 0.972 | DI88: 0.557 | DJ88: 460
A89: 55 | B89: raw AMD | C89: Restricted under terms of access NDA | F89: Resource Production | G89: Coal Mining | H89: Acid Mine Drainage | I89: NAPP | J89: Pennsylvanian | K89: Refuse | L89: WV | M89: Preston | N89: wri AQ-55 | O89: WV | P89: Preston | Q89: wri AQ-55 | R89: 55 | S89: NA | T89: NA | U89: NA | V89: NA | W89: NA | X89: NA | Y89: NA | Z89: NA | AA89: NA | AB89: NA | AC89: NA | AD89: NA | AE89: NA | AF89: NA | AG89: NA | AH89: NA | AI89: NA | AJ89: NA | AK89: 6020A | AQ89: 11.196 | AU89: 0.0054 | BJ89: 0.0285 | BY89: 0.0071 | BZ89: 0.0293 | CA89: 0.0038 | CB89: 0.0211 | CC89: 0.0063 | CD89: 0.0015 | CE89: 0.0077 | CF89: 0.0012 | CG89: 0.0067 | CH89: 0.0012 | CI89: 0.0034 | CJ89: 0.00043 | CK89: 0.0027 | CL89: 0.00034 | CR89: =IF(ISBLANK(FieldSampling1618[[#This Row],[Sample Reference '# ('# required to enable calculations)]]),"",SUM(FieldSampling1618[[#This Row],[La 57]:[Lu 71]])) -> 0.09277 | CS89: =IF(ISBLANK(FieldSampling1618[[#This Row],[Sample Reference '# ('# required to enable calculations)]]),"", SUM(FieldSampling1618[Lanthanides]+FieldSampling1618[Y 39])) -> 0.12127 | CU89: 200.7 | CV89: NA | CX89: 27.488 | CY89: 126.014 | CZ89: 186.126 | DB89: 30.054 | DC89: 45.815 | DI89: 2.036 | DJ89: 1020
A90: 56 | B90: raw AMD | C90: Restricted under terms of access NDA | F90: Resource Production | G90: Coal Mining | H90: Acid Mine Drainage | I90: NAPP | J90: Pennsylvanian | K90: Freeport - Upper & Lower | L90: WV | M90: Tucker | N90: wri AQ-56 | O90: WV | P90: Tucker | Q90: wri AQ-56 | R90: 56 | S90: NA | T90: NA | U90: NA | V90: NA | W90: NA | X90: NA | Y90: NA | Z90: NA | AA90: NA | AB90: NA | AC90: NA | AD90: NA | AE90: NA | AF90: NA | AG90: NA | AH90: NA | AI90: NA | AJ90: NA | AK90: 6020A | AQ90: 2.574 | AU90: 0 | BJ90: 0.00015 | BY90: 0 | BZ90: 0 | CA90: 0 | CB90: 0 | CC90: 0 | CD90: 0 | CE90: 0 | CF90: 0 | CG90: 0 | CH90: 0 | CI90: 4.6e-05 | CJ90: 0 | CK90: 5.6e-05 | CL90: 0 | CR90: =IF(ISBLANK(FieldSampling1618[[#This Row],[Sample Reference '# ('# required to enable calculations)]]),"",SUM(FieldSampling1618[[#This Row],[La 57]:[Lu 71]])) -> 0.000102 | CS90: =IF(ISBLANK(FieldSampling1618[[#This Row],[Sample Reference '# ('# required to enable calculations)]]),"", SUM(FieldSampling1618[Lanthanides]+FieldSampling1618[Y 39])) -> 0.000252 | CU90: 200.7 | CV90: NA | CX90: 0.019 | CY90: 246.197 | CZ90: 4.592 | DB90: 56.786 | DC90: 6.316 | DI90: 0.0175 | DJ90: 542
A91: 57 | B91: raw AMD | C91: Restricted under terms of access NDA | F91: Resource Production | G91: Coal Mining | H91: Acid Mine Drainage | I91: =+I92 -> NAPP | J91: Pennsylvanian | K91: Freeport | L91: WV | M91: Monongalia | N91: wri AQ-57 | O91: =+O92 -> WV | P91: Monongalia | Q91: wri AQ-57 | R91: 57 | S91: NA | T91: NA | U91: NA | V91: NA | W91: NA | X91: NA | Y91: NA | Z91: NA | AA91: NA | AB91: NA | AC91: NA | AD91: NA | AE91: NA | AF91: NA | AG91: NA | AH91: NA | AI91: NA | AJ91: NA | AK91: 6020A | AQ91: 16.25 | AU91: 0.0051 | BJ91: 0.0598 | BY91: 0.0054 | BZ91: 0.0222 | CA91: 0.0035 | CB91: 0.02 | CC91: 0.0099 | CD91: 0.003 | CE91: 0.0156 | CF91: 0.0025 | CG91: 0.0136 | CH91: 0.0027 | CI91: 0.0071 | CJ91: 0.00091 | CK91: 0.0052 | CL91: 0.00075 | CR91: =IF(ISBLANK(FieldSampling1618[[#This Row],[Sample Reference '# ('# required to enable calculations)]]),"",SUM(FieldSampling1618[[#This Row],[La 57]:[Lu 71]])) -> 0.11236 | CS91: =IF(ISBLANK(FieldSampling1618[[#This Row],[Sample Reference '# ('# required to enable calculations)]]),"", SUM(FieldSampling1618[Lanthanides]+FieldSampling1618[Y 39])) -> 0.17216 | CU91: 200.7 | CV91: NA | CX91: 24.008 | CY91: 272.42 | CZ91: 5.59 | DB91: 87.896 | DC91: 10.999 | DI91: 1.853 | DJ91: 1440
A92: 57 | B92: raw AMD | C92: Restricted under terms of access NDA | F92: Resource Production | G92: Coal Mining | H92: Acid Mine Drainage | I92: NAPP | J92: Pennsylvanian | K92: Freeport | L92: WV | M92: Monongalia | N92: wri AQ-57 | O92: WV | P92: Monongalia | Q92: wri AQ-57 | R92: 57 | S92: NA | T92: NA | U92: NA | V92: NA | W92: NA | X92: NA | Y92: NA | Z92: NA | AA92: NA | AB92: NA | AC92: NA | AD92: NA | AE92: NA | AF92: NA | AG92: NA | AH92: NA | AI92: NA | AJ92: NA | AK92: 6020A | AQ92: 20.124 | AU92: 0.0068 | BJ92: 0.0494 | BY92: 0.0041 | BZ92: 0.0158 | CA92: 0.0027 | CB92: 0.0155 | CC92: 0.0072 | CD92: 0.0021 | CE92: 0.0118 | CF92: 0.002 | CG92: 0.0114 | CH92: 0.0022 | CI92: 0.006 | CJ92: 0.00079 | CK92: 0.0046 | CL92: 0.00067 | CR92: =IF(ISBLANK(FieldSampling1618[[#This Row],[Sample Reference '# ('# required to enable calculations)]]),"",SUM(FieldSampling1618[[#This Row],[La 57]:[Lu 71]])) -> 0.08686 | CS92: =IF(ISBLANK(FieldSampling1618[[#This Row],[Sample Reference '# ('# required to enable calculations)]]),"", SUM(FieldSampling1618[Lanthanides]+FieldSampling1618[Y 39])) -> 0.13626 | CU92: 200.7 | CV92: NA | CX92: 26.239 | CY92: 253.326 | CZ92: 9.125 | DB92: 87.299 | DC92: 12.032 | DI92: 2.158 | DJ92: 1070
A93: 57 | B93: raw AMD | C93: Restricted under terms of access NDA | F93: Resource Production | G93: Coal Mining | H93: Acid Mine Drainage | I93: NAPP | J93: Pennsylvanian | K93: Freeport | L93: WV | M93: Monongalia | N93: wri AQ-57 | O93: WV | P93: Monongalia | Q93: wri AQ-57 | R93: 57 | S93: NA | T93: NA | U93: NA | V93: NA | W93: NA | X93: NA | Y93: NA | Z93: NA | AA93: NA | AB93: NA | AC93: NA | AD93: NA | AE93: NA | AF93: NA | AG93: NA | AH93: NA | AI93: NA | AJ93: NA | AK93: 6020A | AQ93: 9.601 | AU93: 0.0041 | BJ93: 0.0179 | BY93: 0.0016 | BZ93: 0.0063 | CA93: 0.001 | CB93: 0.0063 | CC93: 0.0029 | CD93: 0.00089 | CE93: 0.0048 | CF93: 0.00084 | CG93: 0.0047 | CH93: 0.00081 | CI93: 0.0024 | CJ93: 0.00029 | CK93: 0.0019 | CL93: 0.00024 | CR93: =IF(ISBLANK(FieldSampling1618[[#This Row],[Sample Reference '# ('# required to enable calculations)]]),"",SUM(FieldSampling1618[[#This Row],[La 57]:[Lu 71]])) -> 0.03497 | CS93: =IF(ISBLANK(FieldSampling1618[[#This Row],[Sample Reference '# ('# required to enable calculations)]]),"", SUM(FieldSampling1618[Lanthanides]+FieldSampling1618[Y 39])) -> 0.05287 | CU93: 200.7 | CV93: NA | CX93: 11.981 | CY93: 120.124 | CZ93: 4.297 | DB93: 41.04 | DC93: 4.657 | DI93: 0.904 | DJ93: 516
A94: 58 | B94: raw AMD | C94: Restricted under terms of access NDA | F94: Resource Production | G94: Coal Mining | H94: Acid Mine Drainage | I94: NAPP | J94: Pennsylvanian | K94: Freeport | L94: WV | M94: Monongalia | N94: wri AQ-58 | O94: WV | P94: Monongalia | Q94: wri AQ-58 | R94: 58 | S94: NA | T94: NA | U94: NA | V94: NA | W94: NA | X94: NA | Y94: NA | Z94: NA | AA94: NA | AB94: NA | AC94: NA | AD94: NA | AE94: NA | AF94: NA | AG94: NA | AH94: NA | AI94: NA | AJ94: NA | AK94: 6020A | AQ94: 14.654 | AU94: 0.0027 | BJ94: 0.0711 | BY94: 0.0266 | BZ94: 0.0777 | CA94: 0.0101 | CB94: 0.0524 | CC94: 0.0156 | CD94: 0.0041 | CE94: 0.0215 | CF94: 0.0031 | CG94: 0.0164 | CH94: 0.0025 | CI94: 0.0072 | CJ94: 0.00083 | CK94: 0.0052 | CL94: 0.00064 | CR94: =IF(ISBLANK(FieldSampling1618[[#This Row],[Sample Reference '# ('# required to enable calculations)]]),"",SUM(FieldSampling1618[[#This Row],[La 57]:[Lu 71]])) -> 0.24387 | CS94: =IF(ISBLANK(FieldSampling1618[[#This Row],[Sample Reference '# ('# required to enable calculations)]]),"", SUM(FieldSampling1618[Lanthanides]+FieldSampling1618[Y 39])) -> 0.31497 | CU94: 200.7 | CV94: NA | CX94: 18.195 | CY94: 182.566 | CZ94: 1.274 | DB94: 85.173 | DC94: 5.461 | DI94: 0.948 | DJ94: 867
A95: 58 | B95: raw AMD | C95: Restricted under terms of access NDA | F95: Resource Production | G95: Coal Mining | H95: Acid Mine Drainage | I95: =+I94 -> NAPP | J95: Pennsylvanian | K95: Freeport | L95: =+L94 -> WV | M95: =+M94 -> Monongalia | N95: wri AQ-58 | O95: =+O94 -> WV | P95: =+P94 -> Monongalia | Q95: wri AQ-58 | R95: 58 | S95: NA | T95: NA | U95: NA | V95: NA | W95: NA | X95: NA | Y95: NA | Z95: NA | AA95: NA | AB95: NA | AC95: NA | AD95: NA | AE95: NA | AF95: NA | AG95: NA | AH95: NA | AI95: NA | AJ95: NA | AK95: 6020A | AQ95: 10.449 | AU95: 0.0013 | BJ95: 0.0649 | BY95: 0.0241 | BZ95: 0.0699 | CA95: 0.0084 | CB95: 0.0381 | CC95: 0.0108 | CD95: 0.0029 | CE95: 0.0151 | CF95: 0.0022 | CG95: 0.0118 | CH95: 0.0022 | CI95: 0.0058 | CJ95: 0.00071 | CK95: 0.004 | CL95: 0.00056 | CR95: =IF(ISBLANK(FieldSampling1618[[#This Row],[Sample Reference '# ('# required to enable calculations)]]),"",SUM(FieldSampling1618[[#This Row],[La 57]:[Lu 71]])) -> 0.19657 | CS95: =IF(ISBLANK(FieldSampling1618[[#This Row],[Sample Reference '# ('# required to enable calculations)]]),"", SUM(FieldSampling1618[Lanthanides]+FieldSampling1618[Y 39])) -> 0.26147 | CU95: 200.7 | CV95: NA | CX95: 11.761 | CY95: 353.948 | CZ95: 3.293 | DB95: 75.116 | DC95: 8.677 | DI95: 1.443 | DJ95: 1280
A96: 59 | B96: raw AMD | C96: PADEP Pearce Site, Lat. 40.975194, Long. -78.318800 | F96: Resource Production | G96: Coal Mining | H96: Acid Mine Drainage | I96: =+I97 -> NAPP | J96: Pennsylvanian | K96: Lower Kittanning | L96: =+L97 -> PA | M96: =+M97 -> Clearfield | N96: wri AQ-59 | O96: =+O97 -> PA | P96: =+P97 -> Clearfield | Q96: wri AQ-59 | R96: 59 | S96: NA | T96: NA | U96: NA | V96: NA | W96: NA | X96: NA | Y96: NA | Z96: NA | AA96: NA | AB96: NA | AC96: NA | AD96: NA | AE96: NA | AF96: NA | AG96: NA | AH96: NA | AI96: NA | AJ96: NA | AK96: 6020A | AQ96: 23.815 | AU96: 0.0153 | BJ96: 0.0928 | BY96: 0.0073 | BZ96: 0.0259 | CA96: 0.0044 | CB96: 0.024 | CC96: 0.0088 | CD96: 0.0027 | CE96: 0.017 | CF96: 0.0031 | CG96: 0.0196 | CH96: 0.0036 | CI96: 0.0097 | CJ96: 0.0013 | CK96: 0.0075 | CL96: 0.001 | CR96: =IF(ISBLANK(FieldSampling1618[[#This Row],[Sample Reference '# ('# required to enable calculations)]]),"",SUM(FieldSampling1618[[#This Row],[La 57]:[Lu 71]])) -> 0.1359 | CS96: =IF(ISBLANK(FieldSampling1618[[#This Row],[Sample Reference '# ('# required to enable calculations)]]),"", SUM(FieldSampling1618[Lanthanides]+FieldSampling1618[Y 39])) -> 0.2287 | CU96: 200.7 | CV96: NA | CX96: 25.951 | CY96: 95.085 | CZ96: 7.031 | DB96: 110.652 | DC96: 3.05 | DI96: 1.616 | DJ96: 1030
A97: 59 | B97: raw AMD | C97: PADEP Pearce Site, Lat. 40.975194, Long. -78.318800 | F97: Resource Production | G97: Coal Mining | H97: Acid Mine Drainage | I97: NAPP | J97: Pennsylvanian | K97: Lower Kittanning | L97: PA | M97: Clearfield | N97: wri AQ-59 | O97: PA | P97: Clearfield | Q97: wri AQ-59 | R97: 59 | S97: NA | T97: NA | U97: NA | V97: NA | W97: NA | X97: NA | Y97: NA | Z97: NA | AA97: NA | AB97: NA | AC97: NA | AD97: NA | AE97: NA | AF97: NA | AG97: NA | AH97: NA | AI97: NA | AJ97: NA | AK97: 6020A | AQ97: 20.363 | AU97: 0.0097 | BJ97: 0.103 | BY97: 0.0093 | BZ97: 0.0308 | CA97: 0.005 | CB97: 0.0276 | CC97: 0.01 | CD97: 0.0029 | CE97: 0.0187 | CF97: 0.0034 | CG97: 0.0195 | CH97: 0.0038 | CI97: 0.0105 | CJ97: 0.0014 | CK97: 0.0078 | CL97: 0.0012 | CR97: =IF(ISBLANK(FieldSampling1618[[#This Row],[Sample Reference '# ('# required to enable calculations)]]),"",SUM(FieldSampling1618[[#This Row],[La 57]:[Lu 71]])) -> 0.1519 | CS97: =IF(ISBLANK(FieldSampling1618[[#This Row],[Sample Reference '# ('# required to enable calculations)]]),"", SUM(FieldSampling1618[Lanthanides]+FieldSampling1618[Y 39])) -> 0.2549 | CU97: 200.7 | CV97: NA | CX97: 28.648 | CY97: 109.807 | CZ97: 4.731 | DB97: 138.206 | DC97: 3.869 | DI97: 1.109 | DJ97: 1060
A98: 60 | B98: raw AMD | C98: PADEP Pearce Site, Lat. 40.974971, Long. -78.318778 | F98: Resource Production | G98: Coal Mining | H98: Acid Mine Drainage | I98: NAPP | J98: Pennsylvanian | K98: Lower Kittanning | L98: PA | M98: Clearfield | N98: wri AQ-60 | O98: PA | P98: Clearfield | Q98: wri AQ-60 | R98: 60 | S98: NA | T98: NA | U98: NA | V98: NA | W98: NA | X98: NA | Y98: NA | Z98: NA | AA98: NA | AB98: NA | AC98: NA | AD98: NA | AE98: NA | AF98: NA | AG98: NA | AH98: NA | AI98: NA | AJ98: NA | AK98: 6020A | AQ98: 19.965 | AU98: 0.0092 | BJ98: 0.103 | BY98: 0.0092 | BZ98: 0.0304 | CA98: 0.0049 | CB98: 0.0277 | CC98: 0.0098 | CD98: 0.0029 | CE98: 0.0192 | CF98: 0.0034 | CG98: 0.0196 | CH98: 0.0038 | CI98: 0.0106 | CJ98: 0.0014 | CK98: 0.0077 | CL98: 0.0012 | CR98: =IF(ISBLANK(FieldSampling1618[[#This Row],[Sample Reference '# ('# required to enable calculations)]]),"",SUM(FieldSampling1618[[#This Row],[La 57]:[Lu 71]])) -> 0.1518 | CS98: =IF(ISBLANK(FieldSampling1618[[#This Row],[Sample Reference '# ('# required to enable calculations)]]),"", SUM(FieldSampling1618[Lanthanides]+FieldSampling1618[Y 39])) -> 0.2548 | CU98: 200.7 | CV98: NA | CX98: 28.434 | CY98: 108.435 | CZ98: 4.837 | DB98: 137.959 | DC98: 3.706 | DI98: 0.979 | DJ98: 1080
A99: 61 | B99: raw AMD | C99: PADEP Pearce Site, Lat. 40.975115, Long. -78.318799 | F99: Resource Production | G99: Coal Mining | H99: Acid Mine Drainage | I99: NAPP | J99: Pennsylvanian | K99: Lower Kittanning | L99: PA | M99: Clearfield | N99: wri AQ-61 | O99: PA | P99: Clearfield | Q99: wri AQ-61 | R99: 61 | S99: NA | T99: NA | U99: NA | V99: NA | W99: NA | X99: NA | Y99: NA | Z99: NA | AA99: NA | AB99: NA | AC99: NA | AD99: NA | AE99: NA | AF99: NA | AG99: NA | AH99: NA | AI99: NA | AJ99: NA | AK99: 6020A | AQ99: 18.972 | AU99: 0.0084 | BJ99: 0.0957 | BY99: 0.0093 | BZ99: 0.0298 | CA99: 0.0047 | CB99: 0.0266 | CC99: 0.0096 | CD99: 0.0027 | CE99: 0.0175 | CF99: 0.0032 | CG99: 0.0181 | CH99: 0.0035 | CI99: 0.0096 | CJ99: 0.0013 | CK99: 0.0071 | CL99: 0.0011 | CR99: =IF(ISBLANK(FieldSampling1618[[#This Row],[Sample Reference '# ('# required to enable calculations)]]),"",SUM(FieldSampling1618[[#This Row],[La 57]:[Lu 71]])) -> 0.1441 | CS99: =IF(ISBLANK(FieldSampling1618[[#This Row],[Sample Reference '# ('# required to enable calculations)]]),"", SUM(FieldSampling1618[Lanthanides]+FieldSampling1618[Y 39])) -> 0.2398 | CU99: 200.7 | CV99: NA | CX99: 26.152 | CY99: 111.676 | CZ99: 6.934 | DB99: 133.244 | DC99: 3.721 | DI99: 0.993 | DJ99: 1100
A100: 62 | B100: raw AMD | C100: WVDEP OSR Royal Scot Mine #59, Lat. 38.041936, Long. -80.621586 | F100: Resource Production | G100: Coal Mining | H100: Acid Mine Drainage | I100: CAPP | J100: Pennsylvanian | K100: Poca 6 | L100: WV | M100: Greenbrier | N100: wri AQ-62 | O100: WV | P100: Greenbrier | Q100: wri AQ-62 | R100: 62 | S100: NA | T100: NA | U100: NA | V100: NA | W100: NA | X100: NA | Y100: NA | Z100: NA | AA100: NA | AB100: NA | AC100: NA | AD100: NA | AE100: NA | AF100: NA | AG100: NA | AH100: NA | AI100: NA | AJ100: NA | AK100: 6020A | AQ100: 7.053 | AU100: 0.0018 | BJ100: 0.0091 | BY100: 0.0043 | BZ100: 0.008 | CA100: 0.0014 | CB100: 0.0068 | CC100: 0.0021 | CD100: 0.00045 | CE100: 0.0021 | CF100: 0.00027 | CG100: 0.0014 | CH100: 0.00029 | CI100: 0.0008 | CJ100: 0.00011 | CK100: 0.00066 | CL100: 0.0001 | CR100: =IF(ISBLANK(FieldSampling1618[[#This Row],[Sample Reference '# ('# required to enable calculations)]]),"",SUM(FieldSampling1618[[#This Row],[La 57]:[Lu 71]])) -> 0.02878 | CS100: =IF(ISBLANK(FieldSampling1618[[#This Row],[Sample Reference '# ('# required to enable calculations)]]),"", SUM(FieldSampling1618[Lanthanides]+FieldSampling1618[Y 39])) -> 0.03788 | CU100: 200.7 | CV100: NA | CX100: 0.971 | CY100: 71.659 | CZ100: 191.301 | DB100: 10.665 | DC100: 3.879 | DI100: 0.506 | DJ100: 46.1
A101: 63 | B101: raw AMD | C101: Restricted under terms of access NDA | F101: Resource Production | G101: Coal Mining | H101: Acid Mine Drainage | I101: CAPP | J101: Pennsylvanian | K101: Refuse | L101: OH | M101: athens | N101: wri AQ-63 | O101: OH | P101: athens | Q101: wri AQ-63 | R101: 63 | S101: NA | T101: NA | U101: NA | V101: NA | W101: NA | X101: NA | Y101: NA | Z101: NA | AA101: NA | AB101: NA | AC101: NA | AD101: NA | AE101: NA | AF101: NA | AG101: NA | AH101: NA | AI101: NA | AJ101: NA | AK101: 6020A | AQ101: 6.846 | AU101: 0.0034 | BJ101: 0.085 | BY101: 0.014 | BZ101: 0.0471 | CA101: 0.0076 | CB101: 0.0447 | CC101: 0.0136 | CD101: 0.0033 | CE101: 0.0181 | CF101: 0.0026 | CG101: 0.0151 | CH101: 0.0028 | CI101: 0.0067 | CJ101: 0.00083 | CK101: 0.0044 | CL101: 0.00061 | CR101: =IF(ISBLANK(FieldSampling1618[[#This Row],[Sample Reference '# ('# required to enable calculations)]]),"",SUM(FieldSampling1618[[#This Row],[La 57]:[Lu 71]])) -> 0.18144 | CS101: =IF(ISBLANK(FieldSampling1618[[#This Row],[Sample Reference '# ('# required to enable calculations)]]),"", SUM(FieldSampling1618[Lanthanides]+FieldSampling1618[Y 39])) -> 0.26644 | CU101: 200.7 | CV101: NA | CX101: 11.105 | CY101: 358.904 | CZ101: 42.912 | DB101: 144.749 | DC101: 191.512 | DI101: 14.274 | DJ101: 1740
A102: 64 | B102: raw AMD | C102: Restricted under terms of access NDA | F102: Resource Production | G102: Coal Mining | H102: Acid Mine Drainage | I102: CAPP | J102: Pennsylvanian | K102: Refuse | L102: OH | M102: Harrison | N102: wri AQ-64 | O102: OH | P102: Harrison | Q102: wri AQ-64 | R102: 64 | S102: NA | T102: NA | U102: NA | V102: NA | W102: NA | X102: NA | Y102: NA | Z102: NA | AA102: NA | AB102: NA | AC102: NA | AD102: NA | AE102: NA | AF102: NA | AG102: NA | AH102: NA | AI102: NA | AJ102: NA | AK102: 6020A | AQ102: 5.389 | AU102: 0.0055 | BJ102: 0.0779 | BY102: 0.027 | BZ102: 0.0882 | CA102: 0.0134 | CB102: 0.0727 | CC102: 0.019 | CD102: 0.0043 | CE102: 0.0223 | CF102: 0.003 | CG102: 0.0167 | CH102: 0.0028 | CI102: 0.0065 | CJ102: 0.00076 | CK102: 0.0039 | CL102: 0.00052 | CR102: =IF(ISBLANK(FieldSampling1618[[#This Row],[Sample Reference '# ('# required to enable calculations)]]),"",SUM(FieldSampling1618[[#This Row],[La 57]:[Lu 71]])) -> 0.28108 | CS102: =IF(ISBLANK(FieldSampling1618[[#This Row],[Sample Reference '# ('# required to enable calculations)]]),"", SUM(FieldSampling1618[Lanthanides]+FieldSampling1618[Y 39])) -> 0.35898 | CU102: 200.7 | CV102: NA | CX102: 12.863 | CY102: 297.77 | CZ102: 115.921 | DB102: 115.274 | DC102: 563.126 | DI102: 431.2 | DJ102: 2120
A103: 65 | B103: raw AMD | C103: WVDEP OSR BUFFALO COAL A-34, Lat. 39.207733, Long. -79.297947 | F103: Resource Production | G103: Coal Mining | H103: Acid Mine Drainage | I103: =+I104 -> NAPP | J103: Pennsylvanian | K103: Upper Freeport | L103: =+L104 -> WV | M103: =+M104 -> Grant | N103: wri AQ-65 | O103: =+O104 -> WV | P103: =+P104 -> Grant | Q103: wri AQ-65 | R103: 65 | S103: NA | T103: NA | U103: NA | V103: NA | W103: NA | X103: NA | Y103: NA | Z103: NA | AA103: NA | AB103: NA | AC103: NA | AD103: NA | AE103: NA | AF103: NA | AG103: NA | AH103: NA | AI103: NA | AJ103: NA | AK103: 6020A | AQ103: 20.222 | AU103: 0.0254 | BJ103: 0.517 | BY103: 0.126 | BZ103: 0.319 | CA103: 0.0663 | CB103: 0.335 | CC103: 0.0933 | CD103: 0.026 | CE103: 0.133 | CF103: 0.021 | CG103: 0.11 | CH103: 0.0205 | CI103: 0.0555 | CJ103: 0.0069 | CK103: 0.0367 | CL103: 0.0057 | CR103: =IF(ISBLANK(FieldSampling1618[[#This Row],[Sample Reference '# ('# required to enable calculations)]]),"",SUM(FieldSampling1618[[#This Row],[La 57]:[Lu 71]])) -> 1.3549 | CS103: =IF(ISBLANK(FieldSampling1618[[#This Row],[Sample Reference '# ('# required to enable calculations)]]),"", SUM(FieldSampling1618[Lanthanides]+FieldSampling1618[Y 39])) -> 1.8719 | CU103: 200.7 | CV103: NA | CX103: 87.995 | CY103: 223.803 | CZ103: 4.35 | DB103: 146.653 | DC103: 6.146 | DI103: 3.328 | DJ103: 2060
A104: 65 | B104: raw AMD | C104: WVDEP OSR BUFFALO COAL A-34, Lat. 39.207733, Long. -79.297947 | F104: Resource Production | G104: Coal Mining | H104: Acid Mine Drainage | I104: NAPP | J104: Pennsylvanian | K104: Upper Freeport | L104: WV | M104: Grant | N104: wri AQ-65 | O104: WV | P104: Grant | Q104: wri AQ-65 | R104: 65 | S104: NA | T104: NA | U104: NA | V104: NA | W104: NA | X104: NA | Y104: NA | Z104: NA | AA104: NA | AB104: NA | AC104: NA | AD104: NA | AE104: NA | AF104: NA | AG104: NA | AH104: NA | AI104: NA | AJ104: NA | AK104: 6020A | AQ104: 12.466 | AU104: 0.0134 | BJ104: 0.266 | BY104: 0.0566 | BZ104: 0.154 | CA104: 0.0288 | CB104: 0.163 | CC104: 0.0501 | CD104: 0.0118 | CE104: 0.0707 | CF104: 0.0103 | CG104: 0.0591 | CH104: 0.0097 | CI104: 0.0242 | CJ104: 0.0032 | CK104: 0.0188 | CL104: 0.0026 | CR104: =IF(ISBLANK(FieldSampling1618[[#This Row],[Sample Reference '# ('# required to enable calculations)]]),"",SUM(FieldSampling1618[[#This Row],[La 57]:[Lu 71]])) -> 0.6629 | CS104: =IF(ISBLANK(FieldSampling1618[[#This Row],[Sample Reference '# ('# required to enable calculations)]]),"", SUM(FieldSampling1618[Lanthanides]+FieldSampling1618[Y 39])) -> 0.9289 | CU104: 200.7 | CV104: NA | CX104: 44.023 | CY104: 116.947 | CZ104: 2.687 | DB104: 71.761 | DC104: 2.749 | DI104: 1.129 | DJ104: 899
A105: 66 | B105: raw AMD | C105: WVDEP OSR BUFFALO COAL DOZER PIT SITE, Lat. 39.157241, Long. -79.289342 | F105: Resource Production | G105: Coal Mining | H105: Acid Mine Drainage | I105: =+I106 -> NAPP | J105: Pennsylvanian | K105: Upper Freeport | L105: =+L106 -> WV | M105: =+M106 -> Grant | N105: wri AQ-66 | O105: =+O106 -> WV | P105: =+P106 -> Grant | Q105: wri AQ-66 | R105: 66 | S105: NA | T105: NA | U105: NA | V105: NA | W105: NA | X105: NA | Y105: NA | Z105: NA | AA105: NA | AB105: NA | AC105: NA | AD105: NA | AE105: NA | AF105: NA | AG105: NA | AH105: NA | AI105: NA | AJ105: NA | AK105: 6020A | AQ105: 10.688 | AU105: 0.00071 | BJ105: 0.203 | BY105: 0.048 | BZ105: 0.124 | CA105: 0.048 | CB105: 0.116 | CC105: 0.0327 | CD105: 0.009 | CE105: 0.0469 | CF105: 0.0077 | CG105: 0.0426 | CH105: 0.0078 | CI105: 0.0221 | CJ105: 0.0028 | CK105: 0.0155 | CL105: 0.0024 | CR105: =IF(ISBLANK(FieldSampling1618[[#This Row],[Sample Reference '# ('# required to enable calculations)]]),"",SUM(FieldSampling1618[[#This Row],[La 57]:[Lu 71]])) -> 0.5255 | CS105: =IF(ISBLANK(FieldSampling1618[[#This Row],[Sample Reference '# ('# required to enable calculations)]]),"", SUM(FieldSampling1618[Lanthanides]+FieldSampling1618[Y 39])) -> 0.7285 | CU105: 200.7 | CV105: NA | CX105: 28.587 | CY105: 150.209 | CZ105: 0.758 | DB105: 36.884 | DC105: 4.764 | DI105: 2.389 | DJ105: 717
A106: 66 | B106: raw AMD | C106: WVDEP OSR BUFFALO COAL DOZER PIT SITE, Lat. 39.157241, Long. -79.289342 | F106: Resource Production | G106: Coal Mining | H106: Acid Mine Drainage | I106: NAPP | J106: Pennsylvanian | K106: Upper Freeport | L106: WV | M106: Grant | N106: wri AQ-66 | O106: WV | P106: Grant | Q106: wri AQ-66 | R106: 66 | S106: NA | T106: NA | U106: NA | V106: NA | W106: NA | X106: NA | Y106: NA | Z106: NA | AA106: NA | AB106: NA | AC106: NA | AD106: NA | AE106: NA | AF106: NA | AG106: NA | AH106: NA | AI106: NA | AJ106: NA | AK106: 6020A | AQ106: 9.423 | AU106: 0.0072 | BJ106: 0.172 | BY106: 0.0352 | BZ106: 0.1 | CA106: 0.0171 | CB106: 0.0926 | CC106: 0.028 | CD106: 0.0067 | CE106: 0.0387 | CF106: 0.0059 | CG106: 0.0352 | CH106: 0.0061 | CI106: 0.016 | CJ106: 0.0022 | CK106: 0.0131 | CL106: 0.0019 | CR106: =IF(ISBLANK(FieldSampling1618[[#This Row],[Sample Reference '# ('# required to enable calculations)]]),"",SUM(FieldSampling1618[[#This Row],[La 57]:[Lu 71]])) -> 0.3987 | CS106: =IF(ISBLANK(FieldSampling1618[[#This Row],[Sample Reference '# ('# required to enable calculations)]]),"", SUM(FieldSampling1618[Lanthanides]+FieldSampling1618[Y 39])) -> 0.5707 | CU106: 200.7 | CV106: NA | CX106: 24.867 | CY106: 104.656 | CZ106: 1.428 | DB106: 30.999 | DC106: 4.76 | DI106: 1.166 | DJ106: 607
A107: 67 | B107: raw AMD | C107: WVDEP OSR BUFFALO COAL EASTER EGG SITE, Lat. 39.110877, Long. -79.298580 | F107: Resource Production | G107: Coal Mining | H107: Acid Mine Drainage | I107: =+I108 -> NAPP | J107: Pennsylvanian | K107: Upper Freeport | L107: =+L108 -> WV | M107: =+M108 -> Tucker | N107: wri AQ-67 | O107: =+O108 -> WV | P107: =+P108 -> Tucker | Q107: wri AQ-67 | R107: 67 | S107: NA | T107: NA | U107: NA | V107: NA | W107: NA | X107: NA | Y107: NA | Z107: NA | AA107: NA | AB107: NA | AC107: NA | AD107: NA | AE107: NA | AF107: NA | AG107: NA | AH107: NA | AI107: NA | AJ107: NA | AK107: 6020A | AQ107: 15.893 | AU107: 0.0038 | BJ107: 0.248 | BY107: 0.0618 | BZ107: 0.195 | CA107: 0.0616 | CB107: 0.151 | CC107: 0.0409 | CD107: 0.0113 | CE107: 0.058 | CF107: 0.0093 | CG107: 0.0502 | CH107: 0.0092 | CI107: 0.0252 | CJ107: 0.0031 | CK107: 0.0165 | CL107: 0.0025 | CR107: =IF(ISBLANK(FieldSampling1618[[#This Row],[Sample Reference '# ('# required to enable calculations)]]),"",SUM(FieldSampling1618[[#This Row],[La 57]:[Lu 71]])) -> 0.6956 | CS107: =IF(ISBLANK(FieldSampling1618[[#This Row],[Sample Reference '# ('# required to enable calculations)]]),"", SUM(FieldSampling1618[Lanthanides]+FieldSampling1618[Y 39])) -> 0.9436 | CU107: 200.7 | CV107: NA | CX107: 57.417 | CY107: 80.78 | CZ107: 13.339 | DB107: 30.207 | DC107: 0.81 | DI107: 1.429 | DJ107: 707
A108: 67 | B108: raw AMD | C108: WVDEP OSR BUFFALO COAL EASTER EGG SITE, Lat. 39.110877, Long. -79.298580 | F108: Resource Production | G108: Coal Mining | H108: Acid Mine Drainage | I108: NAPP | J108: Pennsylvanian | K108: Upper Freeport | L108: WV | M108: Tucker | N108: wri AQ-67 | O108: WV | P108: Tucker | Q108: wri AQ-67 | R108: 67 | S108: NA | T108: NA | U108: NA | V108: NA | W108: NA | X108: NA | Y108: NA | Z108: NA | AA108: NA | AB108: NA | AC108: NA | AD108: NA | AE108: NA | AF108: NA | AG108: NA | AH108: NA | AI108: NA | AJ108: NA | AK108: 6020A | AQ108: 14.896 | AU108: 0.0038 | BJ108: 0.219 | BY108: 0.0443 | BZ108: 0.152 | CA108: 0.0219 | CB108: 0.122 | CC108: 0.0363 | CD108: 0.0086 | CE108: 0.0516 | CF108: 0.0076 | CG108: 0.0447 | CH108: 0.0076 | CI108: 0.0192 | CJ108: 0.0025 | CK108: 0.0141 | CL108: 0.002 | CR108: =IF(ISBLANK(FieldSampling1618[[#This Row],[Sample Reference '# ('# required to enable calculations)]]),"",SUM(FieldSampling1618[[#This Row],[La 57]:[Lu 71]])) -> 0.5344 | CS108: =IF(ISBLANK(FieldSampling1618[[#This Row],[Sample Reference '# ('# required to enable calculations)]]),"", SUM(FieldSampling1618[Lanthanides]+FieldSampling1618[Y 39])) -> 0.7534 | CU108: 200.7 | CV108: NA | CX108: 47.394 | CY108: 58.758 | CZ108: 6.727 | DB108: 25.582 | DC108: 0.565 | DI108: 0.275 | DJ108: 611
A109: 68 | B109: raw AMD | C109: WVDEP OSR CHESTNUT RIDGE, Lat. 39.377473, Long. -79.176819 | F109: Resource Production | G109: Coal Mining | H109: Acid Mine Drainage | I109: =+I110 -> NAPP | J109: Pennsylvanian | K109: Little Clarksburg | L109: =+L110 -> WV | M109: =+M110 -> Mineral | N109: wri AQ-68 | O109: =+O110 -> WV | P109: =+P110 -> Mineral | Q109: wri AQ-68 | R109: 68 | S109: NA | T109: NA | U109: NA | V109: NA | W109: NA | X109: NA | Y109: NA | Z109: NA | AA109: NA | AB109: NA | AC109: NA | AD109: NA | AE109: NA | AF109: NA | AG109: NA | AH109: NA | AI109: NA | AJ109: NA | AK109: 6020A | AQ109: 11.091 | AU109: 0.0005 | BJ109: 0.113 | BY109: 0.0226 | BZ109: 0.0792 | CA109: 0.0226 | CB109: 0.051 | CC109: 0.0148 | CD109: 0.0044 | CE109: 0.0232 | CF109: 0.0038 | CG109: 0.0204 | CH109: 0.0041 | CI109: 0.0107 | CJ109: 0.0013 | CK109: 0.0069 | CL109: 0.001 | CR109: =IF(ISBLANK(FieldSampling1618[[#This Row],[Sample Reference '# ('# required to enable calculations)]]),"",SUM(FieldSampling1618[[#This Row],[La 57]:[Lu 71]])) -> 0.266 | CS109: =IF(ISBLANK(FieldSampling1618[[#This Row],[Sample Reference '# ('# required to enable calculations)]]),"", SUM(FieldSampling1618[Lanthanides]+FieldSampling1618[Y 39])) -> 0.379 | CU109: 200.7 | CV109: NA | CX109: 21.35 | CY109: 164.613 | CZ109: 94.965 | DB109: 67.83 | DC109: 1.545 | DI109: 1.389 | DJ109: 1140
A110: 68 | B110: raw AMD | C110: WVDEP OSR CHESTNUT RIDGE, Lat. 39.377473, Long. -79.176819 | F110: Resource Production | G110: Coal Mining | H110: Acid Mine Drainage | I110: NAPP | J110: Pennsylvanian | K110: Little Clarksburg | L110: WV | M110: Mineral | N110: wri AQ-68 | O110: WV | P110: Mineral | Q110: wri AQ-68 | R110: 68 | S110: NA | T110: NA | U110: NA | V110: NA | W110: NA | X110: NA | Y110: NA | Z110: NA | AA110: NA | AB110: NA | AC110: NA | AD110: NA | AE110: NA | AF110: NA | AG110: NA | AH110: NA | AI110: NA | AJ110: NA | AK110: 6020A | AQ110: 12.102 | AU110: 0.0047 | BJ110: 0.124 | BY110: 0.016 | BZ110: 0.0593 | CA110: 0.009 | CB110: 0.0532 | CC110: 0.0181 | CD110: 0.0047 | CE110: 0.0283 | CF110: 0.0043 | CG110: 0.0255 | CH110: 0.0043 | CI110: 0.0106 | CJ110: 0.0014 | CK110: 0.0077 | CL110: 0.0011 | CR110: =IF(ISBLANK(FieldSampling1618[[#This Row],[Sample Reference '# ('# required to enable calculations)]]),"",SUM(FieldSampling1618[[#This Row],[La 57]:[Lu 71]])) -> 0.2435 | CS110: =IF(ISBLANK(FieldSampling1618[[#This Row],[Sample Reference '# ('# required to enable calculations)]]),"", SUM(FieldSampling1618[Lanthanides]+FieldSampling1618[Y 39])) -> 0.3675 | CU110: 200.7 | CV110: NA | CX110: 27.217 | CY110: 88.476 | CZ110: 40.749 | DB110: 36.753 | DC110: 0.968 | DI110: 0.524 | DJ110: 606
A111: 69 | B111: raw AMD | C111: WVDEP OSR BUFFALO COAL KEMPTON SITE, Lat. 39.218473, Long. -79.491768 | F111: Resource Production | G111: Coal Mining | H111: Acid Mine Drainage | I111: =+I112 -> NAPP | J111: Pennsylvanian | K111: Upper Freeport | L111: =+L112 -> WV | M111: =+M112 -> Preston | N111: wri AQ-69 | O111: =+O112 -> WV | P111: =+P112 -> Preston | Q111: wri AQ-69 | R111: 69 | S111: NA | T111: NA | U111: NA | V111: NA | W111: NA | X111: NA | Y111: NA | Z111: NA | AA111: NA | AB111: NA | AC111: NA | AD111: NA | AE111: NA | AF111: NA | AG111: NA | AH111: NA | AI111: NA | AJ111: NA | AK111: 6020A | AQ111: 8.497 | AU111: 0.0026 | BJ111: 0.0234 | BY111: 0.0093 | BZ111: 0.0228 | CA111: 0.0029 | CB111: 0.0124 | CC111: 0.0029 | CD111: 0.00073 | CE111: 0.004 | CF111: 0.0007 | CG111: 0.0043 | CH111: 0.00089 | CI111: 0.0025 | CJ111: 0.00034 | CK111: 0.002 | CL111: 0.00029 | CR111: =IF(ISBLANK(FieldSampling1618[[#This Row],[Sample Reference '# ('# required to enable calculations)]]),"",SUM(FieldSampling1618[[#This Row],[La 57]:[Lu 71]])) -> 0.06605 | CS111: =IF(ISBLANK(FieldSampling1618[[#This Row],[Sample Reference '# ('# required to enable calculations)]]),"", SUM(FieldSampling1618[Lanthanides]+FieldSampling1618[Y 39])) -> 0.08945 | CU111: 200.7 | CV111: NA | CX111: 6.386 | CY111: 48.023 | CZ111: 0.235 | DB111: 17.065 | DC111: 0.669 | DI111: 0.993 | DJ111: 212
A112: 69 | B112: raw AMD | C112: WVDEP OSR BUFFALO COAL KEMPTON SITE, Lat. 39.218473, Long. -79.491768 | F112: Resource Production | G112: Coal Mining | H112: Acid Mine Drainage | I112: NAPP | J112: Pennsylvanian | K112: Upper Freeport | L112: WV | M112: Preston | N112: wri AQ-69 | O112: WV | P112: Preston | Q112: wri AQ-69 | R112: 69 | S112: NA | T112: NA | U112: NA | V112: NA | W112: NA | X112: NA | Y112: NA | Z112: NA | AA112: NA | AB112: NA | AC112: NA | AD112: NA | AE112: NA | AF112: NA | AG112: NA | AH112: NA | AI112: NA | AJ112: NA | AK112: 6020A | AQ112: 7.651 | AU112: 0.0031 | BJ112: 0.0257 | BY112: 0.0088 | BZ112: 0.0234 | CA112: 0.0028 | CB112: 0.0138 | CC112: 0.0034 | CD112: 0.00074 | CE112: 0.0043 | CF112: 0.00073 | CG112: 0.0047 | CH112: 0.00088 | CI112: 0.0025 | CJ112: 0.00037 | CK112: 0.0021 | CL112: 0.00031 | CR112: =IF(ISBLANK(FieldSampling1618[[#This Row],[Sample Reference '# ('# required to enable calculations)]]),"",SUM(FieldSampling1618[[#This Row],[La 57]:[Lu 71]])) -> 0.06883 | CS112: =IF(ISBLANK(FieldSampling1618[[#This Row],[Sample Reference '# ('# required to enable calculations)]]),"", SUM(FieldSampling1618[Lanthanides]+FieldSampling1618[Y 39])) -> 0.09453 | CU112: 200.7 | CV112: NA | CX112: 10.444 | CY112: 14.414 | CZ112: 0.866 | DB112: 11.961 | DC112: 0.47 | DI112: 0.333 | DJ112: 164
A113: 70 | B113: raw AMD | C113: MARYLAND DOE KEMPTON SITE, Lat. 39.220590, Long. -79.483532 | F113: Resource Production | G113: Coal Mining | H113: Acid Mine Drainage | I113: =+I114 -> NAPP | J113: Pennsylvanian | K113: Upper Freeport | L113: MD | M113: Garrett | N113: wri AQ-70 | O113: =+O114 -> MD | P113: Garrett | Q113: wri AQ-70 | R113: 70 | S113: NA | T113: NA | U113: NA | V113: NA | W113: NA | X113: NA | Y113: NA | Z113: NA | AA113: NA | AB113: NA | AC113: NA | AD113: NA | AE113: NA | AF113: NA | AG113: NA | AH113: NA | AI113: NA | AJ113: NA | AK113: 6020A | AQ113: 17.712 | AU113: 0.006 | BJ113: 0.0263 | BY113: 0.01 | BZ113: 0.0287 | CA113: 0.0041 | CB113: 0.0185 | CC113: 0.0047 | CD113: 0.0012 | CE113: 0.0062 | CF113: 0.0011 | CG113: 0.0057 | CH113: 0.0012 | CI113: 0.0033 | CJ113: 0.00044 | CK113: 0.0024 | CL113: 0.00036 | CR113: =IF(ISBLANK(FieldSampling1618[[#This Row],[Sample Reference '# ('# required to enable calculations)]]),"",SUM(FieldSampling1618[[#This Row],[La 57]:[Lu 71]])) -> 0.0879 | CS113: =IF(ISBLANK(FieldSampling1618[[#This Row],[Sample Reference '# ('# required to enable calculations)]]),"", SUM(FieldSampling1618[Lanthanides]+FieldSampling1618[Y 39])) -> 0.1142 | CU113: 200.7 | CV113: NA | CX113: 20.484 | CY113: 50.068 | CZ113: 43.03 | DB113: 24.292 | DC113: 4.584 | DI113: 2.92 | DJ113: 459
A114: 70 | B114: raw AMD | C114: MARYLAND DOE KEMPTON SITE, Lat. 39.220590, Long. -79.483532 | F114: Resource Production | G114: Coal Mining | H114: Acid Mine Drainage | I114: NAPP | J114: Pennsylvanian | K114: Upper Freeport | L114: MD | M114: Garrett | N114: wri AQ-70 | O114: MD | P114: Garrett | Q114: wri AQ-70 | R114: 70 | S114: NA | T114: NA | U114: NA | V114: NA | W114: NA | X114: NA | Y114: NA | Z114: NA | AA114: NA | AB114: NA | AC114: NA | AD114: NA | AE114: NA | AF114: NA | AG114: NA | AH114: NA | AI114: NA | AJ114: NA | AK114: 6020A | AQ114: 17.853 | AU114: 0.006 | BJ114: 0.0269 | BY114: 0.0102 | BZ114: 0.0291 | CA114: 0.0042 | CB114: 0.0188 | CC114: 0.0048 | CD114: 0.0012 | CE114: 0.0062 | CF114: 0.0011 | CG114: 0.0058 | CH114: 0.0012 | CI114: 0.0033 | CJ114: 0.00044 | CK114: 0.0025 | CL114: 0.00037 | CR114: =IF(ISBLANK(FieldSampling1618[[#This Row],[Sample Reference '# ('# required to enable calculations)]]),"",SUM(FieldSampling1618[[#This Row],[La 57]:[Lu 71]])) -> 0.08921 | CS114: =IF(ISBLANK(FieldSampling1618[[#This Row],[Sample Reference '# ('# required to enable calculations)]]),"", SUM(FieldSampling1618[Lanthanides]+FieldSampling1618[Y 39])) -> 0.11611 | CU114: 200.7 | CV114: NA | CX114: 20.716 | CY114: 50.586 | CZ114: 43.585 | DB114: 24.561 | DC114: 4.565 | DI114: 2.931 | DJ114: 450
A115: 70 | B115: raw AMD | C115: MARYLAND DOE KEMPTON SITE, Lat. 39.220590, Long. -79.483532 | F115: Resource Production | G115: Coal Mining | H115: Acid Mine Drainage | I115: NAPP | J115: Pennsylvanian | K115: Upper Freeport | L115: MD | M115: Garrett | N115: wri AQ-70 | O115: MD | P115: Garrett | Q115: wri AQ-70 | R115: 70 | S115: NA | T115: NA | U115: NA | V115: NA | W115: NA | X115: NA | Y115: NA | Z115: NA | AA115: NA | AB115: NA | AC115: NA | AD115: NA | AE115: NA | AF115: NA | AG115: NA | AH115: NA | AI115: NA | AJ115: NA | AK115: 6020A | AQ115: 16.943 | AU115: 0.0048 | BJ115: 0.0255 | BY115: 0.0095 | BZ115: 0.0277 | CA115: 0.0037 | CB115: 0.018 | CC115: 0.0055 | CD115: 0.0012 | CE115: 0.0064 | CF115: 0.00099 | CG115: 0.0059 | CH115: 0.0011 | CI115: 0.0028 | CJ115: 0.00039 | CK115: 0.0023 | CL115: 0.00033 | CR115: =IF(ISBLANK(FieldSampling1618[[#This Row],[Sample Reference '# ('# required to enable calculations)]]),"",SUM(FieldSampling1618[[#This Row],[La 57]:[Lu 71]])) -> 0.08581 | CS115: =IF(ISBLANK(FieldSampling1618[[#This Row],[Sample Reference '# ('# required to enable calculations)]]),"", SUM(FieldSampling1618[Lanthanides]+FieldSampling1618[Y 39])) -> 0.11131 | CU115: 200.7 | CV115: NA | CX115: 18.852 | CY115: 47.094 | CZ115: 40.076 | DB115: 24.271 | DC115: 3.715 | DI115: 1.92 | DJ115: 468
A116: 71 | B116: raw AMD | C116: WVDEP AML KEMPTON, Lat. 39.205020, Long. -79.501631 | F116: Resource Production | G116: Coal Mining | H116: Acid Mine Drainage | I116: NAPP | J116: Pennsylvanian | K116: Upper Freeport | L116: WV | M116: Preston | N116: wri AQ-71 | O116: WV | P116: Preston | Q116: wri AQ-71 | R116: 71 | S116: NA | T116: NA | U116: NA | V116: NA | W116: NA | X116: NA | Y116: NA | Z116: NA | AA116: NA | AB116: NA | AC116: NA | AD116: NA | AE116: NA | AF116: NA | AG116: NA | AH116: NA | AI116: NA | AJ116: NA | AK116: 6020A | AQ116: 8.242 | AU116: 0.0019 | BJ116: 0.0135 | BY116: 0.0054 | BZ116: 0.0147 | CA116: 0.002 | CB116: 0.0098 | CC116: 0.0026 | CD116: 0.00057 | CE116: 0.0032 | CF116: 0.00045 | CG116: 0.0026 | CH116: 0.00047 | CI116: 0.0012 | CJ116: 0.00017 | CK116: 0.00095 | CL116: 0.00013 | CR116: =IF(ISBLANK(FieldSampling1618[[#This Row],[Sample Reference '# ('# required to enable calculations)]]),"",SUM(FieldSampling1618[[#This Row],[La 57]:[Lu 71]])) -> 0.04424 | CS116: =IF(ISBLANK(FieldSampling1618[[#This Row],[Sample Reference '# ('# required to enable calculations)]]),"", SUM(FieldSampling1618[Lanthanides]+FieldSampling1618[Y 39])) -> 0.05774 | CU116: 200.7 | CV116: NA | CX116: 6.532 | CY116: 18.226 | CZ116: 7.356 | DB116: 12.761 | DC116: 0.445 | DI116: 0.248 | DJ116: 192
A117: 72 | B117: raw AMD | C117: MARYLAND DOE MILL RUN SITE, Lat. 39.521140, Long. -79.034960 | F117: Resource Production | G117: Coal Mining | H117: Acid Mine Drainage | I117: NAPP | J117: Pennsylvanian | K117: Barton | L117: MD | M117: Allegany | N117: wri AQ-72 | O117: MD | P117: Allegany | Q117: wri AQ-72 | R117: 72 | S117: NA | T117: NA | U117: NA | V117: NA | W117: NA | X117: NA | Y117: NA | Z117: NA | AA117: NA | AB117: NA | AC117: NA | AD117: NA | AE117: NA | AF117: NA | AG117: NA | AH117: NA | AI117: NA | AJ117: NA | AK117: 6020A | AQ117: 13.103 | AU117: 0.0113 | BJ117: 0.0521 | BY117: 0.0121 | BZ117: 0.0409 | CA117: 0.0064 | CB117: 0.0356 | CC117: 0.0121 | CD117: 0.0026 | CE117: 0.0149 | CF117: 0.0023 | CG117: 0.013 | CH117: 0.0023 | CI117: 0.0055 | CJ117: 0.00076 | CK117: 0.0047 | CL117: 0.00066 | CR117: =IF(ISBLANK(FieldSampling1618[[#This Row],[Sample Reference '# ('# required to enable calculations)]]),"",SUM(FieldSampling1618[[#This Row],[La 57]:[Lu 71]])) -> 0.15382 | CS117: =IF(ISBLANK(FieldSampling1618[[#This Row],[Sample Reference '# ('# required to enable calculations)]]),"", SUM(FieldSampling1618[Lanthanides]+FieldSampling1618[Y 39])) -> 0.20592 | CU117: 200.7 | CV117: NA | CX117: 33.6 | CY117: 347.176 | CZ117: 60.843 | DB117: 117.776 | DC117: 5.493 | DI117: 1.521 | DJ117: 1890
A118: 73 | B118: raw AMD | C118: MARYLAND DOE MCDONALD MINE SITE, Lat. 39.525788, Long. -79.019936 | F118: Resource Production | G118: Coal Mining | H118: Acid Mine Drainage | I118: NAPP | J118: Pennsylvanian | K118: Barton | L118: MD | M118: Allegany | N118: wri AQ-73 | O118: MD | P118: Allegany | Q118: wri AQ-73 | R118: 73 | S118: NA | T118: NA | U118: NA | V118: NA | W118: NA | X118: NA | Y118: NA | Z118: NA | AA118: NA | AB118: NA | AC118: NA | AD118: NA | AE118: NA | AF118: NA | AG118: NA | AH118: NA | AI118: NA | AJ118: NA | AK118: 6020A | AQ118: 14.223 | AU118: 0.0074 | BJ118: 0.0367 | BY118: 0.0097 | BZ118: 0.0306 | CA118: 0.0047 | CB118: 0.0252 | CC118: 0.0079 | CD118: 0.0018 | CE118: 0.0107 | CF118: 0.0016 | CG118: 0.0091 | CH118: 0.0015 | CI118: 0.0038 | CJ118: 0.0005 | CK118: 0.003 | CL118: 0.00043 | CR118: =IF(ISBLANK(FieldSampling1618[[#This Row],[Sample Reference '# ('# required to enable calculations)]]),"",SUM(FieldSampling1618[[#This Row],[La 57]:[Lu 71]])) -> 0.11053 | CS118: =IF(ISBLANK(FieldSampling1618[[#This Row],[Sample Reference '# ('# required to enable calculations)]]),"", SUM(FieldSampling1618[Lanthanides]+FieldSampling1618[Y 39])) -> 0.14723 | CU118: 200.7 | CV118: NA | CX118: 25.64 | CY118: 452.353 | CZ118: 84.189 | DB118: 319.201 | DC118: 2.363 | DI118: 1.734 | DJ118: 2460
A119: 74 | B119: raw AMD | C119: MARYLAND DOE BUFFALO 422 SITE, Lat. 39.553777, Long. -78.971345 | F119: Resource Production | G119: Coal Mining | H119: Acid Mine Drainage | I119: =+I120 -> NAPP | J119: Pennsylvanian | K119: Pittsburgh, Sewickley | L119: =+L120 -> MD | M119: =+M120 -> Allegany | N119: wri AQ-74 | O119: =+O120 -> MD | P119: =+P120 -> Allegany | Q119: wri AQ-74 | R119: 74 | S119: NA | T119: NA | U119: NA | V119: NA | W119: NA | X119: NA | Y119: NA | Z119: NA | AA119: NA | AB119: NA | AC119: NA | AD119: NA | AE119: NA | AF119: NA | AG119: NA | AH119: NA | AI119: NA | AJ119: NA | AK119: 6020A | AU119: 0 | BJ119: 0.11 | BY119: 0.022 | BZ119: 0.057 | CA119: 0.008 | CB119: 0.04 | CC119: 0.012 | CD119: 0 | CE119: 0.017 | CF119: 0.003 | CG119: 0.017 | CH119: 0.004 | CI119: 0.01 | CJ119: 0 | CK119: 0.007 | CL119: 0 | CR119: =IF(ISBLANK(FieldSampling1618[[#This Row],[Sample Reference '# ('# required to enable calculations)]]),"",SUM(FieldSampling1618[[#This Row],[La 57]:[Lu 71]])) -> 0.197 | CS119: =IF(ISBLANK(FieldSampling1618[[#This Row],[Sample Reference '# ('# required to enable calculations)]]),"", SUM(FieldSampling1618[Lanthanides]+FieldSampling1618[Y 39])) -> 0.307 | CU119: 200.7 | CV119: NA
A120: 74 | B120: raw AMD | C120: MARYLAND DOE BUFFALO 422 SITE, Lat. 39.553777, Long. -78.971345 | F120: Resource Production | G120: Coal Mining | H120: Acid Mine Drainage | I120: NAPP | J120: Pennsylvanian | K120: Pittsburgh, Sewickley | L120: MD | M120: Allegany | N120: wri AQ-74 | O120: MD | P120: Allegany | Q120: wri AQ-74 | R120: 74 | S120: NA | T120: NA | U120: NA | V120: NA | W120: NA | X120: NA | Y120: NA | Z120: NA | AA120: NA | AB120: NA | AC120: NA | AD120: NA | AE120: NA | AF120: NA | AG120: NA | AH120: NA | AI120: NA | AJ120: NA | AK120: 6020A | AQ120: 15.75 | AU120: 0.0047 | BJ120: 0.143 | BY120: 0.027 | BZ120: 0.0706 | CA120: 0.0104 | CB120: 0.0545 | CC120: 0.0154 | CD120: 0.0037 | CE120: 0.0245 | CF120: 0.0038 | CG120: 0.0241 | CH120: 0.0044 | CI120: 0.0112 | CJ120: 0.0015 | CK120: 0.0083 | CL120: 0.0012 | CR120: =IF(ISBLANK(FieldSampling1618[[#This Row],[Sample Reference '# ('# required to enable calculations)]]),"",SUM(FieldSampling1618[[#This Row],[La 57]:[Lu 71]])) -> 0.2606 | CS120: =IF(ISBLANK(FieldSampling1618[[#This Row],[Sample Reference '# ('# required to enable calculations)]]),"", SUM(FieldSampling1618[Lanthanides]+FieldSampling1618[Y 39])) -> 0.4036 | CU120: 200.7 | CV120: NA | CX120: 32.14 | CY120: 102.919 | CZ120: 0.289 | DB120: 78.629 | DC120: 1.717 | DI120: 0.488 | DJ120: 834
A121: 75 | B121: raw AMD | C121: MARYLAND DOE HOFFMAN DRAINAGE TUNNEL SITE, Lat. 39.637184, Long. -78.892992 | F121: Resource Production | G121: Coal Mining | H121: Acid Mine Drainage | I121: NAPP | J121: Pennsylvanian | K121: Pittsburgh | L121: MD | M121: Allegany | N121: wri AQ-75 | O121: MD | P121: Allegany | Q121: wri AQ-75 | R121: 75 | S121: NA | T121: NA | U121: NA | V121: NA | W121: NA | X121: NA | Y121: NA | Z121: NA | AA121: NA | AB121: NA | AC121: NA | AD121: NA | AE121: NA | AF121: NA | AG121: NA | AH121: NA | AI121: NA | AJ121: NA | AK121: 6020A | AQ121: 4.071 | AU121: 0.00055 | BJ121: 0.0088 | BY121: 0.002 | BZ121: 0.0057 | CA121: 0.00073 | CB121: 0.0038 | CC121: 0.001 | CD121: 0.00027 | CE121: 0.0015 | CF121: 0.00026 | CG121: 0.0015 | CH121: 0.00028 | CI121: 0.00062 | CJ121: 8.2e-05 | CK121: 0.00039 | CL121: 6.4e-05 | CR121: =IF(ISBLANK(FieldSampling1618[[#This Row],[Sample Reference '# ('# required to enable calculations)]]),"",SUM(FieldSampling1618[[#This Row],[La 57]:[Lu 71]])) -> 0.018196 | CS121: =IF(ISBLANK(FieldSampling1618[[#This Row],[Sample Reference '# ('# required to enable calculations)]]),"", SUM(FieldSampling1618[Lanthanides]+FieldSampling1618[Y 39])) -> 0.026996 | CU121: 200.7 | CV121: NA | CX121: 0.369 | CY121: 159.24 | CZ121: 3.664 | DB121: 68.985 | DC121: 31.025 | DI121: 65.95 | DJ121: 541
A122: 76 | B122: raw AMD | C122: WVDEP OSR MARY RUTH, Lat. 39.579643, Long. -79.592737 | F122: Resource Production | G122: Coal Mining | H122: Acid Mine Drainage | I122: NAPP | J122: Pennsylvanian | K122: Upper Freeport | L122: WV | M122: Preston | N122: wri AQ-76 | O122: WV | P122: Preston | Q122: wri AQ-76 | R122: 76 | S122: NA | T122: NA | U122: NA | V122: NA | W122: NA | X122: NA | Y122: NA | Z122: NA | AA122: NA | AB122: NA | AC122: NA | AD122: NA | AE122: NA | AF122: NA | AG122: NA | AH122: NA | AI122: NA | AJ122: NA | AK122: 6020A | AQ122: 6.851 | AU122: 0.0025 | BJ122: 0.0535 | BY122: 0.0156 | BZ122: 0.0422 | CA122: 0.0064 | CB122: 0.0326 | CC122: 0.0101 | CD122: 0.0025 | CE122: 0.0141 | CF122: 0.002 | CG122: 0.0113 | CH122: 0.0019 | CI122: 0.0047 | CJ122: 0.00062 | CK122: 0.0037 | CL122: 0.00051 | CR122: =IF(ISBLANK(FieldSampling1618[[#This Row],[Sample Reference '# ('# required to enable calculations)]]),"",SUM(FieldSampling1618[[#This Row],[La 57]:[Lu 71]])) -> 0.14823 | CS122: =IF(ISBLANK(FieldSampling1618[[#This Row],[Sample Reference '# ('# required to enable calculations)]]),"", SUM(FieldSampling1618[Lanthanides]+FieldSampling1618[Y 39])) -> 0.20173 | CU122: 200.7 | CV122: NA | CX122: 10.465 | CY122: 111.692 | CZ122: 0.032 | DB122: 45.278 | DC122: 8.62 | DI122: 14.11 | DJ122: 512
A123: 77 | B123: raw AMD | C123: WVDEP OSR VALLEY MINING CHEAT LAKE SITE, Lat. 39.653192, Long. -79.853287 | F123: Resource Production | G123: Coal Mining | H123: Acid Mine Drainage | I123: =+I124 -> NAPP | J123: Pennsylvanian | K123: Upper Freeport | L123: =+L124 -> WV | M123: =+M124 -> Monongalia | N123: wri AQ-77 | O123: =+O124 -> WV | P123: =+P124 -> Monongalia | Q123: wri AQ-77 | R123: 77 | S123: NA | T123: NA | U123: NA | V123: NA | W123: NA | X123: NA | Y123: NA | Z123: NA | AA123: NA | AB123: NA | AC123: NA | AD123: NA | AE123: NA | AF123: NA | AG123: NA | AH123: NA | AI123: NA | AJ123: NA | AK123: 6020A | AQ123: 12.211 | AU123: 0.0005 | BJ123: 0.0811 | BY123: 0.0194 | BZ123: 0.0639 | CA123: 0.0094 | CB123: 0.0468 | CC123: 0.0144 | CD123: 0.0038 | CE123: 0.0191 | CF123: 0.003 | CG123: 0.016 | CH123: 0.0031 | CI123: 0.0075 | CJ123: 0.001 | CK123: 0.0057 | CL123: 0.00079 | CR123: =IF(ISBLANK(FieldSampling1618[[#This Row],[Sample Reference '# ('# required to enable calculations)]]),"",SUM(FieldSampling1618[[#This Row],[La 57]:[Lu 71]])) -> 0.21389 | CS123: =IF(ISBLANK(FieldSampling1618[[#This Row],[Sample Reference '# ('# required to enable calculations)]]),"", SUM(FieldSampling1618[Lanthanides]+FieldSampling1618[Y 39])) -> 0.29499 | CU123: 200.7 | CV123: NA | CX123: 16.023 | CY123: 147.282 | CZ123: 0.876 | DB123: 86.732 | DC123: 31.494 | DI123: 45.699 | DJ123: 1000
A124: 77 | B124: raw AMD | C124: WVDEP OSR VALLEY MINING CHEAT LAKE SITE, Lat. 39.653192, Long. -79.853287 | F124: Resource Production | G124: Coal Mining | H124: Acid Mine Drainage | I124: NAPP | J124: Pennsylvanian | K124: Upper Freeport | L124: WV | M124: Monongalia | N124: wri AQ-77 | O124: WV | P124: Monongalia | Q124: wri AQ-77 | R124: 77 | S124: NA | T124: NA | U124: NA | V124: NA | W124: NA | X124: NA | Y124: NA | Z124: NA | AA124: NA | AB124: NA | AC124: NA | AD124: NA | AE124: NA | AF124: NA | AG124: NA | AH124: NA | AI124: NA | AJ124: NA | AK124: 6020A | AQ124: 14.123 | AU124: 0.0037 | BJ124: 0.0849 | BY124: 0.0186 | BZ124: 0.0576 | CA124: 0.0088 | CB124: 0.0475 | CC124: 0.0149 | CD124: 0.0037 | CE124: 0.0206 | CF124: 0.0031 | CG124: 0.0177 | CH124: 0.003 | CI124: 0.0076 | CJ124: 0.001 | CK124: 0.0058 | CL124: 0.00081 | CR124: =IF(ISBLANK(FieldSampling1618[[#This Row],[Sample Reference '# ('# required to enable calculations)]]),"",SUM(FieldSampling1618[[#This Row],[La 57]:[Lu 71]])) -> 0.21071 | CS124: =IF(ISBLANK(FieldSampling1618[[#This Row],[Sample Reference '# ('# required to enable calculations)]]),"", SUM(FieldSampling1618[Lanthanides]+FieldSampling1618[Y 39])) -> 0.29561 | CU124: 200.7 | CV124: NA | CX124: 20.297 | CY124: 209.799 | CZ124: 0.502 | DB124: 78.234 | DC124: 29.435 | DI124: 43.32 | DJ124: 757
A125: 78 | B125: raw AMD | C125: Restricted under terms of access NDA | F125: Resource Production | G125: Coal Mining | H125: Acid Mine Drainage | I125: =+I126 -> NAPP | J125: Pennsylvanian | K125: Pittsburgh | L125: =+L126 -> PA | M125: =+M126 -> Allegheny | N125: wri AQ-78 | O125: =+O126 -> PA | P125: =+P126 -> Allegheny | Q125: wri AQ-78 | R125: 78 | S125: NA | T125: NA | U125: NA | V125: NA | W125: NA | X125: NA | Y125: NA | Z125: NA | AA125: NA | AB125: NA | AC125: NA | AD125: NA | AE125: NA | AF125: NA | AG125: NA | AH125: NA | AI125: NA | AJ125: NA | AK125: 6020A | AQ125: 6.049 | AU125: 0.00084 | BJ125: 0.0032 | BY125: 0.0002 | BZ125: 0.00068 | CA125: 0.00012 | CB125: 0.00072 | CC125: 0.00025 | CD125: 6.7e-05 | CE125: 0.00046 | CF125: 6.7e-05 | CG125: 0.00045 | CH125: 7.9e-05 | CI125: 0.00022 | CJ125: 2.6e-05 | CK125: 0.00014 | CL125: 2.5e-05 | CR125: =IF(ISBLANK(FieldSampling1618[[#This Row],[Sample Reference '# ('# required to enable calculations)]]),"",SUM(FieldSampling1618[[#This Row],[La 57]:[Lu 71]])) -> 0.003504 | CS125: =IF(ISBLANK(FieldSampling1618[[#This Row],[Sample Reference '# ('# required to enable calculations)]]),"", SUM(FieldSampling1618[Lanthanides]+FieldSampling1618[Y 39])) -> 0.006704 | CU125: 200.7 | CV125: NA | CX125: 0.102 | CY125: 91.86 | CZ125: 22.102 | DB125: 30.802 | DC125: 356.217 | DI125: 290.157 | DJ125: 374
A126: 78 | B126: raw AMD | C126: Restricted under terms of access NDA | F126: Resource Production | G126: Coal Mining | H126: Acid Mine Drainage | I126: NAPP | J126: Pennsylvanian | K126: Pittsburgh | L126: PA | M126: Allegheny | N126: wri AQ-78 | O126: PA | P126: Allegheny | Q126: wri AQ-78 | R126: 78 | S126: NA | T126: NA | U126: NA | V126: NA | W126: NA | X126: NA | Y126: NA | Z126: NA | AA126: NA | AB126: NA | AC126: NA | AD126: NA | AE126: NA | AF126: NA | AG126: NA | AH126: NA | AI126: NA | AJ126: NA | AK126: 6020A | AQ126: 8.351 | AU126: 0.00077 | BJ126: 0.00044 | BY126: 0 | BZ126: 0 | CA126: 0 | CB126: 0 | CC126: 0 | CD126: 0 | CE126: 0 | CF126: 0 | CG126: 0 | CH126: 0 | CI126: 0 | CJ126: 0 | CK126: 0 | CL126: 0 | CU126: 200.7 | CV126: NA | CX126: <0.038 | CY126: 90.871 | CZ126: 11.488 | DB126: 27.519 | DC126: 446.483 | DI126: 511.1 | DJ126: 256
A127: 79 | B127: raw AMD | C127: Restricted under terms of access NDA | F127: Resource Production | G127: Coal Mining | H127: Acid Mine Drainage | I127: =+I128 -> NAPP | J127: Pennsylvanian | K127: Pittsburgh | L127: =+L128 -> PA | M127: =+M128 -> Allegheny | N127: wri AQ-79 | O127: =+O128 -> PA | P127: =+P128 -> Allegheny | Q127: wri AQ-79 | R127: 79 | S127: NA | T127: NA | U127: NA | V127: NA | W127: NA | X127: NA | Y127: NA | Z127: NA | AA127: NA | AB127: NA | AC127: NA | AD127: NA | AE127: NA | AF127: NA | AG127: NA | AH127: NA | AI127: NA | AJ127: NA | AK127: 6020A | AQ127: 16.132 | AU127: 0.0046 | BJ127: 0.0313 | BY127: 0.015 | BZ127: 0.0557 | CA127: 0.0087 | CB127: 0.0427 | CC127: 0.0116 | CD127: 0.0027 | CE127: 0.0125 | CF127: 0.0017 | CG127: 0.0084 | CH127: 0.0014 | CI127: 0.0031 | CJ127: 0.00035 | CK127: 0.0024 | CL127: 0.00027 | CR127: =IF(ISBLANK(FieldSampling1618[[#This Row],[Sample Reference '# ('# required to enable calculations)]]),"",SUM(FieldSampling1618[[#This Row],[La 57]:[Lu 71]])) -> 0.16652 | CS127: =IF(ISBLANK(FieldSampling1618[[#This Row],[Sample Reference '# ('# required to enable calculations)]]),"", SUM(FieldSampling1618[Lanthanides]+FieldSampling1618[Y 39])) -> 0.19782 | CU127: 200.7 | CV127: NA | CX127: 21.036 | CY127: 104.559 | CZ127: 0.739 | DB127: 50.109 | DC127: 12.735 | DI127: 4.941 | DJ127: 599
A128: 79 | B128: raw AMD | C128: Restricted under terms of access NDA | F128: Resource Production | G128: Coal Mining | H128: Acid Mine Drainage | I128: NAPP | J128: Pennsylvanian | K128: Pittsburgh | L128: PA | M128: Allegheny | N128: wri AQ-79 | O128: PA | P128: Allegheny | Q128: wri AQ-79 | R128: 79 | S128: NA | T128: NA | U128: NA | V128: NA | W128: NA | X128: NA | Y128: NA | Z128: NA | AA128: NA | AB128: NA | AC128: NA | AD128: NA | AE128: NA | AF128: NA | AG128: NA | AH128: NA | AI128: NA | AJ128: NA | AK128: 6020A | AQ128: 15.135 | AU128: 0.0049 | BJ128: 0.0366 | BY128: 0.0164 | BZ128: 0.0594 | CA128: 0.009 | CB128: 0.0473 | CC128: 0.0136 | CD128: 0.003 | CE128: 0.0147 | CF128: 0.002 | CG128: 0.0101 | CH128: 0.0016 | CI128: 0.0036 | CJ128: 0.00045 | CK128: 0.0025 | CL128: 0.00035 | CR128: =IF(ISBLANK(FieldSampling1618[[#This Row],[Sample Reference '# ('# required to enable calculations)]]),"",SUM(FieldSampling1618[[#This Row],[La 57]:[Lu 71]])) -> 0.184 | CS128: =IF(ISBLANK(FieldSampling1618[[#This Row],[Sample Reference '# ('# required to enable calculations)]]),"", SUM(FieldSampling1618[Lanthanides]+FieldSampling1618[Y 39])) -> 0.2206 | CU128: 200.7 | CV128: NA | CX128: 24.231 | CY128: 91.804 | CZ128: 0.724 | DB128: 49.771 | DC128: 11.629 | DI128: 3.696 | DJ128: 630
A129: 80 | B129: raw AMD | C129: Restricted under terms of access NDA | F129: Resource Production | G129: Coal Mining | H129: Acid Mine Drainage | I129: CAPP | J129: Pennsylvanian | K129: Refuse - Mostly RED ASH, Lower WAR Eagle, Poca 3 | L129: WV | M129: McDowell | N129: wri AQ-80 | O129: WV | P129: McDowell | Q129: wri AQ-80 | R129: 80 | S129: NA | T129: NA | U129: NA | V129: NA | W129: NA | X129: NA | Y129: NA | Z129: NA | AA129: NA | AB129: NA | AC129: NA | AD129: NA | AE129: NA | AF129: NA | AG129: NA | AH129: NA | AI129: NA | AJ129: NA | AK129: 6020A | AQ129: 5.48 | AU129: 0.0013 | BJ129: 0.0017 | BY129: 0.00034 | BZ129: 0.00079 | CA129: 0.00013 | CB129: 0.00065 | CC129: 0.00017 | CD129: 0.001 | CE129: 0.00032 | CF129: 0.001 | CG129: 0.00031 | CH129: 7.2e-05 | CI129: 0.0001 | CJ129: 0.001 | CK129: 9.6e-05 | CL129: 0.001 | CR129: =IF(ISBLANK(FieldSampling1618[[#This Row],[Sample Reference '# ('# required to enable calculations)]]),"",SUM(FieldSampling1618[[#This Row],[La 57]:[Lu 71]])) -> 0.006978 | CS129: =IF(ISBLANK(FieldSampling1618[[#This Row],[Sample Reference '# ('# required to enable calculations)]]),"", SUM(FieldSampling1618[Lanthanides]+FieldSampling1618[Y 39])) -> 0.008678 | CU129: 200.7 | CV129: NA | CX129: 0.207 | CY129: 230.027 | CZ129: 5.406 | DB129: 103.522 | DC129: 303.619 | DI129: 16.689 | DJ129: 1540
A130: 81 | B130: raw AMD | C130: Restricted under terms of access NDA | F130: Resource Production | G130: Coal Mining | H130: Acid Mine Drainage | I130: CAPP | J130: Pennsylvanian | K130: Refuse - Mostly RED ASH, Lower WAR Eagle, Poca 3 | L130: WV | M130: McDowell | N130: wri AQ-81 | O130: WV | P130: McDowell | Q130: wri AQ-81 | R130: 81 | S130: NA | T130: NA | U130: NA | V130: NA | W130: NA | X130: NA | Y130: NA | Z130: NA | AA130: NA | AB130: NA | AC130: NA | AD130: NA | AE130: NA | AF130: NA | AG130: NA | AH130: NA | AI130: NA | AJ130: NA | AK130: 6020A | AQ130: 6.219 | AU130: 0.00035 | BJ130: 0.00074 | BY130: 0.00013 | BZ130: 0.00031 | CA130: 0.001 | CB130: 0.00023 | CC130: 0.001 | CD130: 0.001 | CE130: 0.00012 | CF130: 0.001 | CG130: 0.00011 | CH130: 0.001 | CI130: 0.001 | CJ130: 0.001 | CK130: 0.001 | CL130: 0.001 | CR130: =IF(ISBLANK(FieldSampling1618[[#This Row],[Sample Reference '# ('# required to enable calculations)]]),"",SUM(FieldSampling1618[[#This Row],[La 57]:[Lu 71]])) -> 0.0099 | CS130: =IF(ISBLANK(FieldSampling1618[[#This Row],[Sample Reference '# ('# required to enable calculations)]]),"", SUM(FieldSampling1618[Lanthanides]+FieldSampling1618[Y 39])) -> 0.01064 | CU130: 200.7 | CV130: NA | CX130: <0.038 | CY130: 89.481 | CZ130: 8.776 | DB130: 40.377 | DC130: 28.419 | DI130: 1.074 | DJ130: 413
A131: 82 | B131: raw AMD | C131: Restricted under terms of access NDA | F131: Resource Production | G131: Coal Mining | H131: Acid Mine Drainage | I131: CAPP | J131: Pennsylvanian | K131: Refuse - Mostly Sewell | L131: WV | M131: Wyoming | N131: wri AQ-82 | O131: WV | P131: Wyoming | Q131: wri AQ-82 | R131: 82 | S131: NA | T131: NA | U131: NA | V131: NA | W131: NA | X131: NA | Y131: NA | Z131: NA | AA131: NA | AB131: NA | AC131: NA | AD131: NA | AE131: NA | AF131: NA | AG131: NA | AH131: NA | AI131: NA | AJ131: NA | AK131: 6020A | AQ131: 7.401 | AU131: 0.00053 | BJ131: 0.004 | BY131: 0.0011 | BZ131: 0.0028 | CA131: 0.00044 | CB131: 0.0023 | CC131: 0.00074 | CD131: 0.00014 | CE131: 0.00096 | CF131: 0.00014 | CG131: 0.00083 | CH131: 0.00015 | CI131: 0.00036 | CJ131: 0.001 | CK131: 0.00026 | CL131: 4.4e-05 | CR131: =IF(ISBLANK(FieldSampling1618[[#This Row],[Sample Reference '# ('# required to enable calculations)]]),"",SUM(FieldSampling1618[[#This Row],[La 57]:[Lu 71]])) -> 0.011264 | CS131: =IF(ISBLANK(FieldSampling1618[[#This Row],[Sample Reference '# ('# required to enable calculations)]]),"", SUM(FieldSampling1618[Lanthanides]+FieldSampling1618[Y 39])) -> 0.015264 | CU131: 200.7 | CV131: NA | CX131: 1.48 | CY131: 76.309 | CZ131: 13.581 | DB131: 46.197 | DC131: 17.985 | DI131: 0.957 | DJ131: 446
A132: 83 | B132: raw AMD | C132: Restricted under terms of access NDA | F132: Resource Production | G132: Coal Mining | H132: Acid Mine Drainage | I132: CAPP | J132: Pennsylvanian | K132: Refuse - Mostly Sewell | L132: WV | M132: Wyoming | N132: wri AQ-83 | O132: WV | P132: Wyoming | Q132: wri AQ-83 | R132: 83 | S132: NA | T132: NA | U132: NA | V132: NA | W132: NA | X132: NA | Y132: NA | Z132: NA | AA132: NA | AB132: NA | AC132: NA | AD132: NA | AE132: NA | AF132: NA | AG132: NA | AH132: NA | AI132: NA | AJ132: NA | AK132: 6020A | AQ132: 5.908 | AU132: 0.00035 | BJ132: 0.001 | BY132: 0.00028 | BZ132: 0.00091 | CA132: 0.0001 | CB132: 0.00061 | CC132: 0.00019 | CD132: 0.001 | CE132: 0.00026 | CF132: 0.001 | CG132: 0.00021 | CH132: 5.2e-05 | CI132: 7.2e-05 | CJ132: 0.001 | CK132: 6.6e-05 | CL132: 0.001 | CR132: =IF(ISBLANK(FieldSampling1618[[#This Row],[Sample Reference '# ('# required to enable calculations)]]),"",SUM(FieldSampling1618[[#This Row],[La 57]:[Lu 71]])) -> 0.00675 | CS132: =IF(ISBLANK(FieldSampling1618[[#This Row],[Sample Reference '# ('# required to enable calculations)]]),"", SUM(FieldSampling1618[Lanthanides]+FieldSampling1618[Y 39])) -> 0.00775 | CU132: 200.7 | CV132: NA | CX132: 0.516 | CY132: 31.959 | CZ132: 3.901 | DB132: 20.529 | DC132: 3.192 | DI132: 0.684 | DJ132: 182
A133: 84 | B133: raw AMD | C133: Restricted under terms of access NDA | F133: Resource Production | G133: Coal Mining | H133: Acid Mine Drainage | I133: CAPP | J133: Pennsylvanian | K133: Refuse - Mostly Sewell | L133: WV | M133: Wyoming | N133: wri AQ-84 | O133: WV | P133: Wyoming | Q133: wri AQ-84 | R133: 84 | S133: NA | T133: NA | U133: NA | V133: NA | W133: NA | X133: NA | Y133: NA | Z133: NA | AA133: NA | AB133: NA | AC133: NA | AD133: NA | AE133: NA | AF133: NA | AG133: NA | AH133: NA | AI133: NA | AJ133: NA | AK133: 6020A | AQ133: 17.284 | AU133: 0.0034 | BJ133: 0.0232 | BY133: 0.0083 | BZ133: 0.027 | CA133: 0.0035 | CB133: 0.0165 | CC133: 0.0047 | CD133: 0.0012 | CE133: 0.0062 | CF133: 0.001 | CG133: 0.0058 | CH133: 0.001 | CI133: 0.0027 | CJ133: 0.00037 | CK133: 0.0021 | CL133: 0.0003 | CR133: =IF(ISBLANK(FieldSampling1618[[#This Row],[Sample Reference '# ('# required to enable calculations)]]),"",SUM(FieldSampling1618[[#This Row],[La 57]:[Lu 71]])) -> 0.08067 | CS133: =IF(ISBLANK(FieldSampling1618[[#This Row],[Sample Reference '# ('# required to enable calculations)]]),"", SUM(FieldSampling1618[Lanthanides]+FieldSampling1618[Y 39])) -> 0.10387 | CU133: 200.7 | CV133: NA | CX133: 13.968 | CY133: 75.768 | CZ133: 6.242 | DB133: 41.653 | DC133: 13.021 | DI133: 0.95 | DJ133: 507
A134: 85 | B134: raw AMD | C134: Restricted under terms of access NDA | F134: Resource Production | G134: Coal Mining | H134: Acid Mine Drainage | I134: CAPP | J134: Pennsylvanian | K134: Refuse - Pocahontas #3 | L134: WV | M134: Wyoming | N134: wri AQ-85 | O134: WV | P134: Wyoming | Q134: wri AQ-85 | R134: 85 | S134: NA | T134: NA | U134: NA | V134: NA | W134: NA | X134: NA | Y134: NA | Z134: NA | AA134: NA | AB134: NA | AC134: NA | AD134: NA | AE134: NA | AF134: NA | AG134: NA | AH134: NA | AI134: NA | AJ134: NA | AK134: 6020A | AQ134: 7.823 | AU134: 0.001 | BJ134: 0.0284 | BY134: 0.0024 | BZ134: 0.0095 | CA134: 0.0019 | CB134: 0.0122 | CC134: 0.005 | CD134: 0.0014 | CE134: 0.0083 | CF134: 0.0012 | CG134: 0.0064 | CH134: 0.0011 | CI134: 0.0027 | CJ134: 0.00033 | CK134: 0.0017 | CL134: 0.00024 | CR134: =IF(ISBLANK(FieldSampling1618[[#This Row],[Sample Reference '# ('# required to enable calculations)]]),"",SUM(FieldSampling1618[[#This Row],[La 57]:[Lu 71]])) -> 0.05437 | CS134: =IF(ISBLANK(FieldSampling1618[[#This Row],[Sample Reference '# ('# required to enable calculations)]]),"", SUM(FieldSampling1618[Lanthanides]+FieldSampling1618[Y 39])) -> 0.08277 | CU134: 200.7 | CV134: NA | CX134: 3.154 | CY134: 222.902 | CZ134: 186.744 | DB134: 88.466 | DC134: 364.931 | DI134: 19.665 | DJ134: 1970
A135: 86 | B135: raw AMD | C135: Restricted under terms of access NDA | F135: Resource Production | G135: Coal Mining | H135: Acid Mine Drainage | I135: CAPP | J135: Pennsylvanian | K135: Refuse - Eagle 5 UG | L135: WV | M135: Wyoming | N135: wri AQ-86 | O135: WV | P135: Wyoming | Q135: wri AQ-86 | R135: 86 | S135: NA | T135: NA | U135: NA | V135: NA | W135: NA | X135: NA | Y135: NA | Z135: NA | AA135: NA | AB135: NA | AC135: NA | AD135: NA | AE135: NA | AF135: NA | AG135: NA | AH135: NA | AI135: NA | AJ135: NA | AK135: 6020A | AQ135: 10.107 | AU135: 0.00095 | BJ135: 0.007 | BY135: 0.0025 | BZ135: 0.0076 | CA135: 0.0011 | CB135: 0.005 | CC135: 0.0015 | CD135: 0.00033 | CE135: 0.0019 | CF135: 0.00031 | CG135: 0.0019 | CH135: 0.00035 | CI135: 0.0009 | CJ135: 0.00013 | CK135: 0.00073 | CL135: 9.6e-05 | CR135: =IF(ISBLANK(FieldSampling1618[[#This Row],[Sample Reference '# ('# required to enable calculations)]]),"",SUM(FieldSampling1618[[#This Row],[La 57]:[Lu 71]])) -> 0.024346 | CS135: =IF(ISBLANK(FieldSampling1618[[#This Row],[Sample Reference '# ('# required to enable calculations)]]),"", SUM(FieldSampling1618[Lanthanides]+FieldSampling1618[Y 39])) -> 0.031346 | CU135: 200.7 | CV135: NA | CX135: 4.093 | CY135: 52.367 | CZ135: 2.049 | DB135: 24.388 | DC135: 21.81 | DI135: 1.106 | DJ135: 327
A136: 87 | B136: raw AMD | C136: Restricted under terms of access NDA | F136: Resource Production | G136: Coal Mining | H136: Acid Mine Drainage | I136: CAPP | J136: Pennsylvanian | K136: Lower Kittanning - (AKA STOCKTon) | L136: WV | M136: Braxton | N136: wri AQ-87 | O136: WV | P136: Braxton | Q136: wri AQ-87 | R136: 87 | S136: NA | T136: NA | U136: NA | V136: NA | W136: NA | X136: NA | Y136: NA | Z136: NA | AA136: NA | AB136: NA | AC136: NA | AD136: NA | AE136: NA | AF136: NA | AG136: NA | AH136: NA | AI136: NA | AJ136: NA | AK136: 6020A | AQ136: 4.282 | AU136: 0.00035 | BJ136: 0.001 | BY136: 0.001 | BZ136: 0.001 | CA136: 0.001 | CB136: 0.001 | CC136: 0.001 | CD136: 0.001 | CE136: 0.001 | CF136: 0.001 | CG136: 0.001 | CH136: 0.001 | CI136: 0.001 | CJ136: 0.001 | CK136: 0.001 | CL136: 0.001 | CR136: =IF(ISBLANK(FieldSampling1618[[#This Row],[Sample Reference '# ('# required to enable calculations)]]),"",SUM(FieldSampling1618[[#This Row],[La 57]:[Lu 71]])) -> 0.014 | CS136: =IF(ISBLANK(FieldSampling1618[[#This Row],[Sample Reference '# ('# required to enable calculations)]]),"", SUM(FieldSampling1618[Lanthanides]+FieldSampling1618[Y 39])) -> 0.015 | CU136: 200.7 | CV136: NA | CX136: <0.038 | CY136: 46.913 | CZ136: 1.178 | DB136: 14.527 | DC136: 80.539 | DI136: 1.306 | DJ136: 150
A137: 88 | B137: raw AMD | C137: Restricted under terms of access NDA | F137: Resource Production | G137: Coal Mining | H137: Acid Mine Drainage | I137: CAPP | J137: Pennsylvanian | K137: Refuse - Lower Kittanning AND SOME Freeport | L137: WV | M137: Braxton | N137: wri AQ-88 | O137: WV | P137: Braxton | Q137: wri AQ-88 | R137: 88 | S137: NA | T137: NA | U137: NA | V137: NA | W137: NA | X137: NA | Y137: NA | Z137: NA | AA137: NA | AB137: NA | AC137: NA | AD137: NA | AE137: NA | AF137: NA | AG137: NA | AH137: NA | AI137: NA | AJ137: NA | AK137: 6020A | AQ137: 3.175 | AU137: 0.002 | BJ137: 8.8e-05 | BY137: 0.001 | BZ137: 8.6e-05 | CA137: 0.001 | CB137: 0.001 | CC137: 0.001 | CD137: 0.001 | CE137: 0.001 | CF137: 0.001 | CG137: 0.001 | CH137: 0.001 | CI137: 0.001 | CJ137: 0.001 | CK137: 0.001 | CL137: 0.001 | CR137: =IF(ISBLANK(FieldSampling1618[[#This Row],[Sample Reference '# ('# required to enable calculations)]]),"",SUM(FieldSampling1618[[#This Row],[La 57]:[Lu 71]])) -> 0.013086 | CS137: =IF(ISBLANK(FieldSampling1618[[#This Row],[Sample Reference '# ('# required to enable calculations)]]),"", SUM(FieldSampling1618[Lanthanides]+FieldSampling1618[Y 39])) -> 0.013174 | CU137: 200.7 | CV137: NA | CX137: <0.038 | CY137: 179.712 | CZ137: 1.657 | DB137: 55.101 | DC137: 19.387 | DI137: 3.804 | DJ137: 543
A138: 89 | B138: raw AMD | C138: Restricted under terms of access NDA | F138: Resource Production | G138: Coal Mining | H138: Acid Mine Drainage | I138: CAPP | J138: Pennsylvanian | K138: Clarion | L138: WV | M138: Webster | N138: wri AQ-89 | O138: WV | P138: Webster | Q138: wri AQ-89 | R138: 89 | S138: NA | T138: NA | U138: NA | V138: NA | W138: NA | X138: NA | Y138: NA | Z138: NA | AA138: NA | AB138: NA | AC138: NA | AD138: NA | AE138: NA | AF138: NA | AG138: NA | AH138: NA | AI138: NA | AJ138: NA | AK138: 6020A | AQ138: 7.496 | AU138: 0.0065 | BJ138: 0.0284 | BY138: 0.0081 | BZ138: 0.0284 | CA138: 0.0047 | CB138: 0.0249 | CC138: 0.0091 | CD138: 0.0023 | CE138: 0.0106 | CF138: 0.0015 | CG138: 0.0075 | CH138: 0.0014 | CI138: 0.0033 | CJ138: 0.00047 | CK138: 0.0027 | CL138: 0.00039 | CR138: =IF(ISBLANK(FieldSampling1618[[#This Row],[Sample Reference '# ('# required to enable calculations)]]),"",SUM(FieldSampling1618[[#This Row],[La 57]:[Lu 71]])) -> 0.10536 | CS138: =IF(ISBLANK(FieldSampling1618[[#This Row],[Sample Reference '# ('# required to enable calculations)]]),"", SUM(FieldSampling1618[Lanthanides]+FieldSampling1618[Y 39])) -> 0.13376 | CU138: 200.7 | CV138: NA | CX138: 18.061 | CY138: 161.151 | CZ138: 5.561 | DB138: 99.69 | DC138: 2.378 | DI138: 1.512 | DJ138: 944
A139: 90 | B139: raw AMD | C139: Restricted under terms of access NDA | F139: Resource Production | G139: Coal Mining | H139: Acid Mine Drainage | I139: CAPP | J139: Pennsylvanian | K139: Lower Kittanning | L139: WV | M139: Webster | N139: wri AQ-90 | O139: WV | P139: Webster | Q139: wri AQ-90 | R139: 90 | S139: NA | T139: NA | U139: NA | V139: NA | W139: NA | X139: NA | Y139: NA | Z139: NA | AA139: NA | AB139: NA | AC139: NA | AD139: NA | AE139: NA | AF139: NA | AG139: NA | AH139: NA | AI139: NA | AJ139: NA | AK139: 6020A | AQ139: 16.371 | AU139: 0.0073 | BJ139: 0.0272 | BY139: 0.0117 | BZ139: 0.0345 | CA139: 0.0051 | CB139: 0.026 | CC139: 0.0089 | CD139: 0.0021 | CE139: 0.0093 | CF139: 0.0014 | CG139: 0.007 | CH139: 0.0014 | CI139: 0.0033 | CJ139: 0.00046 | CK139: 0.0027 | CL139: 0.0004 | CR139: =IF(ISBLANK(FieldSampling1618[[#This Row],[Sample Reference '# ('# required to enable calculations)]]),"",SUM(FieldSampling1618[[#This Row],[La 57]:[Lu 71]])) -> 0.11426 | CS139: =IF(ISBLANK(FieldSampling1618[[#This Row],[Sample Reference '# ('# required to enable calculations)]]),"", SUM(FieldSampling1618[Lanthanides]+FieldSampling1618[Y 39])) -> 0.14146 | CU139: 200.7 | CV139: NA | CX139: 14.338 | CY139: 84.468 | CZ139: 2.436 | DB139: 44.512 | DC139: 1.088 | DI139: 0.529 | DJ139: 534
A140: 91 | B140: raw AMD | C140: Restricted under terms of access NDA | F140: Resource Production | G140: Coal Mining | H140: Acid Mine Drainage | I140: CAPP | J140: Pennsylvanian | K140: Unknown | L140: WV | M140: Nicholas | N140: wri AQ-91 | O140: WV | P140: Nicholas | Q140: wri AQ-91 | R140: 91 | S140: NA | T140: NA | U140: NA | V140: NA | W140: NA | X140: NA | Y140: NA | Z140: NA | AA140: NA | AB140: NA | AC140: NA | AD140: NA | AE140: NA | AF140: NA | AG140: NA | AH140: NA | AI140: NA | AJ140: NA | AK140: 6020A | AQ140: 11.721 | AU140: 0.0024 | BJ140: 0.0365 | BY140: 0.0163 | BZ140: 0.032 | CA140: 0.0048 | CB140: 0.0219 | CC140: 0.0063 | CD140: 0.0016 | CE140: 0.0083 | CF140: 0.0013 | CG140: 0.0071 | CH140: 0.0014 | CI140: 0.0032 | CJ140: 0.00041 | CK140: 0.0025 | CL140: 0.00034 | CR140: =IF(ISBLANK(FieldSampling1618[[#This Row],[Sample Reference '# ('# required to enable calculations)]]),"",SUM(FieldSampling1618[[#This Row],[La 57]:[Lu 71]])) -> 0.10745 | CS140: =IF(ISBLANK(FieldSampling1618[[#This Row],[Sample Reference '# ('# required to enable calculations)]]),"", SUM(FieldSampling1618[Lanthanides]+FieldSampling1618[Y 39])) -> 0.14395 | CU140: 200.7 | CV140: NA | CX140: 7.653 | CY140: 124.824 | CZ140: 2.662 | DB140: 118.272 | DC140: 6.797 | DI140: 1.173 | DJ140: 927
A141: 92 | B141: raw AMD | C141: Restricted under terms of access NDA | F141: Resource Production | G141: Coal Mining | H141: Acid Mine Drainage | I141: CAPP | J141: Pennsylvanian | K141: Unknown | L141: WV | M141: Nicholas | N141: wri AQ-92 | O141: WV | P141: Nicholas | Q141: wri AQ-92 | R141: 92 | S141: NA | T141: NA | U141: NA | V141: NA | W141: NA | X141: NA | Y141: NA | Z141: NA | AA141: NA | AB141: NA | AC141: NA | AD141: NA | AE141: NA | AF141: NA | AG141: NA | AH141: NA | AI141: NA | AJ141: NA | AK141: 6020A | AQ141: 22.826 | AU141: 0.0114 | BJ141: 0.111 | BY141: 0.0221 | BZ141: 0.0647 | CA141: 0.0104 | CB141: 0.0538 | CC141: 0.0197 | CD141: 0.0056 | CE141: 0.0289 | CF141: 0.0045 | CG141: 0.0247 | CH141: 0.0047 | CI141: 0.0114 | CJ141: 0.0015 | CK141: 0.008 | CL141: 0.0012 | CR141: =IF(ISBLANK(FieldSampling1618[[#This Row],[Sample Reference '# ('# required to enable calculations)]]),"",SUM(FieldSampling1618[[#This Row],[La 57]:[Lu 71]])) -> 0.2612 | CS141: =IF(ISBLANK(FieldSampling1618[[#This Row],[Sample Reference '# ('# required to enable calculations)]]),"", SUM(FieldSampling1618[Lanthanides]+FieldSampling1618[Y 39])) -> 0.3722 | CU141: 200.7 | CV141: NA | CX141: 24.469 | CY141: 228.93 | CZ141: 17.787 | DB141: 205.798 | DC141: 6.038 | DI141: 0.624 | DJ141: 1870
A142: 93 | B142: raw AMD | C142: Restricted under terms of access NDA | F142: Resource Production | G142: Coal Mining | H142: Acid Mine Drainage | I142: CAPP | J142: Pennsylvanian | K142: Unknown | L142: WV | M142: Nicholas | N142: wri AQ-93 | O142: WV | P142: Nicholas | Q142: wri AQ-93 | R142: 93 | S142: NA | T142: NA | U142: NA | V142: NA | W142: NA | X142: NA | Y142: NA | Z142: NA | AA142: NA | AB142: NA | AC142: NA | AD142: NA | AE142: NA | AF142: NA | AG142: NA | AH142: NA | AI142: NA | AJ142: NA | AK142: 6020A | AQ142: 5.608 | AU142: 0.00081 | BJ142: 0.0754 | BY142: 0.058 | BZ142: 0.0966 | CA142: 0.0138 | CB142: 0.055 | CC142: 0.0125 | CD142: 0.0031 | CE142: 0.0158 | CF142: 0.0023 | CG142: 0.0129 | CH142: 0.0027 | CI142: 0.0069 | CJ142: 0.00091 | CK142: 0.0052 | CL142: 0.00078 | CR142: =IF(ISBLANK(FieldSampling1618[[#This Row],[Sample Reference '# ('# required to enable calculations)]]),"",SUM(FieldSampling1618[[#This Row],[La 57]:[Lu 71]])) -> 0.28649 | CS142: =IF(ISBLANK(FieldSampling1618[[#This Row],[Sample Reference '# ('# required to enable calculations)]]),"", SUM(FieldSampling1618[Lanthanides]+FieldSampling1618[Y 39])) -> 0.36189 | CU142: 200.7 | CV142: NA | CX142: 6.276 | CY142: 181.353 | CZ142: 0.251 | DB142: 203.152 | DC142: 10.826 | DI142: 1.609 | DJ142: 1420
A143: 94 | B143: raw AMD | C143: Restricted under terms of access NDA | F143: Resource Production | G143: Coal Mining | H143: Acid Mine Drainage | I143: CAPP | J143: Pennsylvanian | K143: Coalburg | L143: WV | M143: Nicholas | N143: wri AQ-94 | O143: WV | P143: Nicholas | Q143: wri AQ-94 | R143: 94 | S143: NA | T143: NA | U143: NA | V143: NA | W143: NA | X143: NA | Y143: NA | Z143: NA | AA143: NA | AB143: NA | AC143: NA | AD143: NA | AE143: NA | AF143: NA | AG143: NA | AH143: NA | AI143: NA | AJ143: NA | AK143: 6020A | AQ143: 4.915 | AU143: 0.00038 | BJ143: 0.0058 | BY143: 0.0043 | BZ143: 0.0027 | CA143: 0.00074 | CB143: 0.0031 | CC143: 0.00063 | CD143: 0.00034 | CE143: 0.00087 | CF143: 0.00012 | CG143: 0.00065 | CH143: 0.00012 | CI143: 0.00014 | CJ143: 0.001 | CK143: 0.00017 | CL143: 0.001 | CR143: =IF(ISBLANK(FieldSampling1618[[#This Row],[Sample Reference '# ('# required to enable calculations)]]),"",SUM(FieldSampling1618[[#This Row],[La 57]:[Lu 71]])) -> 0.01588 | CS143: =IF(ISBLANK(FieldSampling1618[[#This Row],[Sample Reference '# ('# required to enable calculations)]]),"", SUM(FieldSampling1618[Lanthanides]+FieldSampling1618[Y 39])) -> 0.02168 | CU143: 200.7 | CV143: NA | CX143: 0.074 | CY143: 150.844 | CZ143: 0.76 | DB143: 132.743 | DC143: 4.696 | DI143: 5.345 | DJ143: 948
A144: 95 | B144: raw AMD | C144: Restricted under terms of access NDA | F144: Resource Production | G144: Coal Mining | H144: Acid Mine Drainage | I144: CAPP | J144: Pennsylvanian | L144: WV | M144: Nicholas | N144: wri AQ-95 | O144: WV | P144: Nicholas | Q144: wri AQ-95 | R144: 95 | S144: NA | T144: NA | U144: NA | V144: NA | W144: NA | X144: NA | Y144: NA | Z144: NA | AA144: NA | AB144: NA | AC144: NA | AD144: NA | AE144: NA | AF144: NA | AG144: NA | AH144: NA | AI144: NA | AJ144: NA | AK144: 6020A | AQ144: 8.434 | AU144: 0.00099 | BJ144: 0.007 | BY144: 0.0038 | BZ144: 0.0102 | CA144: 0.0014 | CB144: 0.0065 | CC144: 0.0017 | CD144: 0.00084 | CE144: 0.0019 | CF144: 0.00029 | CG144: 0.0017 | CH144: 0.0003 | CI144: 0.00042 | CJ144: 9.6e-05 | CK144: 0.00066 | CL144: 8.6e-05 | CR144: =IF(ISBLANK(FieldSampling1618[[#This Row],[Sample Reference '# ('# required to enable calculations)]]),"",SUM(FieldSampling1618[[#This Row],[La 57]:[Lu 71]])) -> 0.029892 | CS144: =IF(ISBLANK(FieldSampling1618[[#This Row],[Sample Reference '# ('# required to enable calculations)]]),"", SUM(FieldSampling1618[Lanthanides]+FieldSampling1618[Y 39])) -> 0.036892 | CU144: 200.7 | CV144: NA | CX144: 3.08 | CY144: 37.272 | CZ144: 0.034 | DB144: 18.834 | DC144: 0.88 | DI144: 4.815 | DJ144: 180
A145: 96 | B145: raw AMD | C145: Restricted under terms of access NDA | F145: Resource Production | G145: Coal Mining | H145: Acid Mine Drainage | I145: CAPP | J145: Pennsylvanian | K145: Eagle | L145: WV | M145: Nicholas | N145: wri AQ-96 | O145: WV | P145: Nicholas | Q145: wri AQ-96 | R145: 96 | S145: NA | T145: NA | U145: NA | V145: NA | W145: NA | X145: NA | Y145: NA | Z145: NA | AA145: NA | AB145: NA | AC145: NA | AD145: NA | AE145: NA | AF145: NA | AG145: NA | AH145: NA | AI145: NA | AJ145: NA | AK145: 6020A | AQ145: 4.904 | AU145: 0.00032 | BJ145: 0.001 | BY145: 0.001 | BZ145: 0.001 | CA145: 0.001 | CB145: 0.001 | CC145: 0.001 | CD145: 0.001 | CE145: 0.001 | CF145: 0.001 | CG145: 0.001 | CH145: 0.001 | CI145: 0.001 | CJ145: 0.001 | CK145: 0.001 | CL145: 0.001 | CR145: =IF(ISBLANK(FieldSampling1618[[#This Row],[Sample Reference '# ('# required to enable calculations)]]),"",SUM(FieldSampling1618[[#This Row],[La 57]:[Lu 71]])) -> 0.014 | CS145: =IF(ISBLANK(FieldSampling1618[[#This Row],[Sample Reference '# ('# required to enable calculations)]]),"", SUM(FieldSampling1618[Lanthanides]+FieldSampling1618[Y 39])) -> 0.015 | CU145: 200.7 | CV145: NA | CX145: <0.038 | CY145: 37.712 | CZ145: 1.162 | DB145: 15.934 | DC145: 3.116 | DI145: 1.383 | DJ145: 74.8
A146: 97 | B146: raw AMD | C146: Restricted under terms of access NDA | F146: Resource Production | G146: Coal Mining | H146: Acid Mine Drainage | I146: CAPP | J146: Pennsylvanian | L146: WV | M146: Greenbrier | N146: wri AQ-97 | O146: WV | P146: Greenbrier | Q146: wri AQ-97 | R146: 97 | S146: NA | T146: NA | U146: NA | V146: NA | W146: NA | X146: NA | Y146: NA | Z146: NA | AA146: NA | AB146: NA | AC146: NA | AD146: NA | AE146: NA | AF146: NA | AG146: NA | AH146: NA | AI146: NA | AJ146: NA | AK146: 6020A | AQ146: 23.705 | AU146: 0.0127 | BJ146: 0.0958 | BY146: 0.0189 | BZ146: 0.0587 | CA146: 0.0089 | CB146: 0.0461 | CC146: 0.0156 | CD146: 0.0095 | CE146: 0.0228 | CF146: 0.0034 | CG146: 0.0203 | CH146: 0.0037 | CI146: 0.0042 | CJ146: 0.0012 | CK146: 0.0067 | CL146: 0.0009 | CR146: =IF(ISBLANK(FieldSampling1618[[#This Row],[Sample Reference '# ('# required to enable calculations)]]),"",SUM(FieldSampling1618[[#This Row],[La 57]:[Lu 71]])) -> 0.2209 | CS146: =IF(ISBLANK(FieldSampling1618[[#This Row],[Sample Reference '# ('# required to enable calculations)]]),"", SUM(FieldSampling1618[Lanthanides]+FieldSampling1618[Y 39])) -> 0.3167 | CU146: 200.7 | CV146: NA | CX146: 62.14 | CY146: 215.833 | CZ146: 19.494 | DB146: 95.731 | DC146: 17.251 | DI146: 0.996 | DJ146: 1520
A147: 98 | B147: raw AMD | C147: Restricted under terms of access NDA | F147: Resource Production | G147: Coal Mining | H147: Acid Mine Drainage | I147: CAPP | J147: Pennsylvanian | L147: WV | M147: Greenbrier | N147: wri AQ-98 | O147: WV | P147: Greenbrier | Q147: wri AQ-98 | R147: 98 | S147: NA | T147: NA | U147: NA | V147: NA | W147: NA | X147: NA | Y147: NA | Z147: NA | AA147: NA | AB147: NA | AC147: NA | AD147: NA | AE147: NA | AF147: NA | AG147: NA | AH147: NA | AI147: NA | AJ147: NA | AK147: 6020A | AQ147: 5.359 | AU147: 0.00087 | BJ147: 0.013 | BY147: 0.0024 | BZ147: 0.0074 | CA147: 0.0012 | CB147: 0.0063 | CC147: 0.0022 | CD147: 0.0012 | CE147: 0.0033 | CF147: 0.0005 | CG147: 0.0027 | CH147: 0.00048 | CI147: 0.00057 | CJ147: 0.00014 | CK147: 0.0008 | CL147: 9.4e-05 | CR147: =IF(ISBLANK(FieldSampling1618[[#This Row],[Sample Reference '# ('# required to enable calculations)]]),"",SUM(FieldSampling1618[[#This Row],[La 57]:[Lu 71]])) -> 0.029284 | CS147: =IF(ISBLANK(FieldSampling1618[[#This Row],[Sample Reference '# ('# required to enable calculations)]]),"", SUM(FieldSampling1618[Lanthanides]+FieldSampling1618[Y 39])) -> 0.042284 | CU147: 200.7 | CV147: NA | CX147: 4.791 | CY147: 181.511 | CZ147: 0.159 | DB147: 37.394 | DC147: 8.861 | DI147: 0.77 | DJ147: 661
A148: 99 | B148: raw AMD | C148: Restricted under terms of access NDA | F148: Resource Production | G148: Coal Mining | H148: Acid Mine Drainage | I148: NAPP | J148: Pennsylvanian | K148: Middle Kittanning | L148: WV | M148: Marion | N148: wri AQ-99 | O148: WV | P148: Marion | Q148: wri AQ-99 | R148: 99 | S148: NA | T148: NA | U148: NA | V148: NA | W148: NA | X148: NA | Y148: NA | Z148: NA | AA148: NA | AB148: NA | AC148: NA | AD148: NA | AE148: NA | AF148: NA | AG148: NA | AH148: NA | AI148: NA | AJ148: NA | AK148: 6020A | AQ148: 8.646 | AU148: 0.0035 | BJ148: 0.0325 | BY148: 0.0054 | BZ148: 0.0173 | CA148: 0.0024 | CB148: 0.0129 | CC148: 0.0046 | CD148: 0.0031 | CE148: 0.0068 | CF148: 0.001 | CG148: 0.0063 | CH148: 0.0011 | CI148: 0.0013 | CJ148: 0.00037 | CK148: 0.0022 | CL148: 0.00029 | CR148: =IF(ISBLANK(FieldSampling1618[[#This Row],[Sample Reference '# ('# required to enable calculations)]]),"",SUM(FieldSampling1618[[#This Row],[La 57]:[Lu 71]])) -> 0.06506 | CS148: =IF(ISBLANK(FieldSampling1618[[#This Row],[Sample Reference '# ('# required to enable calculations)]]),"", SUM(FieldSampling1618[Lanthanides]+FieldSampling1618[Y 39])) -> 0.09756 | CU148: 200.7 | CV148: NA | CX148: 9.13 | CY148: 314.319 | CZ148: 35.812 | DB148: 55.592 | DC148: 45.44 | DI148: 3.85 | DJ148: 1430
A149: 100 | B149: raw AMD | C149: Restricted under terms of access NDA | F149: Resource Production | G149: Coal Mining | H149: Acid Mine Drainage | I149: NAPP | J149: Pennsylvanian | K149: Middle Kittanning | L149: WV | M149: Marion | N149: wri AQ-100 | O149: WV | P149: Marion | Q149: wri AQ-100 | R149: 100 | S149: NA | T149: NA | U149: NA | V149: NA | W149: NA | X149: NA | Y149: NA | Z149: NA | AA149: NA | AB149: NA | AC149: NA | AD149: NA | AE149: NA | AF149: NA | AG149: NA | AH149: NA | AI149: NA | AJ149: NA | AK149: 6020A | AQ149: 3.528 | AU149: 0.001 | BJ149: 0.00019 | BY149: 0.001 | BZ149: 0.001 | CA149: 0.001 | CB149: 0.001 | CC149: 0.001 | CD149: 0.001 | CE149: 0.001 | CF149: 0.001 | CG149: 0.001 | CH149: 0.001 | CI149: 0.001 | CJ149: 0.001 | CK149: 0.001 | CL149: 0.001 | CR149: =IF(ISBLANK(FieldSampling1618[[#This Row],[Sample Reference '# ('# required to enable calculations)]]),"",SUM(FieldSampling1618[[#This Row],[La 57]:[Lu 71]])) -> 0.014 | CS149: =IF(ISBLANK(FieldSampling1618[[#This Row],[Sample Reference '# ('# required to enable calculations)]]),"", SUM(FieldSampling1618[Lanthanides]+FieldSampling1618[Y 39])) -> 0.01419 | CU149: 200.7 | CV149: NA | CX149: <0.038 | CY149: 107.838 | CZ149: 3.068 | DB149: 26.946 | DC149: 160.337 | DI149: 1.019 | DJ149: 335.5
A150: 101 | B150: raw AMD | C150: Restricted under terms of access NDA | F150: Resource Production | G150: Coal Mining | H150: Acid Mine Drainage | I150: NAPP | J150: Pennsylvanian | K150: Middle Kittanning | L150: WV | M150: Marion | N150: wri AQ-101 | O150: WV | P150: Marion | Q150: wri AQ-101 | R150: 101 | S150: NA | T150: NA | U150: NA | V150: NA | W150: NA | X150: NA | Y150: NA | Z150: NA | AA150: NA | AB150: NA | AC150: NA | AD150: NA | AE150: NA | AF150: NA | AG150: NA | AH150: NA | AI150: NA | AJ150: NA | AK150: 6020A | AQ150: 16.521 | AU150: 0.0115 | BJ150: 0.11 | BY150: 0.0199 | BZ150: 0.0604 | CA150: 0.0084 | CB150: 0.0462 | CC150: 0.0163 | CD150: 0.0104 | CE150: 0.0247 | CF150: 0.0036 | CG150: 0.0221 | CH150: 0.004 | CI150: 0.0044 | CJ150: 0.0013 | CK150: 0.0072 | CL150: 0.001 | CR150: =IF(ISBLANK(FieldSampling1618[[#This Row],[Sample Reference '# ('# required to enable calculations)]]),"",SUM(FieldSampling1618[[#This Row],[La 57]:[Lu 71]])) -> 0.2299 | CS150: =IF(ISBLANK(FieldSampling1618[[#This Row],[Sample Reference '# ('# required to enable calculations)]]),"", SUM(FieldSampling1618[Lanthanides]+FieldSampling1618[Y 39])) -> 0.3399 | CU150: 200.7 | CV150: NA | CX150: 28.149 | CY150: 427.83 | CZ150: 299.594 | DB150: 98.346 | DC150: 179.308 | DI150: 6.792 | DJ150: 2980
A151: 102 | B151: raw AMD | C151: Restricted under terms of access NDA | F151: Resource Production | G151: Coal Mining | H151: Acid Mine Drainage | I151: NAPP | J151: Pennsylvanian | K151: Pittsburgh | L151: PA | M151: Greene | N151: wri AQ-102 | O151: PA | P151: Greene | Q151: wri AQ-102 | R151: 102 | S151: NA | T151: NA | U151: NA | V151: NA | W151: NA | X151: NA | Y151: NA | Z151: NA | AA151: NA | AB151: NA | AC151: NA | AD151: NA | AE151: NA | AF151: NA | AG151: NA | AH151: NA | AI151: NA | AJ151: NA | AK151: 6020A | AQ151: 6.175 | AU151: 0.001 | BJ151: 0.0022 | BY151: 0.001 | BZ151: 7.6e-05 | CA151: 0.001 | CB151: 0.00018 | CC151: 6.6e-05 | CD151: 0.001 | CE151: 0.00013 | CF151: 0.001 | CG151: 0.00017 | CH151: 0.001 | CI151: 0.0001 | CJ151: 0.001 | CK151: 6.4e-05 | CL151: 0.001 | CR151: =IF(ISBLANK(FieldSampling1618[[#This Row],[Sample Reference '# ('# required to enable calculations)]]),"",SUM(FieldSampling1618[[#This Row],[La 57]:[Lu 71]])) -> 0.007786 | CS151: =IF(ISBLANK(FieldSampling1618[[#This Row],[Sample Reference '# ('# required to enable calculations)]]),"", SUM(FieldSampling1618[Lanthanides]+FieldSampling1618[Y 39])) -> 0.009986 | CU151: 200.7 | CV151: NA | CX151: <0.038 | CY151: 186.34 | CZ151: 37.606 | DB151: 50.025 | DC151: 382.792 | DI151: 18.266 | DJ151: 1060
A152: 103 | B152: raw AMD | C152: Restricted under terms of access NDA | F152: Resource Production | G152: Coal Mining | H152: Acid Mine Drainage | I152: NAPP | J152: Pennsylvanian | K152: Pittsburgh | L152: WV | M152: Marshall | N152: wri AQ-103 | O152: WV | P152: Marshall | Q152: wri AQ-103 | R152: 103 | S152: NA | T152: NA | U152: NA | V152: NA | W152: NA | X152: NA | Y152: NA | Z152: NA | AA152: NA | AB152: NA | AC152: NA | AD152: NA | AE152: NA | AF152: NA | AG152: NA | AH152: NA | AI152: NA | AJ152: NA | AK152: 6020A | AQ152: 4.933 | AU152: 0.0003 | BJ152: 0.00054 | BY152: 6.4e-05 | BZ152: 0.00016 | CA152: 0.001 | CB152: 9e-05 | CC152: 0.001 | CD152: 0.001 | CE152: 0.001 | CF152: 0.001 | CG152: 5.4e-05 | CH152: 0.001 | CI152: 0.001 | CJ152: 0.001 | CK152: 0.001 | CL152: 0.001 | CR152: =IF(ISBLANK(FieldSampling1618[[#This Row],[Sample Reference '# ('# required to enable calculations)]]),"",SUM(FieldSampling1618[[#This Row],[La 57]:[Lu 71]])) -> 0.010368 | CS152: =IF(ISBLANK(FieldSampling1618[[#This Row],[Sample Reference '# ('# required to enable calculations)]]),"", SUM(FieldSampling1618[Lanthanides]+FieldSampling1618[Y 39])) -> 0.010908 | CU152: 200.7 | CV152: NA | CX152: <0.038 | CY152: 223.017 | CZ152: 20.859 | DB152: 32.333 | DC152: 754.953 | DI152: 147.71 | DJ152: 1610
A153: 104 | B153: raw AMD | C153: Restricted under terms of access NDA | F153: Resource Production | G153: Coal Mining | H153: Acid Mine Drainage | I153: NAPP | J153: Pennsylvanian | K153: Pittsburgh | L153: WV | M153: Marshall | N153: wri AQ-104 | O153: WV | P153: Marshall | Q153: wri AQ-104 | R153: 104 | S153: NA | T153: NA | U153: NA | V153: NA | W153: NA | X153: NA | Y153: NA | Z153: NA | AA153: NA | AB153: NA | AC153: NA | AD153: NA | AE153: NA | AF153: NA | AG153: NA | AH153: NA | AI153: NA | AJ153: NA | AK153: 6020A | AQ153: 4.155 | AU153: 0.0003 | BJ153: 0.00034 | BY153: 0.001 | BZ153: 0.001 | CA153: 0.001 | CB153: 0.001 | CC153: 0.001 | CD153: 0.001 | CE153: 0.001 | CF153: 0.001 | CG153: 0.001 | CH153: 0.001 | CI153: 0.001 | CJ153: 0.001 | CK153: 0.001 | CL153: 0.001 | CR153: =IF(ISBLANK(FieldSampling1618[[#This Row],[Sample Reference '# ('# required to enable calculations)]]),"",SUM(FieldSampling1618[[#This Row],[La 57]:[Lu 71]])) -> 0.014 | CS153: =IF(ISBLANK(FieldSampling1618[[#This Row],[Sample Reference '# ('# required to enable calculations)]]),"", SUM(FieldSampling1618[Lanthanides]+FieldSampling1618[Y 39])) -> 0.01434 | CU153: 200.7 | CV153: NA | CX153: <0.038 | CY153: 93.709 | CZ153: 5.129 | DB153: 20.271 | DC153: 947.624 | DI153: 405.1 | DJ153: 1040
A154: 105 | B154: raw AMD | C154: Restricted under terms of access NDA | F154: Resource Production | G154: Coal Mining | H154: Acid Mine Drainage | I154: NAPP | J154: Pennsylvanian | K154: Pittsburgh | L154: WV | M154: Marshall | N154: wri AQ-105 | O154: WV | P154: Marshall | Q154: wri AQ-105 | R154: 105 | S154: NA | T154: NA | U154: NA | V154: NA | W154: NA | X154: NA | Y154: NA | Z154: NA | AA154: NA | AB154: NA | AC154: NA | AD154: NA | AE154: NA | AF154: NA | AG154: NA | AH154: NA | AI154: NA | AJ154: NA | AK154: 6020A | AQ154: 4.622 | AU154: 0.0012 | BJ154: 0.0012 | BY154: 0.00036 | BZ154: 0.0012 | CA154: 0.00018 | CB154: 0.001 | CC154: 0.00021 | CD154: 4.6e-05 | CE154: 0.0003 | CF154: 0.001 | CG154: 0.0002 | CH154: 0.001 | CI154: 0.0001 | CJ154: 0.001 | CK154: 0.001 | CL154: 0.001 | CR154: =IF(ISBLANK(FieldSampling1618[[#This Row],[Sample Reference '# ('# required to enable calculations)]]),"",SUM(FieldSampling1618[[#This Row],[La 57]:[Lu 71]])) -> 0.008596 | CS154: =IF(ISBLANK(FieldSampling1618[[#This Row],[Sample Reference '# ('# required to enable calculations)]]),"", SUM(FieldSampling1618[Lanthanides]+FieldSampling1618[Y 39])) -> 0.009796 | CU154: 200.7 | CV154: NA | CX154: 0.113 | CY154: 339.772 | CZ154: 20.484 | DB154: 46.961 | DC154: 459.982 | DI154: 20.52 | DJ154: 1760
A155: 106 | B155: raw AMD | C155: Restricted under terms of access NDA | F155: Resource Production | G155: Coal Mining | H155: Acid Mine Drainage | I155: NAPP | J155: Pennsylvanian | K155: Pittsburgh | L155: WV | M155: Marshall | N155: wri AQ-106 | O155: WV | P155: Marshall | Q155: wri AQ-106 | R155: 106 | S155: NA | T155: NA | U155: NA | V155: NA | W155: NA | X155: NA | Y155: NA | Z155: NA | AA155: NA | AB155: NA | AC155: NA | AD155: NA | AE155: NA | AF155: NA | AG155: NA | AH155: NA | AI155: NA | AJ155: NA | AK155: 6020A | AQ155: 7.624 | AU155: 0.00055 | BJ155: 0.005 | BY155: 0.00067 | BZ155: 0.0025 | CA155: 0.00041 | CB155: 0.0023 | CC155: 0.00076 | CD155: 0.00016 | CE155: 0.00085 | CF155: 8.6e-05 | CG155: 0.00058 | CH155: 0.00012 | CI155: 0.00031 | CJ155: 0.001 | CK155: 0.00017 | CL155: 0.001 | CR155: =IF(ISBLANK(FieldSampling1618[[#This Row],[Sample Reference '# ('# required to enable calculations)]]),"",SUM(FieldSampling1618[[#This Row],[La 57]:[Lu 71]])) -> 0.010916 | CS155: =IF(ISBLANK(FieldSampling1618[[#This Row],[Sample Reference '# ('# required to enable calculations)]]),"", SUM(FieldSampling1618[Lanthanides]+FieldSampling1618[Y 39])) -> 0.015916 | CU155: 200.7 | CV155: NA | CX155: 0.063 | CY155: 286.617 | CZ155: 55.373 | DB155: 35.972 | DC155: 569.968 | DI155: 154.7 | DJ155: 1580
A156: 107 | B156: raw AMD | C156: Restricted under terms of access NDA | F156: Resource Production | G156: Coal Mining | H156: Acid Mine Drainage | I156: NAPP | J156: Pennsylvanian | K156: Pittsburgh | L156: WV | M156: Marshall | N156: wri AQ-107 | O156: WV | P156: Marshall | Q156: wri AQ-107 | R156: 107 | S156: NA | T156: NA | U156: NA | V156: NA | W156: NA | X156: NA | Y156: NA | Z156: NA | AA156: NA | AB156: NA | AC156: NA | AD156: NA | AE156: NA | AF156: NA | AG156: NA | AH156: NA | AI156: NA | AJ156: NA | AK156: 6020A | AQ156: 4.533 | AU156: 0.00044 | BJ156: 0.0093 | BY156: 0.0033 | BZ156: 0.01 | CA156: 0.0015 | CB156: 0.0074 | CC156: 0.0019 | CD156: 0.00045 | CE156: 0.0024 | CF156: 0.00029 | CG156: 0.0016 | CH156: 0.00027 | CI156: 0.00071 | CJ156: 8e-05 | CK156: 0.00039 | CL156: 4.4e-05 | CR156: =IF(ISBLANK(FieldSampling1618[[#This Row],[Sample Reference '# ('# required to enable calculations)]]),"",SUM(FieldSampling1618[[#This Row],[La 57]:[Lu 71]])) -> 0.030334 | CS156: =IF(ISBLANK(FieldSampling1618[[#This Row],[Sample Reference '# ('# required to enable calculations)]]),"", SUM(FieldSampling1618[Lanthanides]+FieldSampling1618[Y 39])) -> 0.039634 | CU156: 200.7 | CV156: NA | CX156: 0.701 | CY156: 264.355 | CZ156: 52.902 | DB156: 82.189 | DC156: 796.689 | DI156: 244.28 | DJ156: 2390
A157: 108 | B157: raw AMD | C157: Restricted under terms of access NDA | F157: Resource Production | G157: Coal Mining | H157: Acid Mine Drainage | I157: NAPP | J157: Pennsylvanian | K157: Pittsburgh | L157: PA | M157: Westmoreland | N157: wri AQ-108 | O157: PA | P157: Westmoreland | Q157: wri AQ-108 | R157: 108 | S157: NA | T157: NA | U157: NA | V157: NA | W157: NA | X157: NA | Y157: NA | Z157: NA | AA157: NA | AB157: NA | AC157: NA | AD157: NA | AE157: NA | AF157: NA | AG157: NA | AH157: NA | AI157: NA | AJ157: NA | AK157: 6020A | AQ157: 8.065 | AU157: 0.00056 | BJ157: 0.0021 | BY157: 0.001 | BZ157: 0.00015 | CA157: 0.001 | CB157: 0.00021 | CC157: 7.2e-05 | CD157: 0.001 | CE157: 0.00018 | CF157: 0.001 | CG157: 0.00017 | CH157: 0.001 | CI157: 0.00012 | CJ157: 0.001 | CK157: 6.2e-05 | CL157: 0.001 | CR157: =IF(ISBLANK(FieldSampling1618[[#This Row],[Sample Reference '# ('# required to enable calculations)]]),"",SUM(FieldSampling1618[[#This Row],[La 57]:[Lu 71]])) -> 0.007964 | CS157: =IF(ISBLANK(FieldSampling1618[[#This Row],[Sample Reference '# ('# required to enable calculations)]]),"", SUM(FieldSampling1618[Lanthanides]+FieldSampling1618[Y 39])) -> 0.010064 | CU157: 200.7 | CV157: NA | CX157: <0.038 | CY157: 139.953 | CZ157: 23.533 | DB157: 39.912 | DC157: 452.298 | DI157: 140.68 | DJ157: 1020
A158: 109 | B158: raw AMD | C158: Restricted under terms of access NDA | F158: Resource Production | G158: Coal Mining | H158: Acid Mine Drainage | I158: NAPP | J158: Pennsylvanian | K158: Pittsburgh | L158: PA | M158: Westmoreland | N158: wri AQ-109 | O158: PA | P158: Westmoreland | Q158: wri AQ-109 | R158: 109 | S158: NA | T158: NA | U158: NA | V158: NA | W158: NA | X158: NA | Y158: NA | Z158: NA | AA158: NA | AB158: NA | AC158: NA | AD158: NA | AE158: NA | AF158: NA | AG158: NA | AH158: NA | AI158: NA | AJ158: NA | AK158: 6020A | AQ158: 6.812 | AU158: 0.00097 | BJ158: 0.0058 | BY158: 0.001 | BZ158: 0.0032 | CA158: 0.0004 | CB158: 0.002 | CC158: 0.00057 | CD158: 0.00013 | CE158: 0.00073 | CF158: 9e-05 | CG158: 0.00061 | CH158: 0.00011 | CI158: 0.00028 | CJ158: 0.001 | CK158: 0.00022 | CL158: 0.001 | CR158: =IF(ISBLANK(FieldSampling1618[[#This Row],[Sample Reference '# ('# required to enable calculations)]]),"",SUM(FieldSampling1618[[#This Row],[La 57]:[Lu 71]])) -> 0.01134 | CS158: =IF(ISBLANK(FieldSampling1618[[#This Row],[Sample Reference '# ('# required to enable calculations)]]),"", SUM(FieldSampling1618[Lanthanides]+FieldSampling1618[Y 39])) -> 0.01714 | CU158: 200.7 | CV158: NA | CX158: <0.038 | CY158: 135.868 | CZ158: 7.01 | DB158: 43.604 | DC158: 214.038 | DI158: 170.89 | DJ158: 660
A159: 110 | B159: raw AMD | C159: Restricted under terms of access NDA | F159: Resource Production | G159: Coal Mining | H159: Acid Mine Drainage | I159: NAPP | J159: Pennsylvanian | K159: Pittsburgh | L159: PA | M159: Washington | N159: wri AQ-110 | O159: PA | P159: Washington | Q159: wri AQ-110 | R159: 110 | S159: NA | T159: NA | U159: NA | V159: NA | W159: NA | X159: NA | Y159: NA | Z159: NA | AA159: NA | AB159: NA | AC159: NA | AD159: NA | AE159: NA | AF159: NA | AG159: NA | AH159: NA | AI159: NA | AJ159: NA | AK159: 6020A | AQ159: 5.597 | AU159: 0.0011 | BJ159: 0.0156 | BY159: 0.00075 | BZ159: 0.0037 | CA159: 0.00076 | CB159: 0.0049 | CC159: 0.0019 | CD159: 0.00052 | CE159: 0.0027 | CF159: 0.00038 | CG159: 0.0022 | CH159: 0.00042 | CI159: 0.0011 | CJ159: 0.00011 | CK159: 0.00065 | CL159: 9e-05 | CR159: =IF(ISBLANK(FieldSampling1618[[#This Row],[Sample Reference '# ('# required to enable calculations)]]),"",SUM(FieldSampling1618[[#This Row],[La 57]:[Lu 71]])) -> 0.02018 | CS159: =IF(ISBLANK(FieldSampling1618[[#This Row],[Sample Reference '# ('# required to enable calculations)]]),"", SUM(FieldSampling1618[Lanthanides]+FieldSampling1618[Y 39])) -> 0.03578 | CU159: 200.7 | CV159: NA | CX159: 4.598 | CY159: 101.76 | CZ159: 46.381 | DB159: 34.321 | DC159: 432.008 | DI159: 74.95 | DJ159: 857
A160: 111 | B160: raw AMD | C160: Restricted under terms of access NDA | F160: Resource Production | G160: Coal Mining | H160: Acid Mine Drainage | I160: NAPP | J160: Pennsylvanian | K160: Pittsburgh | L160: PA | M160: Westmoreland | N160: wri AQ-111 | O160: PA | P160: Westmoreland | Q160: wri AQ-111 | R160: 111 | S160: NA | T160: NA | U160: NA | V160: NA | W160: NA | X160: NA | Y160: NA | Z160: NA | AA160: NA | AB160: NA | AC160: NA | AD160: NA | AE160: NA | AF160: NA | AG160: NA | AH160: NA | AI160: NA | AJ160: NA | AK160: 6020A | AQ160: 9.365 | AU160: 0.00064 | BJ160: 0.00071 | BY160: 0.00013 | BZ160: 0.00051 | CA160: 8.8e-05 | CB160: 0.00056 | CC160: 0.00016 | CD160: 0.001 | CE160: 0.00019 | CF160: 0.001 | CG160: 0.00019 | CH160: 0.001 | CI160: 0.0001 | CJ160: 0.001 | CK160: 5.2e-05 | CL160: 0.001 | CR160: =IF(ISBLANK(FieldSampling1618[[#This Row],[Sample Reference '# ('# required to enable calculations)]]),"",SUM(FieldSampling1618[[#This Row],[La 57]:[Lu 71]])) -> 0.00698 | CS160: =IF(ISBLANK(FieldSampling1618[[#This Row],[Sample Reference '# ('# required to enable calculations)]]),"", SUM(FieldSampling1618[Lanthanides]+FieldSampling1618[Y 39])) -> 0.00769 | CU160: 200.7 | CV160: NA | CX160: <0.038 | CY160: 146.915 | CZ160: 26.619 | DB160: 43.827 | DC160: 489.395 | DI160: 63.44 | DJ160: 1060
A161: 112 | B161: raw AMD | C161: Restricted under terms of access NDA | F161: Resource Production | G161: Coal Mining | H161: Acid Mine Drainage | I161: NAPP | J161: Pennsylvanian | K161: Pittsburgh | L161: PA | M161: Westmoreland | N161: wri AQ-112 | O161: PA | P161: Westmoreland | Q161: wri AQ-112 | R161: 112 | S161: NA | T161: NA | U161: NA | V161: NA | W161: NA | X161: NA | Y161: NA | Z161: NA | AA161: NA | AB161: NA | AC161: NA | AD161: NA | AE161: NA | AF161: NA | AG161: NA | AH161: NA | AI161: NA | AJ161: NA | AK161: 6020A | AQ161: 9.779 | AU161: 0.00055 | BJ161: 0.001 | BY161: 0.001 | BZ161: 0.001 | CA161: 0.001 | CB161: 0.001 | CC161: 0.001 | CD161: 0.001 | CE161: 0.001 | CF161: 0.001 | CG161: 0.001 | CH161: 0.001 | CI161: 0.001 | CJ161: 0.001 | CK161: 0.001 | CL161: 0.001 | CR161: =IF(ISBLANK(FieldSampling1618[[#This Row],[Sample Reference '# ('# required to enable calculations)]]),"",SUM(FieldSampling1618[[#This Row],[La 57]:[Lu 71]])) -> 0.014 | CS161: =IF(ISBLANK(FieldSampling1618[[#This Row],[Sample Reference '# ('# required to enable calculations)]]),"", SUM(FieldSampling1618[Lanthanides]+FieldSampling1618[Y 39])) -> 0.015 | CU161: 200.7 | CV161: NA | CX161: <0.038 | CY161: 94.985 | CZ161: 10.09 | DB161: 30.583 | DC161: 447.609 | DI161: 120.52 | DJ161: 721
A162: 113 | B162: raw AMD | C162: Restricted under terms of access NDA | F162: Resource Production | G162: Coal Mining | H162: Acid Mine Drainage | I162: NAPP | J162: Pennsylvanian | K162: Pittsburgh | L162: PA | M162: Washington | N162: wri AQ-113 | O162: PA | P162: Washington | Q162: wri AQ-113 | R162: 113 | S162: NA | T162: NA | U162: NA | V162: NA | W162: NA | X162: NA | Y162: NA | Z162: NA | AA162: NA | AB162: NA | AC162: NA | AD162: NA | AE162: NA | AF162: NA | AG162: NA | AH162: NA | AI162: NA | AJ162: NA | AK162: 6020A | AQ162: 6.283 | AU162: 0.0028 | BJ162: 0.0045 | BY162: 0.00027 | BZ162: 0.00087 | CA162: 0.00013 | CB162: 0.00088 | CC162: 0.00027 | CD162: 6.6e-05 | CE162: 0.00051 | CF162: 8.2e-05 | CG162: 0.00045 | CH162: 8.2e-05 | CI162: 0.00028 | CJ162: 0.001 | CK162: 0.00019 | CL162: 0.001 | CR162: =IF(ISBLANK(FieldSampling1618[[#This Row],[Sample Reference '# ('# required to enable calculations)]]),"",SUM(FieldSampling1618[[#This Row],[La 57]:[Lu 71]])) -> 0.00608 | CS162: =IF(ISBLANK(FieldSampling1618[[#This Row],[Sample Reference '# ('# required to enable calculations)]]),"", SUM(FieldSampling1618[Lanthanides]+FieldSampling1618[Y 39])) -> 0.01058 | CU162: 200.7 | CV162: NA | CX162: <0.038 | CY162: 187.766 | CZ162: 27.853 | DB162: 58.416 | DC162: 1521.24 | DI162: 524.9 | DJ162: 2400
A163: 114 | B163: raw AMD | C163: Restricted under terms of access NDA | F163: Resource Production | G163: Coal Mining | H163: Acid Mine Drainage | I163: NAPP | J163: Pennsylvanian | K163: Pittsburgh | L163: PA | M163: Washington | N163: wri AQ-114 | O163: PA | P163: Washington | Q163: wri AQ-114 | R163: 114 | S163: NA | T163: NA | U163: NA | V163: NA | W163: NA | X163: NA | Y163: NA | Z163: NA | AA163: NA | AB163: NA | AC163: NA | AD163: NA | AE163: NA | AF163: NA | AG163: NA | AH163: NA | AI163: NA | AJ163: NA | AK163: 6020A | AQ163: 5.038 | AU163: 0.0026 | BJ163: 0.00018 | BY163: 0.001 | BZ163: 5.6e-05 | CA163: 0.001 | CB163: 0.001 | CC163: 0.001 | CD163: 0.001 | CE163: 0.001 | CF163: 0.001 | CG163: 0.001 | CH163: 0.001 | CI163: 0.001 | CJ163: 0.001 | CK163: 0.001 | CL163: 0.001 | CR163: =IF(ISBLANK(FieldSampling1618[[#This Row],[Sample Reference '# ('# required to enable calculations)]]),"",SUM(FieldSampling1618[[#This Row],[La 57]:[Lu 71]])) -> 0.013056 | CS163: =IF(ISBLANK(FieldSampling1618[[#This Row],[Sample Reference '# ('# required to enable calculations)]]),"", SUM(FieldSampling1618[Lanthanides]+FieldSampling1618[Y 39])) -> 0.013236 | CU163: 200.7 | CV163: NA | CX163: <0.038 | CY163: 324.335 | CZ163: 7.503 | DB163: 75.238 | DC163: 880.835 | DI163: 326.5 | DJ163: 2380
A164: 115 | B164: raw AMD | C164: PADEP FLIGHT 93, Lat. 40.065600, Long. -115.888200 | F164: Resource Production | G164: Coal Mining | H164: Acid Mine Drainage | I164: NAPP | J164: Pennsylvanian | L164: PA | M164: Somerset | N164: wri AQ-115 | O164: PA | P164: Somerset | Q164: wri AQ-115 | R164: 115 | S164: NA | T164: NA | U164: NA | V164: NA | W164: NA | X164: NA | Y164: NA | Z164: NA | AA164: NA | AB164: NA | AC164: NA | AD164: NA | AE164: NA | AF164: NA | AG164: NA | AH164: NA | AI164: NA | AJ164: NA | AK164: 6020A | AQ164: 3.71 | AU164: 0.00028 | BJ164: 0.00087 | BY164: 0.00015 | BZ164: 0.00026 | CA164: 0.001 | CB164: 0.00014 | CC164: 0.001 | CD164: 0.001 | CE164: 6.4e-05 | CF164: 0.001 | CG164: 6e-05 | CH164: 0.001 | CI164: 4.4e-05 | CJ164: 0.001 | CK164: 0.001 | CL164: 0.001 | CR164: =IF(ISBLANK(FieldSampling1618[[#This Row],[Sample Reference '# ('# required to enable calculations)]]),"",SUM(FieldSampling1618[[#This Row],[La 57]:[Lu 71]])) -> 0.008718 | CS164: =IF(ISBLANK(FieldSampling1618[[#This Row],[Sample Reference '# ('# required to enable calculations)]]),"", SUM(FieldSampling1618[Lanthanides]+FieldSampling1618[Y 39])) -> 0.009588 | CU164: 200.7 | CV164: NA | CX164: <0.038 | CY164: 299.372 | CZ164: 25.486 | DB164: 170.854 | DC164: 4.925 | DI164: 4.591 | DJ164: 1410
A165: 116 | B165: raw AMD | C165: Restricted under terms of access NDA | F165: Resource Production | G165: Coal Mining | H165: Acid Mine Drainage | I165: NAPP | J165: Pennsylvanian | K165: Pittsburgh | L165: PA | M165: Cambria | N165: wri AQ-116 | O165: PA | P165: Cambria | Q165: wri AQ-116 | R165: 116 | S165: NA | T165: NA | U165: NA | V165: NA | W165: NA | X165: NA | Y165: NA | Z165: NA | AA165: NA | AB165: NA | AC165: NA | AD165: NA | AE165: NA | AF165: NA | AG165: NA | AH165: NA | AI165: NA | AJ165: NA | AK165: 6020A | AQ165: 5.421 | AU165: 0.00042 | BJ165: 0.00036 | BY165: 0.001 | BZ165: 0.00013 | CA165: 0.001 | CB165: 8.4e-05 | CC165: 0.001 | CD165: 0.001 | CE165: 0.001 | CF165: 0.001 | CG165: 0.001 | CH165: 0.001 | CI165: 0.001 | CJ165: 0.001 | CK165: 0.001 | CL165: 0.001 | CR165: =IF(ISBLANK(FieldSampling1618[[#This Row],[Sample Reference '# ('# required to enable calculations)]]),"",SUM(FieldSampling1618[[#This Row],[La 57]:[Lu 71]])) -> 0.012214 | CS165: =IF(ISBLANK(FieldSampling1618[[#This Row],[Sample Reference '# ('# required to enable calculations)]]),"", SUM(FieldSampling1618[Lanthanides]+FieldSampling1618[Y 39])) -> 0.012574 | CU165: 200.7 | CV165: NA | CX165: <0.038 | CY165: 141.653 | CZ165: 15.535 | DB165: 40.861 | DC165: 92.248 | DI165: 27.68 | DJ165: 617
A166: 117 | B166: raw AMD | C166: Restricted under terms of access NDA | F166: Resource Production | G166: Coal Mining | H166: Acid Mine Drainage | I166: =+I167 -> NAPP | J166: Pennsylvanian | K166: Kittanings, others | L166: =+L167 -> PA | M166: =+M167 -> Cambria | N166: wri AQ-117 | O166: =+O167 -> PA | P166: =+P167 -> Cambria | Q166: wri AQ-117 | R166: 117 | S166: NA | T166: NA | U166: NA | V166: NA | W166: NA | X166: NA | Y166: NA | Z166: NA | AA166: NA | AB166: NA | AC166: NA | AD166: NA | AE166: NA | AF166: NA | AG166: NA | AH166: NA | AI166: NA | AJ166: NA | AK166: 6020A | AU166: 0 | BJ166: 0.025 | BY166: 0.008 | BZ166: 0.02 | CA166: 0 | CB166: 0.012 | CC166: 0 | CD166: 0 | CE166: 0.005 | CF166: 0 | CG166: 0 | CH166: 0 | CI166: 0 | CJ166: 0 | CK166: 0.002 | CL166: 0 | CR166: =IF(ISBLANK(FieldSampling1618[[#This Row],[Sample Reference '# ('# required to enable calculations)]]),"",SUM(FieldSampling1618[[#This Row],[La 57]:[Lu 71]])) -> 0.047 | CS166: =IF(ISBLANK(FieldSampling1618[[#This Row],[Sample Reference '# ('# required to enable calculations)]]),"", SUM(FieldSampling1618[Lanthanides]+FieldSampling1618[Y 39])) -> 0.072 | CU166: 200.7 | CV166: NA
A167: 117 | B167: raw AMD | C167: Restricted under terms of access NDA | F167: Resource Production | G167: Coal Mining | H167: Acid Mine Drainage | I167: NAPP | J167: Pennsylvanian | K167: Kittanings, others | L167: PA | M167: Cambria | N167: wri AQ-117 | O167: PA | P167: Cambria | Q167: wri AQ-117 | R167: 117 | S167: NA | T167: NA | U167: NA | V167: NA | W167: NA | X167: NA | Y167: NA | Z167: NA | AA167: NA | AB167: NA | AC167: NA | AD167: NA | AE167: NA | AF167: NA | AG167: NA | AH167: NA | AI167: NA | AJ167: NA | AK167: 6020A | AQ167: 13.46 | AU167: 0.0081 | BJ167: 0.125 | BY167: 0.0341 | BZ167: 0.095 | CA167: 0.0126 | CB167: 0.0592 | CC167: 0.0169 | CD167: 0.0041 | CE167: 0.0238 | CF167: 0.0037 | CG167: 0.0232 | CH167: 0.0046 | CI167: 0.0127 | CJ167: 0.0017 | CK167: 0.0095 | CL167: 0.0014 | CR167: =IF(ISBLANK(FieldSampling1618[[#This Row],[Sample Reference '# ('# required to enable calculations)]]),"",SUM(FieldSampling1618[[#This Row],[La 57]:[Lu 71]])) -> 0.3025 | CS167: =IF(ISBLANK(FieldSampling1618[[#This Row],[Sample Reference '# ('# required to enable calculations)]]),"", SUM(FieldSampling1618[Lanthanides]+FieldSampling1618[Y 39])) -> 0.4275 | CU167: 200.7 | CV167: NA | CX167: 32.52 | CY167: 80.977 | CZ167: 32.812 | DB167: 117.938 | DC167: 2.864 | DI167: 0.717 | DJ167: 1210
A168: 118 | B168: raw AMD | C168: Restricted under terms of access NDA | F168: Resource Production | G168: Coal Mining | H168: Acid Mine Drainage | I168: NAPP | J168: Pennsylvanian | K168: Kittanings, others | L168: PA | M168: Cambria | N168: wri AQ-118 | O168: PA | P168: Cambria | Q168: wri AQ-118 | R168: 118 | S168: NA | T168: NA | U168: NA | V168: NA | W168: NA | X168: NA | Y168: NA | Z168: NA | AA168: NA | AB168: NA | AC168: NA | AD168: NA | AE168: NA | AF168: NA | AG168: NA | AH168: NA | AI168: NA | AJ168: NA | AK168: 6020A | AU168: 0.009 | BJ168: 0.26 | BY168: 0.061 | BZ168: 0.17 | CA168: 0.023 | CB168: 0.11 | CC168: 0.031 | CD168: 0.008 | CE168: 0.045 | CF168: 0.008 | CG168: 0.048 | CH168: 0.011 | CI168: 0.028 | CJ168: 0.004 | CK168: 0.024 | CL168: 0.003 | CR168: =IF(ISBLANK(FieldSampling1618[[#This Row],[Sample Reference '# ('# required to enable calculations)]]),"",SUM(FieldSampling1618[[#This Row],[La 57]:[Lu 71]])) -> 0.574 | CS168: =IF(ISBLANK(FieldSampling1618[[#This Row],[Sample Reference '# ('# required to enable calculations)]]),"", SUM(FieldSampling1618[Lanthanides]+FieldSampling1618[Y 39])) -> 0.834 | CU168: 200.7 | CV168: NA
A169: 119 | B169: raw AMD | C169: Restricted under terms of access NDA | F169: Resource Production | G169: Coal Mining | H169: Acid Mine Drainage | I169: NAPP | J169: Pennsylvanian | K169: Kittanings, others | L169: PA | M169: Cambria | N169: wri AQ-119 | O169: PA | P169: Cambria | Q169: wri AQ-119 | R169: 119 | S169: NA | T169: NA | U169: NA | V169: NA | W169: NA | X169: NA | Y169: NA | Z169: NA | AA169: NA | AB169: NA | AC169: NA | AD169: NA | AE169: NA | AF169: NA | AG169: NA | AH169: NA | AI169: NA | AJ169: NA | AK169: 6020A | AU169: 0.016 | BJ169: 0.16 | BY169: 0.043 | BZ169: 0.12 | CA169: 0.016 | CB169: 0.075 | CC169: 0.022 | CD169: 0.005 | CE169: 0.028 | CF169: 0.005 | CG169: 0.031 | CH169: 0.007 | CI169: 0.019 | CJ169: 0 | CK169: 0.016 | CL169: 0 | CR169: =IF(ISBLANK(FieldSampling1618[[#This Row],[Sample Reference '# ('# required to enable calculations)]]),"",SUM(FieldSampling1618[[#This Row],[La 57]:[Lu 71]])) -> 0.387 | CS169: =IF(ISBLANK(FieldSampling1618[[#This Row],[Sample Reference '# ('# required to enable calculations)]]),"", SUM(FieldSampling1618[Lanthanides]+FieldSampling1618[Y 39])) -> 0.547 | CU169: 200.7 | CV169: NA
A170: 120 | B170: raw AMD | C170: Restricted under terms of access NDA | F170: Resource Production | G170: Coal Mining | H170: Acid Mine Drainage | I170: NAPP | J170: Pennsylvanian | K170: Pittsburgh | L170: WV | M170: Monongalia | N170: wri AQ-120 | O170: WV | P170: Monongalia | Q170: wri AQ-120 | R170: 120 | S170: NA | T170: NA | U170: NA | V170: NA | W170: NA | X170: NA | Y170: NA | Z170: NA | AA170: NA | AB170: NA | AC170: NA | AD170: NA | AE170: NA | AF170: NA | AG170: NA | AH170: NA | AI170: NA | AJ170: NA | AK170: 6020A | AQ170: 17.253 | AU170: 0.0011 | BJ170: 0.0025 | BY170: 0.00021 | BZ170: 0.00063 | CA170: 0.00011 | CB170: 0.00058 | CC170: 0.00015 | CD170: 4.8e-05 | CE170: 0.0003 | CF170: 4.6e-05 | CG170: 0.00027 | CH170: 5.2e-05 | CI170: 0.00017 | CJ170: 0.001 | CK170: 0.0001 | CL170: 0.001 | CR170: =IF(ISBLANK(FieldSampling1618[[#This Row],[Sample Reference '# ('# required to enable calculations)]]),"",SUM(FieldSampling1618[[#This Row],[La 57]:[Lu 71]])) -> 0.004666 | CS170: =IF(ISBLANK(FieldSampling1618[[#This Row],[Sample Reference '# ('# required to enable calculations)]]),"", SUM(FieldSampling1618[Lanthanides]+FieldSampling1618[Y 39])) -> 0.007166 | CU170: 200.7 | CV170: NA | CX170: <0.038 | CY170: 398.647 | CZ170: 148.811 | DB170: 173.478 | DC170: 1782.98 | DI170: 141.61 | DJ170: 4435
A171: 121 | B171: raw AMD | C171: Restricted under terms of access NDA | F171: Resource Production | G171: Coal Mining | H171: Acid Mine Drainage | I171: NAPP | J171: Pennsylvanian | K171: Pittsburgh | L171: WV | M171: Monongalia | N171: wri AQ-121 | O171: WV | P171: Monongalia | Q171: wri AQ-121 | R171: 121 | S171: NA | T171: NA | U171: NA | V171: NA | W171: NA | X171: NA | Y171: NA | Z171: NA | AA171: NA | AB171: NA | AC171: NA | AD171: NA | AE171: NA | AF171: NA | AG171: NA | AH171: NA | AI171: NA | AJ171: NA | AK171: 6020A | AQ171: 7.225 | AU171: 0.00049 | BJ171: 0.0269 | BY171: 0.0019 | BZ171: 0.0067 | CA171: 0.0012 | CB171: 0.0068 | CC171: 0.0021 | CD171: 0.00064 | CE171: 0.0041 | CF171: 0.00058 | CG171: 0.0035 | CH171: 0.00068 | CI171: 0.0017 | CJ171: 0.00019 | CK171: 0.001 | CL171: 0.00014 | CR171: =IF(ISBLANK(FieldSampling1618[[#This Row],[Sample Reference '# ('# required to enable calculations)]]),"",SUM(FieldSampling1618[[#This Row],[La 57]:[Lu 71]])) -> 0.03123 | CS171: =IF(ISBLANK(FieldSampling1618[[#This Row],[Sample Reference '# ('# required to enable calculations)]]),"", SUM(FieldSampling1618[Lanthanides]+FieldSampling1618[Y 39])) -> 0.05813 | CU171: 200.7 | CV171: NA | CX171: 1.377 | CY171: 512.314 | CZ171: 388.217 | DB171: 147.472 | DC171: 300.763 | DI171: 15 | DJ171: 2805
A172: 122 | B172: raw AMD | C172: Restricted under terms of access NDA | F172: Resource Production | G172: Coal Mining | H172: Acid Mine Drainage | I172: NAPP | J172: Pennsylvanian | K172: Sewickley | L172: WV | M172: Monongalia | N172: wri AQ-122 | O172: WV | P172: Monongalia | Q172: wri AQ-122 | R172: 122 | S172: NA | T172: NA | U172: NA | V172: NA | W172: NA | X172: NA | Y172: NA | Z172: NA | AA172: NA | AB172: NA | AC172: NA | AD172: NA | AE172: NA | AF172: NA | AG172: NA | AH172: NA | AI172: NA | AJ172: NA | AK172: 6020A | AQ172: 8.107 | AU172: 0.00051 | BJ172: 0.0019 | BY172: 0.001 | BZ172: 0.001 | CA172: 0.001 | CB172: 0.001 | CC172: 0.001 | CD172: 0.001 | CE172: 0.001 | CF172: 0.001 | CG172: 0.001 | CH172: 0.001 | CI172: 0.001 | CJ172: 0.001 | CK172: 0.001 | CL172: 0.001 | CR172: =IF(ISBLANK(FieldSampling1618[[#This Row],[Sample Reference '# ('# required to enable calculations)]]),"",SUM(FieldSampling1618[[#This Row],[La 57]:[Lu 71]])) -> 0.014 | CS172: =IF(ISBLANK(FieldSampling1618[[#This Row],[Sample Reference '# ('# required to enable calculations)]]),"", SUM(FieldSampling1618[Lanthanides]+FieldSampling1618[Y 39])) -> 0.0159 | CU172: 200.7 | CV172: NA | CX172: <0.038 | CY172: 154.947 | CZ172: 37.312 | DB172: 51.798 | DC172: 163.339 | DI172: 21.45 | DJ172: 654
A173: 123 | B173: raw AMD | C173: Restricted under terms of access NDA | F173: Resource Production | G173: Coal Mining | H173: Acid Mine Drainage | I173: NAPP | J173: Pennsylvanian | K173: Pittsburgh | L173: WV | M173: Monongalia | N173: wri AQ-123 | O173: WV | P173: Monongalia | Q173: wri AQ-123 | R173: 123 | S173: NA | T173: NA | U173: NA | V173: NA | W173: NA | X173: NA | Y173: NA | Z173: NA | AA173: NA | AB173: NA | AC173: NA | AD173: NA | AE173: NA | AF173: NA | AG173: NA | AH173: NA | AI173: NA | AJ173: NA | AK173: 6020A | AQ173: 9.22 | AU173: 0.005 | BJ173: 0.001 | BY173: 0.001 | BZ173: 0.001 | CA173: 0.001 | CB173: 0.001 | CC173: 0.001 | CD173: 0.001 | CE173: 0.001 | CF173: 0.001 | CG173: 0.001 | CH173: 0.001 | CI173: 0.001 | CJ173: 0.001 | CK173: 0.001 | CL173: 0.001 | CR173: =IF(ISBLANK(FieldSampling1618[[#This Row],[Sample Reference '# ('# required to enable calculations)]]),"",SUM(FieldSampling1618[[#This Row],[La 57]:[Lu 71]])) -> 0.014 | CS173: =IF(ISBLANK(FieldSampling1618[[#This Row],[Sample Reference '# ('# required to enable calculations)]]),"", SUM(FieldSampling1618[Lanthanides]+FieldSampling1618[Y 39])) -> 0.015 | CU173: 200.7 | CV173: NA | CX173: <0.038 | CY173: 335.481 | CZ173: 1.46 | DB173: 179.529 | DC173: 2175.77 | DI173: 202.36 | DJ173: 4845
A174: 124 | B174: raw AMD | C174: Restricted under terms of access NDA | F174: Resource Production | G174: Coal Mining | H174: Acid Mine Drainage | I174: NAPP | J174: Pennsylvanian | K174: Pittsburgh | L174: WV | M174: Monongalia | N174: wri AQ-124 | O174: WV | P174: Monongalia | Q174: wri AQ-124 | R174: 124 | S174: NA | T174: NA | U174: NA | V174: NA | W174: NA | X174: NA | Y174: NA | Z174: NA | AA174: NA | AB174: NA | AC174: NA | AD174: NA | AE174: NA | AF174: NA | AG174: NA | AH174: NA | AI174: NA | AJ174: NA | AK174: 6020A | AQ174: 9.987 | AU174: 0.0065 | BJ174: 0.0013 | BY174: 9e-05 | BZ174: 0.00023 | CA174: 0.001 | CB174: 0.00027 | CC174: 8e-05 | CD174: 0.001 | CE174: 0.00011 | CF174: 0.001 | CG174: 0.00012 | CH174: 0.001 | CI174: 8e-05 | CJ174: 0.001 | CK174: 6e-05 | CL174: 0.001 | CR174: =IF(ISBLANK(FieldSampling1618[[#This Row],[Sample Reference '# ('# required to enable calculations)]]),"",SUM(FieldSampling1618[[#This Row],[La 57]:[Lu 71]])) -> 0.00704 | CS174: =IF(ISBLANK(FieldSampling1618[[#This Row],[Sample Reference '# ('# required to enable calculations)]]),"", SUM(FieldSampling1618[Lanthanides]+FieldSampling1618[Y 39])) -> 0.00834 | CU174: 200.7 | CV174: NA | CX174: <0.038 | CY174: 349.458 | CZ174: 51.086 | DB174: 83.791 | DC174: 1066.42 | DI174: 121.02 | DJ174: 3140
A175: 125 | B175: raw AMD | C175: Restricted under terms of access NDA | F175: Resource Production | G175: Coal Mining | H175: Acid Mine Drainage | I175: NAPP | J175: Pennsylvanian | K175: Pittsburgh | L175: WV | M175: Monongalia | N175: wri AQ-125 | O175: WV | P175: Monongalia | Q175: wri AQ-125 | R175: 125 | S175: NA | T175: NA | U175: NA | V175: NA | W175: NA | X175: NA | Y175: NA | Z175: NA | AA175: NA | AB175: NA | AC175: NA | AD175: NA | AE175: NA | AF175: NA | AG175: NA | AH175: NA | AI175: NA | AJ175: NA | AK175: 6020A | AQ175: 8.505 | AU175: 0.0039 | BJ175: 0.0018 | BY175: 0.001 | BZ175: 6.8e-05 | CA175: 0.001 | CB175: 7.2e-05 | CC175: 0.001 | CD175: 0.001 | CE175: 0.001 | CF175: 0.001 | CG175: 4.8e-05 | CH175: 0.001 | CI175: 0.001 | CJ175: 0.001 | CK175: 0.001 | CL175: 0.001 | CR175: =IF(ISBLANK(FieldSampling1618[[#This Row],[Sample Reference '# ('# required to enable calculations)]]),"",SUM(FieldSampling1618[[#This Row],[La 57]:[Lu 71]])) -> 0.011188 | CS175: =IF(ISBLANK(FieldSampling1618[[#This Row],[Sample Reference '# ('# required to enable calculations)]]),"", SUM(FieldSampling1618[Lanthanides]+FieldSampling1618[Y 39])) -> 0.012988 | CU175: 200.7 | CV175: NA | CX175: <0.038 | CY175: 164.794 | CZ175: 17.233 | DB175: 46.519 | DC175: 972.682 | DI175: 98.99 | DJ175: 1900
A176: 126 | B176: raw AMD | C176: Restricted under terms of access NDA | F176: Resource Production | G176: Coal Mining | H176: Acid Mine Drainage | I176: NAPP | J176: Pennsylvanian | K176: Pittsburgh | L176: WV | M176: Monongalia | N176: wri AQ-126 | O176: WV | P176: Monongalia | Q176: wri AQ-126 | R176: 126 | S176: NA | T176: NA | U176: NA | V176: NA | W176: NA | X176: NA | Y176: NA | Z176: NA | AA176: NA | AB176: NA | AC176: NA | AD176: NA | AE176: NA | AF176: NA | AG176: NA | AH176: NA | AI176: NA | AJ176: NA | AK176: 6020A | AQ176: 6.393 | AU176: 0.00065 | BJ176: 0.0013 | BY176: 0.00057 | BZ176: 0.0011 | CA176: 0.00014 | CB176: 0.00059 | CC176: 0.00013 | CD176: 0.001 | CE176: 0.0002 | CF176: 0.001 | CG176: 0.00018 | CH176: 0.001 | CI176: 0.00011 | CJ176: 0.001 | CK176: 0.00012 | CL176: 0.001 | CR176: =IF(ISBLANK(FieldSampling1618[[#This Row],[Sample Reference '# ('# required to enable calculations)]]),"",SUM(FieldSampling1618[[#This Row],[La 57]:[Lu 71]])) -> 0.00814 | CS176: =IF(ISBLANK(FieldSampling1618[[#This Row],[Sample Reference '# ('# required to enable calculations)]]),"", SUM(FieldSampling1618[Lanthanides]+FieldSampling1618[Y 39])) -> 0.00944 | CU176: 200.7 | CV176: NA | CX176: <0.038 | CY176: 696.121 | CZ176: 99.113 | DB176: 217.899 | DC176: 1320 | DI176: 3018 | DJ176: 8050
A177: 127 | B177: raw AMD | C177: Restricted under terms of access NDA | F177: Resource Production | G177: Coal Mining | H177: Acid Mine Drainage | I177: NAPP | J177: Pennsylvanian | K177: Pittsburgh | L177: WV | M177: Monongalia | N177: wri AQ-127 | O177: WV | P177: Monongalia | Q177: wri AQ-127 | R177: 127 | S177: NA | T177: NA | U177: NA | V177: NA | W177: NA | X177: NA | Y177: NA | Z177: NA | AA177: NA | AB177: NA | AC177: NA | AD177: NA | AE177: NA | AF177: NA | AG177: NA | AH177: NA | AI177: NA | AJ177: NA | AK177: 6020A | AQ177: 5.464 | AU177: 0.0056 | BJ177: 0.00065 | BY177: 0.001 | BZ177: 0.00014 | CA177: 0.001 | CB177: 0.00013 | CC177: 0.001 | CD177: 0.001 | CE177: 0.001 | CF177: 0.001 | CG177: 6.6e-05 | CH177: 0.001 | CI177: 0.00015 | CJ177: 0.001 | CK177: 0.0003 | CL177: 7.2e-05 | CR177: =IF(ISBLANK(FieldSampling1618[[#This Row],[Sample Reference '# ('# required to enable calculations)]]),"",SUM(FieldSampling1618[[#This Row],[La 57]:[Lu 71]])) -> 0.008858 | CS177: =IF(ISBLANK(FieldSampling1618[[#This Row],[Sample Reference '# ('# required to enable calculations)]]),"", SUM(FieldSampling1618[Lanthanides]+FieldSampling1618[Y 39])) -> 0.009508 | CU177: 200.7 | CV177: NA | CX177: <0.038 | CY177: 292.825 | CZ177: 3.487 | DB177: 118.338 | DC177: 4880.82 | DI177: 2128 | DJ177: 5050
A178: 128 | B178: raw AMD | C178: Restricted under terms of access NDA | F178: Resource Production | G178: Coal Mining | H178: Acid Mine Drainage | I178: NAPP | J178: Pennsylvanian | K178: Pittsburgh | L178: WV | M178: Monongalia | N178: wri AQ-128 | O178: WV | P178: Monongalia | Q178: wri AQ-128 | R178: 128 | S178: NA | T178: NA | U178: NA | V178: NA | W178: NA | X178: NA | Y178: NA | Z178: NA | AA178: NA | AB178: NA | AC178: NA | AD178: NA | AE178: NA | AF178: NA | AG178: NA | AH178: NA | AI178: NA | AJ178: NA | AK178: 6020A | AQ178: 4.996 | AU178: 0.00072 | BJ178: 0.005 | BY178: 0.00062 | BZ178: 0.0017 | CA178: 0.00026 | CB178: 0.0013 | CC178: 0.00035 | CD178: 0.00011 | CE178: 0.0006 | CF178: 8.6e-05 | CG178: 0.00076 | CH178: 0.0002 | CI178: 0.00073 | CJ178: 0.00011 | CK178: 0.00078 | CL178: 0.00013 | CR178: =IF(ISBLANK(FieldSampling1618[[#This Row],[Sample Reference '# ('# required to enable calculations)]]),"",SUM(FieldSampling1618[[#This Row],[La 57]:[Lu 71]])) -> 0.007736 | CS178: =IF(ISBLANK(FieldSampling1618[[#This Row],[Sample Reference '# ('# required to enable calculations)]]),"", SUM(FieldSampling1618[Lanthanides]+FieldSampling1618[Y 39])) -> 0.012736 | CU178: 200.7 | CV178: NA | CX178: <0.038 | CY178: 562.333 | CZ178: 7.429 | DB178: 249.455 | DC178: 4027.42 | DI178: 4639 | DJ178: 7050
A179: 129 | B179: raw AMD | C179: Restricted under terms of access NDA | F179: Resource Production | G179: Coal Mining | H179: Acid Mine Drainage | I179: NAPP | J179: Pennsylvanian | K179: Pittsburgh | L179: WV | M179: Monongalia | N179: wri AQ-129 | O179: WV | P179: Monongalia | Q179: wri AQ-129 | R179: 129 | S179: NA | T179: NA | U179: NA | V179: NA | W179: NA | X179: NA | Y179: NA | Z179: NA | AA179: NA | AB179: NA | AC179: NA | AD179: NA | AE179: NA | AF179: NA | AG179: NA | AH179: NA | AI179: NA | AJ179: NA | AK179: 6020A | AQ179: 22.76 | AU179: 0.0327 | BJ179: 0.273 | BY179: 0.0429 | BZ179: 0.13 | CA179: 0.0221 | CB179: 0.117 | CC179: 0.0424 | CD179: 0.0114 | CE179: 0.0649 | CF179: 0.0104 | CG179: 0.0666 | CH179: 0.0138 | CI179: 0.0366 | CJ179: 0.0047 | CK179: 0.027 | CL179: 0.0039 | CR179: =IF(ISBLANK(FieldSampling1618[[#This Row],[Sample Reference '# ('# required to enable calculations)]]),"",SUM(FieldSampling1618[[#This Row],[La 57]:[Lu 71]])) -> 0.5937 | CS179: =IF(ISBLANK(FieldSampling1618[[#This Row],[Sample Reference '# ('# required to enable calculations)]]),"", SUM(FieldSampling1618[Lanthanides]+FieldSampling1618[Y 39])) -> 0.8667 | CU179: 200.7 | CV179: NA | CX179: 57.761 | CY179: 411.493 | CZ179: 875.837 | DB179: 285.333 | DC179: 5378.1 | DI179: 680.8 | DJ179: 11600
A180: 130 | B180: raw AMD | C180: Restricted under terms of access NDA | F180: Resource Production | G180: Coal Mining | H180: Acid Mine Drainage | I180: NAPP | J180: Pennsylvanian | K180: Pittsburgh | L180: WV | M180: Monongalia | N180: wri AQ-130 | O180: WV | P180: Monongalia | Q180: wri AQ-130 | R180: 130 | S180: NA | T180: NA | U180: NA | V180: NA | W180: NA | X180: NA | Y180: NA | Z180: NA | AA180: NA | AB180: NA | AC180: NA | AD180: NA | AE180: NA | AF180: NA | AG180: NA | AH180: NA | AI180: NA | AJ180: NA | AK180: 6020A | AQ180: 7.574 | AU180: 0.00097 | BJ180: 0.003 | BY180: 0.00033 | BZ180: 0.00087 | CA180: 0.00015 | CB180: 0.00079 | CC180: 0.0002 | CD180: 5.4e-05 | CE180: 0.00034 | CF180: 4.6e-05 | CG180: 0.00032 | CH180: 6.6e-05 | CI180: 0.00023 | CJ180: 0.001 | CK180: 0.00018 | CL180: 0.001 | CR180: =IF(ISBLANK(FieldSampling1618[[#This Row],[Sample Reference '# ('# required to enable calculations)]]),"",SUM(FieldSampling1618[[#This Row],[La 57]:[Lu 71]])) -> 0.005576 | CS180: =IF(ISBLANK(FieldSampling1618[[#This Row],[Sample Reference '# ('# required to enable calculations)]]),"", SUM(FieldSampling1618[Lanthanides]+FieldSampling1618[Y 39])) -> 0.008576 | CU180: 200.7 | CV180: NA | CX180: <0.038 | CY180: 450.185 | CZ180: 74.303 | DB180: 147.385 | DC180: 3636.64 | DI180: 424.1 | DJ180: 7350
A181: 131 | B181: raw AMD | C181: Restricted under terms of access NDA | F181: Resource Production | G181: Coal Mining | H181: Acid Mine Drainage | I181: NAPP | J181: Pennsylvanian | K181: Pittsburgh | L181: WV | M181: Monongalia | N181: wri AQ-131 | O181: WV | P181: Monongalia | Q181: wri AQ-131 | R181: 131 | S181: NA | T181: NA | U181: NA | V181: NA | W181: NA | X181: NA | Y181: NA | Z181: NA | AA181: NA | AB181: NA | AC181: NA | AD181: NA | AE181: NA | AF181: NA | AG181: NA | AH181: NA | AI181: NA | AJ181: NA | AK181: 6020A | AQ181: 2.929 | AU181: 0.00063 | BJ181: 0.0034 | BY181: 8.8e-05 | BZ181: 0.00031 | CA181: 5.6e-05 | CB181: 0.00036 | CC181: 0.00011 | CD181: 0.001 | CE181: 0.00019 | CF181: 0.001 | CG181: 0.00024 | CH181: 7.4e-05 | CI181: 0.00029 | CJ181: 0.001 | CK181: 0.00032 | CL181: 5.4e-05 | CR181: =IF(ISBLANK(FieldSampling1618[[#This Row],[Sample Reference '# ('# required to enable calculations)]]),"",SUM(FieldSampling1618[[#This Row],[La 57]:[Lu 71]])) -> 0.005092 | CS181: =IF(ISBLANK(FieldSampling1618[[#This Row],[Sample Reference '# ('# required to enable calculations)]]),"", SUM(FieldSampling1618[Lanthanides]+FieldSampling1618[Y 39])) -> 0.008492 | CU181: 200.7 | CV181: NA | CX181: <0.038 | CY181: 110.187 | CZ181: 2.91 | DB181: 22.094 | DC181: 3420.52 | DI181: 568.5 | DJ181: 957
A182: 132 | B182: raw AMD | C182: Restricted under terms of access NDA | F182: Resource Production | G182: Coal Mining | H182: Acid Mine Drainage | I182: NAPP | J182: Pennsylvanian | K182: Pittsburgh | L182: WV | M182: Monongalia | N182: wri AQ-132 | O182: WV | P182: Monongalia | Q182: wri AQ-132 | R182: 132 | S182: NA | T182: NA | U182: NA | V182: NA | W182: NA | X182: NA | Y182: NA | Z182: NA | AA182: NA | AB182: NA | AC182: NA | AD182: NA | AE182: NA | AF182: NA | AG182: NA | AH182: NA | AI182: NA | AJ182: NA | AK182: 6020A | AQ182: 5.298 | AU182: 0.0025 | BJ182: 0.0011 | BY182: 8e-05 | BZ182: 0.00025 | CA182: 4.4e-05 | CB182: 0.00024 | CC182: 8.6e-05 | CD182: 0.001 | CE182: 9.6e-05 | CF182: 0.001 | CG182: 0.00014 | CH182: 0.001 | CI182: 0.00012 | CJ182: 0.001 | CK182: 7.4e-05 | CL182: 0.001 | CR182: =IF(ISBLANK(FieldSampling1618[[#This Row],[Sample Reference '# ('# required to enable calculations)]]),"",SUM(FieldSampling1618[[#This Row],[La 57]:[Lu 71]])) -> 0.00613 | CS182: =IF(ISBLANK(FieldSampling1618[[#This Row],[Sample Reference '# ('# required to enable calculations)]]),"", SUM(FieldSampling1618[Lanthanides]+FieldSampling1618[Y 39])) -> 0.00723 | CU182: 200.7 | CV182: NA | CX182: <0.038 | CY182: 287.171 | CZ182: 5.431 | DB182: 92.394 | DC182: 1471.6 | DI182: 446.2 | DJ182: 4130
A183: 133 | B183: raw AMD | C183: Restricted under terms of access NDA | F183: Resource Production | G183: Coal Mining | H183: Acid Mine Drainage | I183: NAPP | J183: Pennsylvanian | K183: Pittsburgh | L183: WV | M183: Monongalia | N183: wri AQ-133 | O183: WV | P183: Monongalia | Q183: wri AQ-133 | R183: 133 | S183: NA | T183: NA | U183: NA | V183: NA | W183: NA | X183: NA | Y183: NA | Z183: NA | AA183: NA | AB183: NA | AC183: NA | AD183: NA | AE183: NA | AF183: NA | AG183: NA | AH183: NA | AI183: NA | AJ183: NA | AK183: 6020A | AQ183: 4.741 | AU183: 0.00041 | BJ183: 0.00076 | BY183: 7.4e-05 | BZ183: 0.00025 | CA183: 0.001 | CB183: 0.00023 | CC183: 0.001 | CD183: 0.001 | CE183: 6e-05 | CF183: 0.001 | CG183: 0.00013 | CH183: 0.001 | CI183: 0.0001 | CJ183: 0.001 | CK183: 8.4e-05 | CL183: 0.001 | CR183: =IF(ISBLANK(FieldSampling1618[[#This Row],[Sample Reference '# ('# required to enable calculations)]]),"",SUM(FieldSampling1618[[#This Row],[La 57]:[Lu 71]])) -> 0.007928 | CS183: =IF(ISBLANK(FieldSampling1618[[#This Row],[Sample Reference '# ('# required to enable calculations)]]),"", SUM(FieldSampling1618[Lanthanides]+FieldSampling1618[Y 39])) -> 0.008688 | CU183: 200.7 | CV183: NA | CX183: <0.038 | CY183: 95.934 | CZ183: 0.759 | DB183: 23.802 | DC183: 2558.81 | DI183: 519.2 | DJ183: 2210
A184: 134 | B184: raw AMD | C184: Restricted under terms of access NDA | F184: Resource Production | G184: Coal Mining | H184: Acid Mine Drainage | I184: NAPP | J184: Pennsylvanian | K184: Pittsburgh | L184: WV | M184: Monongalia | N184: wri AQ-134 | O184: WV | P184: Monongalia | Q184: wri AQ-134 | R184: 134 | S184: NA | T184: NA | U184: NA | V184: NA | W184: NA | X184: NA | Y184: NA | Z184: NA | AA184: NA | AB184: NA | AC184: NA | AD184: NA | AE184: NA | AF184: NA | AG184: NA | AH184: NA | AI184: NA | AJ184: NA | AK184: 6020A | AQ184: 7.764 | AU184: 0.002 | BJ184: 0.00018 | BY184: 0.001 | BZ184: 0.001 | CA184: 0.001 | CB184: 0.001 | CC184: 0.001 | CD184: 0.001 | CE184: 0.001 | CF184: 0.001 | CG184: 0.001 | CH184: 0.001 | CI184: 0.001 | CJ184: 0.001 | CK184: 5.4e-05 | CL184: 0.001 | CR184: =IF(ISBLANK(FieldSampling1618[[#This Row],[Sample Reference '# ('# required to enable calculations)]]),"",SUM(FieldSampling1618[[#This Row],[La 57]:[Lu 71]])) -> 0.013054 | CS184: =IF(ISBLANK(FieldSampling1618[[#This Row],[Sample Reference '# ('# required to enable calculations)]]),"", SUM(FieldSampling1618[Lanthanides]+FieldSampling1618[Y 39])) -> 0.013234 | CU184: 200.7 | CV184: NA | CX184: <0.038 | CY184: 240.243 | CZ184: 0.047 | DB184: 98.249 | DC184: 1942.84 | DI184: 467.9 | DJ184: 3700
A185: 135 | B185: raw AMD | C185: Restricted under terms of access NDA | F185: Resource Production | G185: Coal Mining | H185: Acid Mine Drainage | I185: NAPP | J185: Pennsylvanian | K185: Pittsburgh | L185: WV | M185: Monongalia | N185: wri AQ-135 | O185: WV | P185: Monongalia | Q185: wri AQ-135 | R185: 135 | S185: NA | T185: NA | U185: NA | V185: NA | W185: NA | X185: NA | Y185: NA | Z185: NA | AA185: NA | AB185: NA | AC185: NA | AD185: NA | AE185: NA | AF185: NA | AG185: NA | AH185: NA | AI185: NA | AJ185: NA | AK185: 6020A | AQ185: 7.065 | AU185: 0.00066 | BJ185: 0.00048 | BY185: 0.001 | BZ185: 0.001 | CA185: 0.001 | CB185: 0.001 | CC185: 0.001 | CD185: 0.001 | CE185: 0.001 | CF185: 0.001 | CG185: 6.8e-05 | CH185: 0.001 | CI185: 9.6e-05 | CJ185: 0.001 | CK185: 0.00017 | CL185: 0.001 | CR185: =IF(ISBLANK(FieldSampling1618[[#This Row],[Sample Reference '# ('# required to enable calculations)]]),"",SUM(FieldSampling1618[[#This Row],[La 57]:[Lu 71]])) -> 0.011334 | CS185: =IF(ISBLANK(FieldSampling1618[[#This Row],[Sample Reference '# ('# required to enable calculations)]]),"", SUM(FieldSampling1618[Lanthanides]+FieldSampling1618[Y 39])) -> 0.011814 | CU185: 200.7 | CV185: NA | CX185: <0.038 | CY185: 206.923 | CZ185: 0.16 | DB185: 90.522 | DC185: 2470.92 | DI185: 761.9 | DJ185: 4095
A186: 136 | B186: raw AMD | C186: Restricted under terms of access NDA | F186: Resource Production | G186: Coal Mining | H186: Acid Mine Drainage | I186: NAPP | J186: Pennsylvanian | K186: Pittsburgh | L186: WV | M186: Monongalia | N186: wri AQ-136 | O186: WV | P186: Monongalia | Q186: wri AQ-136 | R186: 136 | S186: NA | T186: NA | U186: NA | V186: NA | W186: NA | X186: NA | Y186: NA | Z186: NA | AA186: NA | AB186: NA | AC186: NA | AD186: NA | AE186: NA | AF186: NA | AG186: NA | AH186: NA | AI186: NA | AJ186: NA | AK186: 6020A | AQ186: 5.861 | AU186: 0.00066 | BJ186: 0.0019 | BY186: 0.001 | BZ186: 8e-05 | CA186: 0.001 | CB186: 0.00011 | CC186: 0.001 | CD186: 0.001 | CE186: 0.00011 | CF186: 0.001 | CG186: 0.00029 | CH186: 9.2e-05 | CI186: 0.00035 | CJ186: 5.6e-05 | CK186: 0.00045 | CL186: 7.6e-05 | CR186: =IF(ISBLANK(FieldSampling1618[[#This Row],[Sample Reference '# ('# required to enable calculations)]]),"",SUM(FieldSampling1618[[#This Row],[La 57]:[Lu 71]])) -> 0.006614 | CS186: =IF(ISBLANK(FieldSampling1618[[#This Row],[Sample Reference '# ('# required to enable calculations)]]),"", SUM(FieldSampling1618[Lanthanides]+FieldSampling1618[Y 39])) -> 0.008514 | CU186: 200.7 | CV186: NA | CX186: <0.038 | CY186: 214.833 | CZ186: 2.32 | DB186: 68.562 | DC186: 2895.05 | DI186: 14501 | DJ186: 3000
A187: 137 | B187: raw AMD | C187: Restricted under terms of access NDA | F187: Resource Production | G187: Coal Mining | H187: Acid Mine Drainage | I187: NAPP | J187: Pennsylvanian | K187: Pittsburgh | L187: WV | M187: Monongalia | N187: wri AQ-137 | O187: WV | P187: Monongalia | Q187: wri AQ-137 | R187: 137 | S187: NA | T187: NA | U187: NA | V187: NA | W187: NA | X187: NA | Y187: NA | Z187: NA | AA187: NA | AB187: NA | AC187: NA | AD187: NA | AE187: NA | AF187: NA | AG187: NA | AH187: NA | AI187: NA | AJ187: NA | AK187: 6020A | AQ187: 13.63 | AU187: 0.0173 | BJ187: 0.165 | BY187: 0.0248 | BZ187: 0.0749 | CA187: 0.0125 | CB187: 0.0667 | CC187: 0.0228 | CD187: 0.0063 | CE187: 0.0368 | CF187: 0.0058 | CG187: 0.0363 | CH187: 0.0076 | CI187: 0.0208 | CJ187: 0.0027 | CK187: 0.0149 | CL187: 0.0022 | CR187: =IF(ISBLANK(FieldSampling1618[[#This Row],[Sample Reference '# ('# required to enable calculations)]]),"",SUM(FieldSampling1618[[#This Row],[La 57]:[Lu 71]])) -> 0.3351 | CS187: =IF(ISBLANK(FieldSampling1618[[#This Row],[Sample Reference '# ('# required to enable calculations)]]),"", SUM(FieldSampling1618[Lanthanides]+FieldSampling1618[Y 39])) -> 0.5001 | CU187: 200.7 | CV187: NA | CX187: 27.083 | CY187: 415.35 | CZ187: 810.65 | DB187: 252.21 | DC187: 3022.93 | DI187: 408.6 | DJ187: 10300
A188: 138 | B188: raw AMD | C188: Restricted under terms of access NDA | F188: Resource Production | G188: Coal Mining | H188: Acid Mine Drainage | I188: NAPP | J188: Pennsylvanian | K188: Pittsburgh | L188: WV | M188: Marion | N188: wri AQ-138 | O188: WV | P188: Marion | Q188: wri AQ-138 | R188: 138 | S188: NA | T188: NA | U188: NA | V188: NA | W188: NA | X188: NA | Y188: NA | Z188: NA | AA188: NA | AB188: NA | AC188: NA | AD188: NA | AE188: NA | AF188: NA | AG188: NA | AH188: NA | AI188: NA | AJ188: NA | AK188: 6020A | AQ188: 6.41 | AU188: 0.0061 | BJ188: 0.00049 | BY188: 0.001 | BZ188: 0.001 | CA188: 0.001 | CB188: 6.8e-05 | CC188: 0.001 | CD188: 0.001 | CE188: 0.001 | CF188: 0.001 | CG188: 7.6e-05 | CH188: 0.001 | CI188: 0.0001 | CJ188: 0.001 | CK188: 0.00019 | CL188: 5.2e-05 | CR188: =IF(ISBLANK(FieldSampling1618[[#This Row],[Sample Reference '# ('# required to enable calculations)]]),"",SUM(FieldSampling1618[[#This Row],[La 57]:[Lu 71]])) -> 0.009486 | CS188: =IF(ISBLANK(FieldSampling1618[[#This Row],[Sample Reference '# ('# required to enable calculations)]]),"", SUM(FieldSampling1618[Lanthanides]+FieldSampling1618[Y 39])) -> 0.009976 | CU188: 200.7 | CV188: NA | CX188: <0.038 | CY188: 239.964 | CZ188: 0.283 | DB188: 101.998 | DC188: 2738.14 | DI188: 884 | DJ188: 4065
A189: 139 | B189: raw AMD | C189: Restricted under terms of access NDA | F189: Resource Production | G189: Coal Mining | H189: Acid Mine Drainage | I189: NAPP | J189: Pennsylvanian | K189: Pittsburgh | L189: WV | M189: Marion | N189: wri AQ-139 | O189: WV | P189: Marion | Q189: wri AQ-139 | R189: 139 | S189: NA | T189: NA | U189: NA | V189: NA | W189: NA | X189: NA | Y189: NA | Z189: NA | AA189: NA | AB189: NA | AC189: NA | AD189: NA | AE189: NA | AF189: NA | AG189: NA | AH189: NA | AI189: NA | AJ189: NA | AK189: 6020A | AQ189: 6.858 | AU189: 0.0064 | BJ189: 0.0014 | BY189: 8e-05 | BZ189: 0.00011 | CA189: 7.4e-05 | CB189: 0.00014 | CC189: 0.00011 | CD189: 8.2e-05 | CE189: 0.00016 | CF189: 9.2e-05 | CG189: 0.00032 | CH189: 0.00016 | CI189: 0.00035 | CJ189: 0.00013 | CK189: 0.00043 | CL189: 0.00016 | CR189: =IF(ISBLANK(FieldSampling1618[[#This Row],[Sample Reference '# ('# required to enable calculations)]]),"",SUM(FieldSampling1618[[#This Row],[La 57]:[Lu 71]])) -> 0.002398 | CS189: =IF(ISBLANK(FieldSampling1618[[#This Row],[Sample Reference '# ('# required to enable calculations)]]),"", SUM(FieldSampling1618[Lanthanides]+FieldSampling1618[Y 39])) -> 0.003798 | CU189: 200.7 | CV189: NA | CX189: <0.038 | CY189: 229.264 | CZ189: 0.073 | DB189: 84.194 | DC189: 2640.4 | DI189: 1022 | DJ189: 3480
A190: 140 | B190: raw AMD | C190: Restricted under terms of access NDA | F190: Resource Production | G190: Coal Mining | H190: Acid Mine Drainage | I190: NAPP | J190: Pennsylvanian | K190: Pittsburgh | L190: WV | M190: Harrison | N190: wri AQ-140 | O190: WV | P190: Harrison | Q190: wri AQ-140 | R190: 140 | S190: NA | T190: NA | U190: NA | V190: NA | W190: NA | X190: NA | Y190: NA | Z190: NA | AA190: NA | AB190: NA | AC190: NA | AD190: NA | AE190: NA | AF190: NA | AG190: NA | AH190: NA | AI190: NA | AJ190: NA | AK190: 6020A | AQ190: 1.511 | AU190: 0.00044 | BJ190: 0.001 | BY190: 0.00015 | BZ190: 0.00014 | CA190: 0.00013 | CB190: 0.00014 | CC190: 0.00014 | CD190: 0.00013 | CE190: 0.00015 | CF190: 0.00014 | CG190: 0.00016 | CH190: 0.00013 | CI190: 0.00013 | CJ190: 0.00015 | CK190: 0.00015 | CL190: 0.00014 | CR190: =IF(ISBLANK(FieldSampling1618[[#This Row],[Sample Reference '# ('# required to enable calculations)]]),"",SUM(FieldSampling1618[[#This Row],[La 57]:[Lu 71]])) -> 0.00198 | CS190: =IF(ISBLANK(FieldSampling1618[[#This Row],[Sample Reference '# ('# required to enable calculations)]]),"", SUM(FieldSampling1618[Lanthanides]+FieldSampling1618[Y 39])) -> 0.00298 | CU190: 200.7 | CV190: NA | CX190: <0.038 | CY190: 31.769 | CZ190: 0.351 | DB190: 9.519 | DC190: 458.977 | DI190: 2.782 | DJ190: 667
A191: 141 | B191: raw AMD | C191: Restricted under terms of access NDA | F191: Resource Production | G191: Coal Mining | H191: Acid Mine Drainage | I191: NAPP | J191: Pennsylvanian | K191: Pittsburgh | L191: WV | M191: Marion | N191: wri AQ-141 | O191: WV | P191: Marion | Q191: wri AQ-141 | R191: 141 | S191: NA | T191: NA | U191: NA | V191: NA | W191: NA | X191: NA | Y191: NA | Z191: NA | AA191: NA | AB191: NA | AC191: NA | AD191: NA | AE191: NA | AF191: NA | AG191: NA | AH191: NA | AI191: NA | AJ191: NA | AK191: 6020A | AQ191: 6.641 | AU191: 0.0016 | BJ191: 0.0014 | BY191: 0.00044 | BZ191: 0.00088 | CA191: 9e-05 | CB191: 0.00043 | CC191: 7.6e-05 | CD191: 0.001 | CE191: 0.00014 | CF191: 0.001 | CG191: 0.00013 | CH191: 7.6e-05 | CI191: 0.00013 | CJ191: 0.001 | CK191: 0.00016 | CL191: 0.001 | CR191: =IF(ISBLANK(FieldSampling1618[[#This Row],[Sample Reference '# ('# required to enable calculations)]]),"",SUM(FieldSampling1618[[#This Row],[La 57]:[Lu 71]])) -> 0.006552 | CS191: =IF(ISBLANK(FieldSampling1618[[#This Row],[Sample Reference '# ('# required to enable calculations)]]),"", SUM(FieldSampling1618[Lanthanides]+FieldSampling1618[Y 39])) -> 0.007952 | CU191: 200.7 | CV191: NA | CX191: <0.038 | CY191: 484.235 | CZ191: 89.847 | DB191: 211.978 | DC191: 4782.57 | DI191: 2816 | DJ191: 7350
CR192: =IF(ISBLANK(FieldSampling1618[[#This Row],[Sample Reference '# ('# required to enable calculations)]]),"",SUM(FieldSampling1618[[#This Row],[La 57]:[Lu 71]])) ->  | CS192: =IF(ISBLANK(FieldSampling1618[[#This Row],[Sample Reference '# ('# required to enable calculations)]]),"", SUM(FieldSampling1618[Lanthanides]+FieldSampling1618[Y 39])) -> 
CR193: =IF(ISBLANK(FieldSampling1618[[#This Row],[Sample Reference '# ('# required to enable calculations)]]),"",SUM(FieldSampling1618[[#This Row],[La 57]:[Lu 71]])) ->  | CS193: =IF(ISBLANK(FieldSampling1618[[#This Row],[Sample Reference '# ('# required to enable calculations)]]),"", SUM(FieldSampling1618[Lanthanides]+FieldSampling1618[Y 39])) -> 
A194: 1-1-a | B194: AMD solids | C194: WVDEP OSR Royal Scot Buc Lilly, Lat. 38.010625, Long. -80.602170 | F194: Resource Production | G194: Coal Mining | H194: Acid Mine Drainage-Sludge | I194: CAPP | J194: Pennsylvanian | K194: Poca 3-6, BECKLEY,Firecreek,SEWELL,LITLE RALEIGH | L194: WV | M194: Greenbrier | N194: wri SL-1-1 | O194: WV | P194: Greenbrier | Q194: wri SL-1-1 | R194: 1 | S194: NA | T194: 92.8 | U194: NA | V194: NA | W194: NA | X194: NA | Y194: NA | Z194: NA | AA194: NA | AB194: NA | AC194: NA | AD194: NA | AE194: NA | AF194: NA | AG194: NA | AH194: NA | AI194: NA | AJ194: sodium peroxide fusion | AK194: GC_IMS28V | AQ194: 6.2 | AU194: 13 | BA194: 698 | BJ194: 287 | BT194: 698 | BY194: 66.9 | BZ194: 186 | CA194: 30 | CB194: 155 | CC194: 48.8 | CD194: 12.2 | CE194: 72.1 | CF194: 10.6 | CG194: 59.4 | CH194: 11 | CI194: 27.8 | CJ194: 3.46 | CK194: 19.1 | CL194: 2.68 | CP194: 3.4 | CQ194: 7.45 | CR194: =IF(ISBLANK(FieldSampling1618[[#This Row],[Sample Reference '# ('# required to enable calculations)]]),"",SUM(FieldSampling1618[[#This Row],[La 57]:[Lu 71]])) -> 705.04 | CS194: =IF(ISBLANK(FieldSampling1618[[#This Row],[Sample Reference '# ('# required to enable calculations)]]),"", SUM(FieldSampling1618[Lanthanides]+FieldSampling1618[Y 39])) -> 992.04 | CU194: GC_IMS28V | CV194: sodium peroxide fusion | CX194: 9.36 | CY194: 1.6 | CZ194: 11.8 | DB194: 8.15
A195: 1-1-b | B195: AMD solids | C195: WVDEP OSR Royal Scot Buc Lilly, Lat. 38.010625, Long. -80.602170 | F195: Resource Production | G195: Coal Mining | H195: Acid Mine Drainage-Sludge | I195: CAPP | J195: Pennsylvanian | K195: Poca 3-6, BECKLEY,Firecreek,SEWELL,LITLE RALEIGH | L195: WV | M195: Greenbrier | N195: wri SL-1-1 | O195: WV | P195: Greenbrier | Q195: wri SL-1-1 | R195: 1 | S195: NA | T195: 92.5 | U195: NA | V195: NA | W195: NA | X195: NA | Y195: NA | Z195: NA | AA195: NA | AB195: NA | AC195: NA | AD195: NA | AE195: NA | AF195: NA | AG195: NA | AH195: NA | AI195: NA | AJ195: sodium peroxide fusion | AK195: GC_IMS28V | AQ195: 4.9 | AU195: 12 | BA195: 745 | BJ195: 302 | BT195: 745 | BY195: 66.9 | BZ195: 188 | CA195: 30.7 | CB195: 158 | CC195: 50.6 | CD195: 12.6 | CE195: 75 | CF195: 11 | CG195: 61.4 | CH195: 11.1 | CI195: 28.3 | CJ195: 3.49 | CK195: 19.5 | CL195: 2.73 | CP195: 2.7 | CQ195: 7.57 | CR195: =IF(ISBLANK(FieldSampling1618[[#This Row],[Sample Reference '# ('# required to enable calculations)]]),"",SUM(FieldSampling1618[[#This Row],[La 57]:[Lu 71]])) -> 719.32 | CS195: =IF(ISBLANK(FieldSampling1618[[#This Row],[Sample Reference '# ('# required to enable calculations)]]),"", SUM(FieldSampling1618[Lanthanides]+FieldSampling1618[Y 39])) -> 1021.32 | CU195: GC_IMS28V | CV195: sodium peroxide fusion | CX195: 9 | CY195: 1.9 | CZ195: 11.9 | DB195: 8.11
A196: 1-1-c | B196: AMD solids | C196: WVDEP OSR Royal Scot Buc Lilly, Lat. 38.010625, Long. -80.602170 | F196: Resource Production | G196: Coal Mining | H196: Acid Mine Drainage-Sludge | I196: CAPP | J196: Pennsylvanian | K196: Poca 3-6, BECKLEY,Firecreek,SEWELL,LITLE RALEIGH | L196: WV | M196: Greenbrier | N196: wri SL-1-1 | O196: WV | P196: Greenbrier | Q196: wri SL-1-1 | R196: 1 | S196: NA | T196: 93.8 | U196: NA | V196: NA | W196: NA | X196: NA | Y196: NA | Z196: NA | AA196: NA | AB196: NA | AC196: NA | AD196: NA | AE196: NA | AF196: NA | AG196: NA | AH196: NA | AI196: NA | AJ196: sodium peroxide fusion | AK196: GC_IMS28V | AQ196: 6.1 | AU196: 15 | BA196: 728 | BJ196: 313 | BT196: 728 | BY196: 72.4 | BZ196: 203 | CA196: 32.9 | CB196: 171 | CC196: 54 | CD196: 13.4 | CE196: 79.5 | CF196: 11.8 | CG196: 65.1 | CH196: 11.9 | CI196: 30 | CJ196: 3.74 | CK196: 21 | CL196: 2.92 | CP196: 3.5 | CQ196: 9.2 | CR196: =IF(ISBLANK(FieldSampling1618[[#This Row],[Sample Reference '# ('# required to enable calculations)]]),"",SUM(FieldSampling1618[[#This Row],[La 57]:[Lu 71]])) -> 772.66 | CS196: =IF(ISBLANK(FieldSampling1618[[#This Row],[Sample Reference '# ('# required to enable calculations)]]),"", SUM(FieldSampling1618[Lanthanides]+FieldSampling1618[Y 39])) -> 1085.66 | CU196: GC_IMS28V | CV196: sodium peroxide fusion | CX196: 10.5 | CY196: 1.7 | CZ196: 13.5 | DB196: 6
A197: 1-1-d | B197: AMD solids | C197: WVDEP OSR Royal Scot Buc Lilly, Lat. 38.010625, Long. -80.602170 | F197: Resource Production | G197: Coal Mining | H197: Acid Mine Drainage-Sludge | I197: CAPP | J197: Pennsylvanian | K197: Poca 3-6, BECKLEY,Firecreek,SEWELL,LITLE RALEIGH | L197: WV | M197: Greenbrier | N197: wri SL-1-1 | O197: WV | P197: Greenbrier | Q197: wri SL-1-1 | R197: 1 | S197: NA | T197: 90.1 | U197: NA | V197: NA | W197: NA | X197: NA | Y197: NA | Z197: NA | AA197: NA | AB197: NA | AC197: NA | AD197: NA | AE197: NA | AF197: NA | AG197: NA | AH197: NA | AI197: NA | AJ197: sodium peroxide fusion | AK197: GC_IMS28V | AQ197: 6.1 | AU197: 13 | BA197: 722 | BJ197: 297 | BT197: 722 | BY197: 68.4 | BZ197: 192 | CA197: 31 | CB197: 158 | CC197: 50.5 | CD197: 12.5 | CE197: 74.3 | CF197: 10.9 | CG197: 60.5 | CH197: 11.1 | CI197: 28 | CJ197: 3.47 | CK197: 19.5 | CL197: 2.69 | CP197: 3.2 | CQ197: 8.1 | CR197: =IF(ISBLANK(FieldSampling1618[[#This Row],[Sample Reference '# ('# required to enable calculations)]]),"",SUM(FieldSampling1618[[#This Row],[La 57]:[Lu 71]])) -> 722.86 | CS197: =IF(ISBLANK(FieldSampling1618[[#This Row],[Sample Reference '# ('# required to enable calculations)]]),"", SUM(FieldSampling1618[Lanthanides]+FieldSampling1618[Y 39])) -> 1019.86 | CU197: GC_IMS28V | CV197: sodium peroxide fusion | CX197: 9.81 | CY197: 1.7 | CZ197: 12.7 | DB197: 7.28
A198: 1-1-e | B198: AMD solids | C198: WVDEP OSR Royal Scot Buc Lilly, Lat. 38.010625, Long. -80.602170 | F198: Resource Production | G198: Coal Mining | H198: Acid Mine Drainage-Sludge | I198: CAPP | J198: Pennsylvanian | K198: Poca 3-6, BECKLEY,Firecreek,SEWELL,LITLE RALEIGH | L198: WV | M198: Greenbrier | N198: wri SL-1-1 | O198: WV | P198: Greenbrier | Q198: wri SL-1-1 | R198: 1 | S198: NA | T198: 92.6 | U198: NA | V198: NA | W198: NA | X198: NA | Y198: NA | Z198: NA | AA198: NA | AB198: NA | AC198: NA | AD198: NA | AE198: NA | AF198: NA | AG198: NA | AH198: NA | AI198: NA | AJ198: sodium peroxide fusion | AK198: GC_IMS28V | AQ198: 6 | AU198: 13 | BA198: 719 | BJ198: 284 | BT198: 719 | BY198: 65.2 | BZ198: 180 | CA198: 29.3 | CB198: 152 | CC198: 48.3 | CD198: 12.1 | CE198: 71.1 | CF198: 10.5 | CG198: 58.1 | CH198: 10.6 | CI198: 27 | CJ198: 3.38 | CK198: 18.6 | CL198: 2.64 | CP198: 3.2 | CQ198: 7.89 | CR198: =IF(ISBLANK(FieldSampling1618[[#This Row],[Sample Reference '# ('# required to enable calculations)]]),"",SUM(FieldSampling1618[[#This Row],[La 57]:[Lu 71]])) -> 688.82 | CS198: =IF(ISBLANK(FieldSampling1618[[#This Row],[Sample Reference '# ('# required to enable calculations)]]),"", SUM(FieldSampling1618[Lanthanides]+FieldSampling1618[Y 39])) -> 972.82 | CU198: GC_IMS28V | CV198: sodium peroxide fusion | CX198: 9.32 | CY198: 2 | CZ198: 13.2 | DB198: 7.19
A199: 1-1-f | B199: AMD solids | C199: WVDEP OSR Royal Scot Buc Lilly, Lat. 38.010625, Long. -80.602170 | F199: Resource Production | G199: Coal Mining | H199: Acid Mine Drainage-Sludge | I199: CAPP | J199: Pennsylvanian | K199: Poca 3-6, BECKLEY,Firecreek,SEWELL,LITLE RALEIGH | L199: WV | M199: Greenbrier | N199: wri SL-1-1 | O199: WV | P199: Greenbrier | Q199: wri SL-1-1 | R199: 1 | S199: NA | T199: 94.6 | U199: NA | V199: NA | W199: NA | X199: NA | Y199: NA | Z199: NA | AA199: NA | AB199: NA | AC199: NA | AD199: NA | AE199: NA | AF199: NA | AG199: NA | AH199: NA | AI199: NA | AJ199: sodium peroxide fusion | AK199: GC_IMS28V | AQ199: 4.6 | AU199: 12 | BA199: 697 | BJ199: 290 | BT199: 697 | BY199: 64.4 | BZ199: 181 | CA199: 29.7 | CB199: 156 | CC199: 50.2 | CD199: 12.3 | CE199: 73 | CF199: 10.9 | CG199: 60.1 | CH199: 11 | CI199: 28 | CJ199: 3.45 | CK199: 19.1 | CL199: 2.64 | CP199: 2.5 | CQ199: 7.49 | CR199: =IF(ISBLANK(FieldSampling1618[[#This Row],[Sample Reference '# ('# required to enable calculations)]]),"",SUM(FieldSampling1618[[#This Row],[La 57]:[Lu 71]])) -> 701.79 | CS199: =IF(ISBLANK(FieldSampling1618[[#This Row],[Sample Reference '# ('# required to enable calculations)]]),"", SUM(FieldSampling1618[Lanthanides]+FieldSampling1618[Y 39])) -> 991.79 | CU199: GC_IMS28V | CV199: sodium peroxide fusion | CX199: 9.01 | CY199: 1.7 | CZ199: 12.3 | DB199: 8.69
A200: 1-1-g | B200: AMD solids | C200: WVDEP OSR Royal Scot Buc Lilly, Lat. 38.010625, Long. -80.602170 | F200: Resource Production | G200: Coal Mining | H200: Acid Mine Drainage-Sludge | I200: CAPP | J200: Pennsylvanian | K200: Poca 3-6, BECKLEY,Firecreek,SEWELL,LITLE RALEIGH | L200: WV | M200: Greenbrier | N200: wri SL-1-1 | O200: WV | P200: Greenbrier | Q200: wri SL-1-1 | R200: 1 | S200: NA | T200: 93.6 | U200: NA | V200: NA | W200: NA | X200: NA | Y200: NA | Z200: NA | AA200: NA | AB200: NA | AC200: NA | AD200: NA | AE200: NA | AF200: NA | AG200: NA | AH200: NA | AI200: NA | AJ200: sodium peroxide fusion | AK200: GC_IMS28V | AQ200: 6.8 | AU200: 13 | BA200: 648 | BJ200: 276 | BT200: 648 | BY200: 64.7 | BZ200: 180 | CA200: 28.9 | CB200: 147 | CC200: 46.9 | CD200: 11.6 | CE200: 68.1 | CF200: 10.1 | CG200: 55.8 | CH200: 10.2 | CI200: 25.8 | CJ200: 3.22 | CK200: 18 | CL200: 2.48 | CP200: 4.1 | CQ200: 7.57 | CR200: =IF(ISBLANK(FieldSampling1618[[#This Row],[Sample Reference '# ('# required to enable calculations)]]),"",SUM(FieldSampling1618[[#This Row],[La 57]:[Lu 71]])) -> 672.8 | CS200: =IF(ISBLANK(FieldSampling1618[[#This Row],[Sample Reference '# ('# required to enable calculations)]]),"", SUM(FieldSampling1618[Lanthanides]+FieldSampling1618[Y 39])) -> 948.8 | CU200: GC_IMS28V | CV200: sodium peroxide fusion | CX200: 9.28 | CY200: 1.6 | CZ200: 11.9 | DB200: 7.53
A201: 1-1-h | B201: AMD solids | C201: WVDEP OSR Royal Scot Buc Lilly, Lat. 38.010625, Long. -80.602170 | F201: Resource Production | G201: Coal Mining | H201: Acid Mine Drainage-Sludge | I201: CAPP | J201: Pennsylvanian | K201: Poca 3-6, BECKLEY,Firecreek,SEWELL,LITLE RALEIGH | L201: WV | M201: Greenbrier | N201: wri SL-1-1 | O201: WV | P201: Greenbrier | Q201: wri SL-1-1 | R201: 1 | S201: NA | T201: 94.7 | U201: NA | V201: NA | W201: NA | X201: NA | Y201: NA | Z201: NA | AA201: NA | AB201: NA | AC201: NA | AD201: NA | AE201: NA | AF201: NA | AG201: NA | AH201: NA | AI201: NA | AJ201: sodium peroxide fusion | AK201: GC_IMS28V | AQ201: 3.8 | AU201: 11 | BA201: 701 | BJ201: 296 | BT201: 701 | BY201: 63.2 | BZ201: 180 | CA201: 29.7 | CB201: 153 | CC201: 50.4 | CD201: 12.5 | CE201: 73.3 | CF201: 10.9 | CG201: 60.5 | CH201: 10.9 | CI201: 27.9 | CJ201: 3.44 | CK201: 19.2 | CL201: 2.71 | CP201: 2 | CQ201: 6.97 | CR201: =IF(ISBLANK(FieldSampling1618[[#This Row],[Sample Reference '# ('# required to enable calculations)]]),"",SUM(FieldSampling1618[[#This Row],[La 57]:[Lu 71]])) -> 697.65 | CS201: =IF(ISBLANK(FieldSampling1618[[#This Row],[Sample Reference '# ('# required to enable calculations)]]),"", SUM(FieldSampling1618[Lanthanides]+FieldSampling1618[Y 39])) -> 993.65 | CU201: GC_IMS28V | CV201: sodium peroxide fusion | CX201: 8.74 | CY201: 1.6 | CZ201: 11.7 | DB201: 9.85
A202: 1-1-i | B202: AMD solids | C202: WVDEP OSR Royal Scot Buc Lilly, Lat. 38.010625, Long. -80.602170 | F202: Resource Production | G202: Coal Mining | H202: Acid Mine Drainage-Sludge | I202: CAPP | J202: Pennsylvanian | K202: Poca 3-6, BECKLEY,Firecreek,SEWELL,LITLE RALEIGH | L202: WV | M202: Greenbrier | N202: wri SL-1-1 | O202: WV | P202: Greenbrier | Q202: wri SL-1-1 | R202: 1 | S202: NA | T202: 94.3 | U202: NA | V202: NA | W202: NA | X202: NA | Y202: NA | Z202: NA | AA202: NA | AB202: NA | AC202: NA | AD202: NA | AE202: NA | AF202: NA | AG202: NA | AH202: NA | AI202: NA | AJ202: sodium peroxide fusion | AK202: GC_IMS28V | AQ202: 5 | AU202: 11 | BA202: 713 | BJ202: 287 | BT202: 713 | BY202: 64.5 | BZ202: 182 | CA202: 29.5 | CB202: 152 | CC202: 48.7 | CD202: 12.1 | CE202: 72.8 | CF202: 10.7 | CG202: 59.1 | CH202: 10.8 | CI202: 27.4 | CJ202: 3.37 | CK202: 19 | CL202: 2.66 | CP202: 2.5 | CQ202: 7.12 | CR202: =IF(ISBLANK(FieldSampling1618[[#This Row],[Sample Reference '# ('# required to enable calculations)]]),"",SUM(FieldSampling1618[[#This Row],[La 57]:[Lu 71]])) -> 694.63 | CS202: =IF(ISBLANK(FieldSampling1618[[#This Row],[Sample Reference '# ('# required to enable calculations)]]),"", SUM(FieldSampling1618[Lanthanides]+FieldSampling1618[Y 39])) -> 981.63 | CU202: GC_IMS28V | CV202: sodium peroxide fusion | CX202: 9 | CY202: 1.8 | CZ202: 12.7 | DB202: 8.38
... 360 more rows

Sheet Dry Ash Basis
A1: Dry Ash Basis - Sampling Material Identification and Characterization
F4: Researcher Field Sampling Data Inputs | AJ4: Primary Elemental Identification Technique | CU4: Secondary Elemental Identification Technique (If Measured) | DO4: XRD, Phase Identification (If measured) | DS4: SEM-EDX (If measured)
D5: Sample Reference # for Analyses on Sample Source | F5: Origin of the Sample and Description | O5: Location of Sampling Site | V5: Proximate Analysis (Wt%) | AA5: Ultimate Analysis (%) | AF5: CHNS Analysis (%) | AJ5: Analysis Description/Method | AM5: Elements (ppm) | BY5: Lanthanides (ppm) | CM5: Other Metals (ppm) | CP5: Actinides (ppm) | CR5: Total REE (ppm) | CS5: Total REE+Y (ppm) | CU5: Analysis Description Method | CX5: Results (ppm)
A6: Sample Reference # (# required to enable calculations) | B6: Sample Type | C6: Description | D6: Furthest Upstream Sample Ref # | E6: Previous Upstream Sample Ref # | F6: Level 1 Attribute | G6: Level 2 Attribute | H6: Level 3 Attribute | I6: Coal Basin | J6: Geological Group | K6: Associated Coal Bed/Zone/Seam | L6: State | M6: County | N6: Site | O6: State2 | P6: County2 | Q6: Site2 | R6: Location2 | S6: Size Fraction Analyzed (µm) | T6: % Moisture, As-Received | U6: %Ash, Dry | V6: Sulfur | W6: Moisture | X6: Volatile Matter | Y6: Ash | Z6: Fixed Carbon | AA6: Carbon | AB6: Hydrogen | AC6: Sulfur | AD6: Oxygen | AE6: Nitrogen | AF6: Carbon2 | AG6: H | AH6: N | AI6: S | AJ6: Digestion Method | AK6: Analytical Technique | AL6: Dry Ash Basis | AM6: Be 4 | AN6: Na 11 | AO6: Mg 12 | AP6: Al 13 | AQ6: Si 14 | AR6: P 15 | AS6: K 19 | AT6: Ca 20 | AU6: Sc 21 | AV6: Ti 22 | AW6: V 23 | AX6: Cr 24 | AY6: Mn 25 | AZ6: Fe 26 | BA6: Co 27 | BB6: Ni 28 | BC6: Cu 29 | BD6: Zn 30 | BE6: Ga 31 | BF6: Ge 32 | BG6: As 33 | BH6: Se 34 | BI6: Rb 37 | BJ6: Y 39 | BK6: Zr 40 | BL6: Nb 41 | BM6: Mo 42 | BN6: Ag 47 | BO6: Cd 48 | BP6: Sn 50 | BQ6: Sb 51 | BR6: Cs 55 | BS6: Ba 56 | BT6: Other | BU6: Other2 | BV6: Other3 | BW6: Other4 | BX6: Other5 | BY6: La 57 | BZ6: Ce 58 | CA6: Pr 59 | CB6: Nd 60 | CC6: Sm 62 | CD6: Eu 63 | CE6: Gd 64 | CF6: Tb 65 | CG6: Dy 66 | CH6: Ho 67 | CI6: Er 68 | CJ6: Tm 69 | CK6: Yb 70 | CL6: Lu 71 | CM6: Hf 72 | CN6: Tl 81 | CO6: Pb 82 | CP6: Th 90 | CQ6: U 92 | CR6: Lanthanides | CS6: Lanthanides+Y | CT6: Notes | CU6: Secondary Analytical Technique | CV6: Secondary Digestion Method | CW6: Dry Ash Basis2 | CX6: Al3 13 | CY6: Ca4 20 | CZ6: Fe5 26 | DA6: K6 19 | DB6: Mg7 12 | DC6: Na8 11 | DD6: P2 15 | DE6: Ti2 22 | DF6: SiO2* | DG6: Zr 402 | DH6: Sn 502 | DI6: Cl | DJ6: SO4 | DK6: Other9 | DL6: Other10 | DM6: Other11 | DN6: Notes3 | DO6: Major Phases | DP6: Minor Phases | DQ6: Trace Phases | DR6: Notes2 | DS6: Mineral/particle/crystal | DT6: Size | DU6: Mineral/particle/crystal2 | DV6: Size3 | DW6: Mineral/particle/crystal3 | DX6: Size4 | DY6: Notes4
... 561 more rows

Sheet Data Validation (hidden)
B1: State | D1: Coal Basin | F1: Level 1 Attribute | H1: Level 2 Attribute | J1: Level 3 Attribute | L1: Extractive Metallurgy Category | N1: Processing Method Tree | P1: REE % Yield (Specific Element) | R1: Mineral Form | T1: Primary Crystal Structure | V1: Analytical Technique | X1: Dry Mass Basis | Z1: Ash Basis
B2: AL | D2: Central Appalachia | F2: Resource Production | H2: Coal Reserve | J2: Coal | L2: Mineral processing | N2: Grinding | P2: La | R2: Quartz | T2: A | V2: Energy Dispersive X-Ray Spectroscopy | X2: Dry Mass Basis | Z2: Dry Ash Basis
B3: AK | D3: Central Interior | F3: Processing | H3: Coal Separations | J3: Clean Coal | L3: Hydrometallurgy | N3: Density | P3: Ce | R3: Monazite | T3: B | V3: Inductive Coupled Plasma
B4: AZ | D4: Gulf Lignite | F4: Utilization | H4: Energy Conversion Processes | J4: Bottom Ash | L4: Pyrometallurgy | N4: Size | P4: Pr | R4: Basnosite | T4: C | V4: Laser Induced Breakdown Spectroscopy
B5: AR | D5: Illinois Basin | H5: Coal Mining | J5: Fly Ash | L5: Electrometallurgy | N5: Shape | P5: Nd | V5: Neutron Activation Analysis
B6: CA | D6: Lignite | H6: Feed Coal | J6: Ash | L6: Other | N6: Electrostatic/Conductivity | P6: Sm | V6: X-Ray Fluorescence
B7: CO | D7: Northern Appalachia | H7: Other | J7: Refuse | N7: Magnetic | P7: Eu
B8: CT | D8: Powder River Basin | J8: Fine Coal By-Product | N8: Surface Chemistry/Froth Flotation | P8: Gd
B9: DE | D9: Rocky Mountain | J9: Coarse Refuse | N9: Leaching | P9: Tb
B10: FL | D10: Southern Appalachia | J10: Disposed Combustion By-Products | N10: Precipitation | P10: Dy
B11: GA | D11: West/Northwest | J11: Coal Mine Drainage | N11: Distillation | P11: Ho
B12: HI | D12: Other | J12: Acid Mine Drainage | N12: Adsorption | P12: Er
B13: ID | J13: Acid Mine Drainage - Sludge | N13: Crystallization | P13: Tm
B14: IL | J14: Aqueous | N14: Ion Exchange | P14: Yb
B15: IN | J15: N/A | N15: Solvent Extraction | P15: Lu
B16: IA | N16: Membrane Separation | P16: Hf
B17: KS | N17: Calcining | P17: Tl
B18: KY | N18: Roasting | P18: Pb
B19: LA | N19: Smelting | P19: Th
B20: ME | N20: Electrowinning/Electro-Refining | P20: U
B21: MD | N21: Other | P21: Zr
B22: MA | P22: Y
B23: MI | P23: Other
B24: MN
B25: MS
B26: MO
B27: MT
B28: NE
B29: NV
B30: NH
B31: NJ
B32: NM
B33: NY
B34: NC
B35: ND
B36: OH
B37: OK
B38: OR
B39: PA
B40: RI
B41: SC
B42: SD
B43: TN
B44: TX
B45: UT
B46: VT
B47: VA
B48: WA
B49: WV
B50: WI
B51: WY
B52: Other
